{"text_format":"1","workbook":"xlsx","n_sheets":2,"sheets":["التجهيز","التحميل"],"not_rendered":{"charts":0,"images":0,"macros":0,"external_links":3,"defined_names":1,"comments":0,"pivot_tables":0},"unopened":[],"bounds":{"document_bytes":16777216,"sheet_cells":100000,"rows_first":2000,"rows_last":500,"rows_between":2000,"halvings":0,"cell_chars":16384,"cell_head_chars":4096},"cells_cut":0,"cells_raw":0,"read":"whole","date_system":"1900"}

{"sheet":"التجهيز","index":0,"n_rows":61,"n_cols":20,"rows_kept":61,"cut":false,"hidden":false,"merged":[[1,5,1,9],[1,10,1,13],[1,14,1,19]]}
[null,null,null,"Remaining","Unit",{"$f":"COUNTIF(F6:F57,\">0\")","v":5},{"$f":"COUNTIF(G6:G57,\">0\")","v":2},0,0,0,0,0,0,0,0,0,0,0,0,2]
[null,null,null,null,"Route Category"]
[null,null,null,null,"Area","محمد","اجمد","صبري","سالم","ماجد","زياد","علاء","بهاء","ياسر","وارد","منصرف","نواقص","مرتجع","فاتوره","عينات"]
["Product Code","Available","Product Name",null,"Route Code",55,57,58,59.6666666666667,61.1666666666667,62.6666666666667,64.1666666666667,65.6666666666667,67.1666666666667,555,666,333,444,222,111]
[null,null,null,null,"Van Code"]
[1001,406.96296296296305,"صنف 1",{"$f":"B6-SUM(F6:P6)","v":395.96296296296305},null,1,10]
[1002,235.51851851851848,"صنف 2",{"$f":"B7-SUM(F7:P7)","v":234.51851851851848},null,1]
[1003,447.66666666666663,"صنف 3",446.66666666666663,null,1]
[1004,465.48148148148147,"صنف 4",465.48148148148147]
[1005,283.2592592592593,"صنف 5",278.2592592592593,null,null,5]
[1006,161.5185185185185,"صنف 6",161.5185185185185]
[1007,119.48148148148147,"صنف 7",119.48148148148147]
[1008,376.59259259259261,"صنف 8",376.59259259259261]
[1009,3.8888888888888866,"صنف 9",3.8888888888888866]
[1010,84.166666666666657,"صنف 10",84.166666666666657]
[1011,76.583333333333343,"صنف 11",76.583333333333343]
[1012,84.083333333333314,"صنف 12",84.083333333333314]
[1013,79.499999999999986,"صنف 13",79.499999999999986,null,null,null,null,null,null,null,null,null,null,null,null,null,null,null,10]
[1014,52.833333333333329,"صنف 14",52.833333333333329]
[1015,61.416666666666664,"صنف 15",61.416666666666664]
[1016,null,"صنف 16",0]
[1017,103.25000000000001,"صنف 17",103.25000000000001,null,null,null,null,null,null,null,null,null,null,null,null,null,null,null,10]
[1018,66.833333333333329,"صنف 18",66.833333333333329]
[1019,74.666666666666657,"صنف 19",74.666666666666657]
[1020,91.166666666666671,"صنف 20",91.166666666666671]
[1021,122.96296296296293,"صنف 21",122.96296296296293]
[1022,10.629629629629626,"صنف 22",10.629629629629626]
[1023,201.5555555555556,"صنف 23",201.5555555555556]
[1024,115.03703703703702,"صنف 24",115.03703703703702]
[1025,133.74999999999997,"صنف 25",133.74999999999997]
[1026,167.00000000000006,"صنف 26",167.00000000000006]
[1027,80.999999999999972,"صنف 27",80.999999999999972]
[1028,47.25,"صنف 28",47.25]
[1029,21.000513087682901,"صنف 29",21.000513087682901]
[1030,11.873180512139999,"صنف 30",11.873180512139999]
[1031,2.7458479365979498,"صنف 31",2.7458479365979498]
[1032,-6.3814846389440198,"صنف 32",-6.3814846389440198]
[]
[null,null,{"$f":"IF(A39<>\"\",VLOOKUP(A39,[1]criteria!$A$1:$G$99111,2,0),\"\")","v":""},-2,null,2]
[null,null,{"$f":"IF(A40<>\"\",VLOOKUP(A40,[1]criteria!$A$1:$G$99111,2,0),\"\")","v":""},-3,null,3]
[null,null,{"$f":"IF(A41<>\"\",VLOOKUP(A41,[1]criteria!$A$1:$G$99111,2,0),\"\")","v":""},0]
[null,null,{"$f":"IF(A42<>\"\",VLOOKUP(A42,[1]criteria!$A$1:$G$99111,2,0),\"\")","v":""},0]
[null,null,{"$f":"IF(A43<>\"\",VLOOKUP(A43,[1]criteria!$A$1:$G$99111,2,0),\"\")","v":""},0]
[null,null,{"$f":"IF(A44<>\"\",VLOOKUP(A44,[1]criteria!$A$1:$G$99111,2,0),\"\")","v":""},0]
[null,null,{"$f":"IF(A45<>\"\",VLOOKUP(A45,[1]criteria!$A$1:$G$99111,2,0),\"\")","v":""},0]
[null,null,{"$f":"IF(A46<>\"\",VLOOKUP(A46,[1]criteria!$A$1:$G$99111,2,0),\"\")","v":""},0]
[null,null,{"$f":"IF(A47<>\"\",VLOOKUP(A47,[1]criteria!$A$1:$G$99111,2,0),\"\")","v":""},0]
[null,null,{"$f":"IF(A48<>\"\",VLOOKUP(A48,[1]criteria!$A$1:$G$99111,2,0),\"\")","v":""},0]
[null,null,{"$f":"IF(A49<>\"\",VLOOKUP(A49,[1]criteria!$A$1:$G$99111,2,0),\"\")","v":""},0]
[null,null,{"$f":"IF(A50<>\"\",VLOOKUP(A50,[1]criteria!$A$1:$G$99111,2,0),\"\")","v":""},0]
[null,null,{"$f":"IF(A51<>\"\",VLOOKUP(A51,[1]criteria!$A$1:$G$99111,2,0),\"\")","v":""},0]
[null,null,{"$f":"IF(A52<>\"\",VLOOKUP(A52,[1]criteria!$A$1:$G$99111,2,0),\"\")","v":""},0]
[null,null,{"$f":"IF(A53<>\"\",VLOOKUP(A53,[1]criteria!$A$1:$G$99111,2,0),\"\")","v":""},0]
[null,null,{"$f":"IF(A54<>\"\",VLOOKUP(A54,[1]criteria!$A$1:$G$99111,2,0),\"\")","v":""},0]
[null,null,{"$f":"IF(A55<>\"\",VLOOKUP(A55,[1]criteria!$A$1:$G$99111,2,0),\"\")","v":""},0]
[null,null,{"$f":"IF(A56<>\"\",VLOOKUP(A56,[1]criteria!$A$1:$G$99111,2,0),\"\")","v":""},0]
[null,null,{"$f":"IF(A57<>\"\",VLOOKUP(A57,[1]criteria!$A$1:$G$99111,2,0),\"\")","v":""},0]
[null,null,{"$f":"IF(A58<>\"\",VLOOKUP(A58,[1]criteria!$A$1:$G$99111,2,0),\"\")","v":""},0]
[null,null,{"$f":"IF(A59<>\"\",VLOOKUP(A59,[1]criteria!$A$1:$G$99111,2,0),\"\")","v":""},0]
[null,null,{"$f":"IF(A60<>\"\",VLOOKUP(A60,[1]criteria!$A$1:$G$99111,2,0),\"\")","v":""},0]
[null,null,{"$f":"IF(A61<>\"\",VLOOKUP(A61,[1]criteria!$A$1:$G$99111,2,0),\"\")","v":""},0]

{"sheet":"التحميل","index":1,"n_rows":4730,"n_cols":44,"rows_kept":4730,"cut":false,"hidden":false,"merged":[]}
["serial","الشيفت","Depot","Route","Product","QUANTITY","QUANTITY\n IN PIEC",1,{"$f":"[2]صباحى!D4","v":"ITEM"},"Stock","date"]
[1,1,990,55,1001,1,null,null,null,{"$f":"VLOOKUP(E2,AL:AO,3,0)","v":{"$error":"#N/A"}},null,null,null,null,null,null,null,null,null,null,null,null,null,null,null,null,null,null,null,null,null,null,null,null,null,null,null,{"$f":"[3]Data!D8","v":16690},{"$f":"[3]Data!E8","v":" تفاح 235  "},{"$f":"+AO2-AP2-AQ2-AR2","v":-50},{"$f":"[3]الصباحى!Q8","v":0},{"$f":"[3]الصباحى!N8","v":50},{"$f":"'[3]تحميل تجزئه '!N8","v":0},{"$f":"[3]المسائى!N8","v":0}]
[{"$f":"IF(D3=D2,SUMIF(D2:D2,D3,A2),A2+1)","v":1},1,990,55,1002,1,null,null,null,{"$f":"VLOOKUP(E3,AL:AO,3,0)","v":{"$error":"#N/A"}},null,null,null,null,null,null,null,null,null,null,null,null,null,null,null,null,null,null,null,null,null,null,null,null,null,null,null,{"$f":"[3]Data!D9","v":92820},{"$f":"[3]Data!E9","v":" تفاح 235 قديم "},-35,{"$f":"[3]الصباحى!Q9","v":0},{"$f":"[3]الصباحى!N9","v":35},{"$f":"'[3]تحميل تجزئه '!N9","v":0},{"$f":"[3]المسائى!N9","v":0}]
[{"$f":"IF(D4=D3,SUMIF(D3:D3,D4,A3),A3+1)","v":1},1,990,55,1003,1,null,null,null,{"$error":"#N/A"},null,null,null,null,null,null,null,null,null,null,null,null,null,null,null,null,null,null,null,null,null,null,null,null,null,null,null,{"$f":"[3]Data!D10","v":16960},{"$f":"[3]Data!E10","v":" تفاح 235    "},-55,{"$f":"[3]الصباحى!Q10","v":0},{"$f":"[3]الصباحى!N10","v":55},{"$f":"'[3]تحميل تجزئه '!N10","v":0},{"$f":"[3]المسائى!N10","v":0}]
[2,1,990,56,1001,10,null,null,null,{"$error":"#N/A"},null,null,null,null,null,null,null,null,null,null,null,null,null,null,null,null,null,null,null,null,null,null,null,null,null,null,null,{"$f":"[3]Data!D11","v":16500},{"$f":"[3]Data!E11","v":" كوكتيل 235 "},-55,{"$f":"[3]الصباحى!Q11","v":0},{"$f":"[3]الصباحى!N11","v":55},{"$f":"'[3]تحميل تجزئه '!N11","v":0},{"$f":"[3]المسائى!N11","v":0}]
[2,1,990,56,105,5,null,null,null,{"$error":"#N/A"},null,null,null,null,null,null,null,null,null,null,null,null,null,null,null,null,null,null,null,null,null,null,null,null,null,null,null,{"$f":"[3]Data!D12","v":95980},{"$f":"[3]Data!E12","v":"كوكتيل  235قديم"},-70,{"$f":"[3]الصباحى!Q12","v":0},{"$f":"[3]الصباحى!N12","v":70},{"$f":"'[3]تحميل تجزئه '!N12","v":0},{"$f":"[3]المسائى!N12","v":0}]
[3,1,990,111,113,10,null,null,null,{"$error":"#N/A"},null,null,null,null,null,null,null,null,null,null,null,null,null,null,null,null,null,null,null,null,null,null,null,null,null,null,null,{"$f":"[3]Data!D13","v":16940},{"$f":"[3]Data!E13","v":"كوكتيل235  "},-10,{"$f":"[3]الصباحى!Q13","v":0},{"$f":"[3]الصباحى!N13","v":10},{"$f":"'[3]تحميل تجزئه '!N13","v":0},{"$f":"[3]المسائى!N13","v":0}]
[3,1,990,111,117,10,null,null,null,{"$error":"#N/A"},null,null,null,null,null,null,null,null,null,null,null,null,null,null,null,null,null,null,null,null,null,null,null,null,null,null,null,{"$f":"[3]Data!D14","v":16680},{"$f":"[3]Data!E14","v":" جوافه 235 "},0,{"$f":"[3]الصباحى!Q14","v":0},{"$f":"[3]الصباحى!N14","v":0},{"$f":"'[3]تحميل تجزئه '!N14","v":0},{"$f":"[3]المسائى!N14","v":0}]
[4,1,990,null,null,null,null,null,null,0,null,null,null,null,null,null,null,null,null,null,null,null,null,null,null,null,null,null,null,null,null,null,null,null,null,null,null,{"$f":"[3]Data!D15","v":95990},{"$f":"[3]Data!E15","v":"جوافه  235قديم"},0,{"$f":"[3]الصباحى!Q15","v":0},{"$f":"[3]الصباحى!N15","v":0},{"$f":"'[3]تحميل تجزئه '!N15","v":0},{"$f":"[3]المسائى!N15","v":0}]
[0,1,990,null,null,null,null,null,null,0,null,null,null,null,null,null,null,null,null,null,null,null,null,null,null,null,null,null,null,null,null,null,null,null,null,null,null,{"$f":"[3]Data!D16","v":16970},{"$f":"[3]Data!E16","v":"جوافه 235  "},-17,{"$f":"[3]الصباحى!Q16","v":0},{"$f":"[3]الصباحى!N16","v":17},{"$f":"'[3]تحميل تجزئه '!N16","v":0},{"$f":"[3]المسائى!N16","v":0}]
[0,1,990,null,null,null,null,null,null,0,null,null,null,null,null,null,null,null,null,null,null,null,null,null,null,null,null,null,null,null,null,null,null,null,null,null,null,{"$f":"[3]Data!D17","v":16650},{"$f":"[3]Data!E17","v":" مانجو 235 "},-13,{"$f":"[3]الصباحى!Q17","v":0},{"$f":"[3]الصباحى!N17","v":13},{"$f":"'[3]تحميل تجزئه '!N17","v":0},{"$f":"[3]المسائى!N17","v":0}]
[0,1,990,null,null,null,null,null,null,0,null,null,null,null,null,null,null,null,null,null,null,null,null,null,null,null,null,null,null,null,null,null,null,null,null,null,null,{"$f":"[3]Data!D18","v":95780},{"$f":"[3]Data!E18","v":"مانجو  235قديم"},-14,{"$f":"[3]الصباحى!Q18","v":0},{"$f":"[3]الصباحى!N18","v":14},{"$f":"'[3]تحميل تجزئه '!N18","v":0},{"$f":"[3]المسائى!N18","v":0}]
[0,1,990,null,null,null,null,null,null,0,null,null,null,null,null,null,null,null,null,null,null,null,null,null,null,null,null,null,null,null,null,null,null,null,null,null,null,{"$f":"[3]Data!D19","v":16950},{"$f":"[3]Data!E19","v":"مانجو  235  جديد"},-14,{"$f":"[3]الصباحى!Q19","v":0},{"$f":"[3]الصباحى!N19","v":14},{"$f":"'[3]تحميل تجزئه '!N19","v":0},{"$f":"[3]المسائى!N19","v":0}]
[0,1,990,null,null,null,null,null,null,0,null,null,null,null,null,null,null,null,null,null,null,null,null,null,null,null,null,null,null,null,null,null,null,null,null,null,null,{"$f":"[3]Data!D20","v":16670},{"$f":"[3]Data!E20","v":"  برتقال 235 "},-14,{"$f":"[3]الصباحى!Q20","v":0},{"$f":"[3]الصباحى!N20","v":14},{"$f":"'[3]تحميل تجزئه '!N20","v":0},{"$f":"[3]المسائى!N20","v":0}]
[0,1,990,null,null,null,null,null,null,0,null,null,null,null,null,null,null,null,null,null,null,null,null,null,null,null,null,null,null,null,null,null,null,null,null,null,null,{"$f":"[3]Data!D21","v":92810},{"$f":"[3]Data!E21","v":"برتقال  235قديم"},-3,{"$f":"[3]الصباحى!Q21","v":0},{"$f":"[3]الصباحى!N21","v":3},{"$f":"'[3]تحميل تجزئه '!N21","v":0},{"$f":"[3]المسائى!N21","v":0}]
[0,1,990,null,null,null,null,null,null,0,null,null,null,null,null,null,null,null,null,null,null,null,null,null,null,null,null,null,null,null,null,null,null,null,null,null,null,{"$f":"[3]Data!D22","v":16980},{"$f":"[3]Data!E22","v":"برتقال  235  "},0,{"$f":"[3]الصباحى!Q22","v":0},{"$f":"[3]الصباحى!N22","v":0},{"$f":"'[3]تحميل تجزئه '!N22","v":0},{"$f":"[3]المسائى!N22","v":0}]
[0,1,990,null,null,null,null,null,null,0,null,null,null,null,null,null,null,null,null,null,null,null,null,null,null,null,null,null,null,null,null,null,null,null,null,null,null,{"$f":"[3]Data!D23","v":16710},{"$f":"[3]Data!E23","v":"  اناناس 235 "},-30,{"$f":"[3]الصباحى!Q23","v":0},{"$f":"[3]الصباحى!N23","v":30},{"$f":"'[3]تحميل تجزئه '!N23","v":0},{"$f":"[3]المسائى!N23","v":0}]
[0,1,990,null,null,null,null,null,null,0,null,null,null,null,null,null,null,null,null,null,null,null,null,null,null,null,null,null,null,null,null,null,null,null,null,null,null,{"$f":"[3]Data!D24","v":95750},{"$f":"[3]Data!E24","v":"اناناس 235 قديم"},-30,{"$f":"[3]الصباحى!Q24","v":0},{"$f":"[3]الصباحى!N24","v":30},{"$f":"'[3]تحميل تجزئه '!N24","v":0},{"$f":"[3]المسائى!N24","v":0}]
[0,1,990,null,null,null,null,null,null,0,null,null,null,null,null,null,null,null,null,null,null,null,null,null,null,null,null,null,null,null,null,null,null,null,null,null,null,{"$f":"[3]Data!D25","v":16990},{"$f":"[3]Data!E25","v":"اناناس 235  "},-40,{"$f":"[3]الصباحى!Q25","v":0},{"$f":"[3]الصباحى!N25","v":40},{"$f":"'[3]تحميل تجزئه '!N25","v":0},{"$f":"[3]المسائى!N25","v":0}]
[0,1,990,null,null,null,null,null,null,0,null,null,null,null,null,null,null,null,null,null,null,null,null,null,null,null,null,null,null,null,null,null,null,null,null,null,null,{"$f":"[3]Data!D26","v":16330},{"$f":"[3]Data!E26","v":" كمثرى 235"},-25,{"$f":"[3]الصباحى!Q26","v":0},{"$f":"[3]الصباحى!N26","v":25},{"$f":"'[3]تحميل تجزئه '!N26","v":0},{"$f":"[3]المسائى!N26","v":0}]
[0,1,990,null,null,null,null,null,null,0,null,null,null,null,null,null,null,null,null,null,null,null,null,null,null,null,null,null,null,null,null,null,null,null,null,null,null,{"$f":"[3]Data!D27","v":16350},{"$f":"[3]Data!E27","v":" خوخ 235"},0,{"$f":"[3]الصباحى!Q27","v":0},{"$f":"[3]الصباحى!N27","v":0},{"$f":"'[3]تحميل تجزئه '!N27","v":0},{"$f":"[3]المسائى!N27","v":0}]
[0,1,990,null,null,null,null,null,null,0,null,null,null,null,null,null,null,null,null,null,null,null,null,null,null,null,null,null,null,null,null,null,null,null,null,null,null,{"$f":"[3]Data!D28","v":91680},{"$f":"[3]Data!E28","v":" عنب  احمر 235"},-6,{"$f":"[3]الصباحى!Q28","v":0},{"$f":"[3]الصباحى!N28","v":6},{"$f":"'[3]تحميل تجزئه '!N28","v":0},{"$f":"[3]المسائى!N28","v":0}]
[0,1,990,null,null,null,null,null,null,0,null,null,null,null,null,null,null,null,null,null,null,null,null,null,null,null,null,null,null,null,null,null,null,null,null,null,null,{"$f":"[3]Data!D29","v":96310},{"$f":"[3]Data!E29","v":"   يوسفى 235"},-3,{"$f":"[3]الصباحى!Q29","v":0},{"$f":"[3]الصباحى!N29","v":3},{"$f":"'[3]تحميل تجزئه '!N29","v":0},{"$f":"[3]المسائى!N29","v":0}]
[0,1,990,null,null,null,null,null,null,0,null,null,null,null,null,null,null,null,null,null,null,null,null,null,null,null,null,null,null,null,null,null,null,null,null,null,null,{"$f":"[3]Data!D30","v":93330},{"$f":"[3]Data!E30","v":"تفاح بيتى لتر "},-5,{"$f":"[3]الصباحى!Q30","v":0},{"$f":"[3]الصباحى!N30","v":5},{"$f":"'[3]تحميل تجزئه '!N30","v":0},{"$f":"[3]المسائى!N30","v":0}]
[0,1,990,null,null,null,null,null,null,0,null,null,null,null,null,null,null,null,null,null,null,null,null,null,null,null,null,null,null,null,null,null,null,null,null,null,null,{"$f":"[3]Data!D31","v":97150},{"$f":"[3]Data!E31","v":"تفاح لتر كرتون"},-5,{"$f":"[3]الصباحى!Q31","v":0},{"$f":"[3]الصباحى!N31","v":5},{"$f":"'[3]تحميل تجزئه '!N31","v":0},{"$f":"[3]المسائى!N31","v":0}]
[0,1,990,null,null,null,null,null,null,0,null,null,null,null,null,null,null,null,null,null,null,null,null,null,null,null,null,null,null,null,null,null,null,null,null,null,null,{"$f":"[3]Data!D32","v":95960},{"$f":"[3]Data!E32","v":"كوكتيل بيتى لتر"},0,{"$f":"[3]الصباحى!Q32","v":0},{"$f":"[3]الصباحى!N32","v":0},{"$f":"'[3]تحميل تجزئه '!N32","v":0},{"$f":"[3]المسائى!N32","v":0}]
[0,1,990,null,null,null,null,null,null,0,null,null,null,null,null,null,null,null,null,null,null,null,null,null,null,null,null,null,null,null,null,null,null,null,null,null,null,{"$f":"[3]Data!D33","v":97170},{"$f":"[3]Data!E33","v":"كوكتيل لتر كرتون"},-20,{"$f":"[3]الصباحى!Q33","v":0},{"$f":"[3]الصباحى!N33","v":20},{"$f":"'[3]تحميل تجزئه '!N33","v":0},{"$f":"[3]المسائى!N33","v":0}]
[0,1,990,null,null,null,null,null,null,0,null,null,null,null,null,null,null,null,null,null,null,null,null,null,null,null,null,null,null,null,null,null,null,null,null,null,null,{"$f":"[3]Data!D34","v":95970},{"$f":"[3]Data!E34","v":"جوافه بيتى لتر"},0,{"$f":"[3]الصباحى!Q34","v":0},{"$f":"[3]الصباحى!N34","v":0},{"$f":"'[3]تحميل تجزئه '!N34","v":0},{"$f":"[3]المسائى!N34","v":0}]
[0,1,990,null,null,null,null,null,null,0,null,null,null,null,null,null,null,null,null,null,null,null,null,null,null,null,null,null,null,null,null,null,null,null,null,null,null,{"$f":"[3]Data!D35","v":97160},{"$f":"[3]Data!E35","v":"جوافه لتر كرتون"},0,{"$f":"[3]الصباحى!Q35","v":0},{"$f":"[3]الصباحى!N35","v":0},{"$f":"'[3]تحميل تجزئه '!N35","v":0},{"$f":"[3]المسائى!N35","v":0}]
[0,1,990,null,null,null,null,null,null,0,null,null,null,null,null,null,null,null,null,null,null,null,null,null,null,null,null,null,null,null,null,null,null,null,null,null,null,{"$f":"[3]Data!D36","v":95760},{"$f":"[3]Data!E36","v":"مانجو  لتر"},0,{"$f":"[3]الصباحى!Q36","v":0},{"$f":"[3]الصباحى!N36","v":0},{"$f":"'[3]تحميل تجزئه '!N36","v":0},{"$f":"[3]المسائى!N36","v":0}]
[0,1,990,null,null,null,null,null,null,0,null,null,null,null,null,null,null,null,null,null,null,null,null,null,null,null,null,null,null,null,null,null,null,null,null,null,null,{"$f":"[3]Data!D37","v":97180},{"$f":"[3]Data!E37","v":"مانجو لتر كرتون"},-14,{"$f":"[3]الصباحى!Q37","v":0},{"$f":"[3]الصباحى!N37","v":14},{"$f":"'[3]تحميل تجزئه '!N37","v":0},{"$f":"[3]المسائى!N37","v":0}]
[0,1,990,null,null,null,null,null,null,0,null,null,null,null,null,null,null,null,null,null,null,null,null,null,null,null,null,null,null,null,null,null,null,null,null,null,null,{"$f":"[3]Data!D38","v":92830},{"$f":"[3]Data!E38","v":"برتقال  لتر قديم"},0,{"$f":"[3]الصباحى!Q38","v":0},{"$f":"[3]الصباحى!N38","v":0},{"$f":"'[3]تحميل تجزئه '!N38","v":0},{"$f":"[3]المسائى!N38","v":0}]
[0,1,990,null,null,null,null,null,null,0,null,null,null,null,null,null,null,null,null,null,null,null,null,null,null,null,null,null,null,null,null,null,null,null,null,null,null,{"$f":"[3]Data!D39","v":97140},{"$f":"[3]Data!E39","v":"برتقال لتر كرتون"},0,{"$f":"[3]الصباحى!Q39","v":0},{"$f":"[3]الصباحى!N39","v":0},{"$f":"'[3]تحميل تجزئه '!N39","v":0},{"$f":"[3]المسائى!N39","v":0}]
[0,1,990,null,null,null,null,null,null,0,null,null,null,null,null,null,null,null,null,null,null,null,null,null,null,null,null,null,null,null,null,null,null,null,null,null,null,{"$f":"[3]Data!D40","v":95770},{"$f":"[3]Data!E40","v":"اناناس لتر قديم"},-30,{"$f":"[3]الصباحى!Q40","v":0},{"$f":"[3]الصباحى!N40","v":30},{"$f":"'[3]تحميل تجزئه '!N40","v":0},{"$f":"[3]المسائى!N40","v":0}]
[0,1,990,null,null,null,null,null,null,0,null,null,null,null,null,null,null,null,null,null,null,null,null,null,null,null,null,null,null,null,null,null,null,null,null,null,null,{"$f":"[3]Data!D41","v":97130},{"$f":"[3]Data!E41","v":"اناناس لتر كرتون"},-3,{"$f":"[3]الصباحى!Q41","v":0},{"$f":"[3]الصباحى!N41","v":3},{"$f":"'[3]تحميل تجزئه '!N41","v":0},{"$f":"[3]المسائى!N41","v":0}]
[0,1,990,null,null,null,null,null,null,0,null,null,null,null,null,null,null,null,null,null,null,null,null,null,null,null,null,null,null,null,null,null,null,null,null,null,null,{"$f":"[3]Data!D42","v":16370},{"$f":"[3]Data!E42","v":"ع كمثرى لتر"},0,{"$f":"[3]الصباحى!Q42","v":0},{"$f":"[3]الصباحى!N42","v":0},{"$f":"'[3]تحميل تجزئه '!N42","v":0},{"$f":"[3]المسائى!N42","v":0}]
[0,1,990,null,null,null,null,null,null,0,null,null,null,null,null,null,null,null,null,null,null,null,null,null,null,null,null,null,null,null,null,null,null,null,null,null,null,{"$f":"[3]Data!D43","v":16390},{"$f":"[3]Data!E43","v":"ع خوخ لتر"},0,{"$f":"[3]الصباحى!Q43","v":0},{"$f":"[3]الصباحى!N43","v":0},{"$f":"'[3]تحميل تجزئه '!N43","v":0},{"$f":"[3]المسائى!N43","v":0}]
[0,1,990,null,null,null,null,null,null,0,null,null,null,null,null,null,null,null,null,null,null,null,null,null,null,null,null,null,null,null,null,null,null,null,null,null,null,{"$f":"[3]Data!D44","v":91920},{"$f":"[3]Data!E44","v":"عنب بيتى لتر"},-8,{"$f":"[3]الصباحى!Q44","v":0},{"$f":"[3]الصباحى!N44","v":8},{"$f":"'[3]تحميل تجزئه '!N44","v":0},{"$f":"[3]المسائى!N44","v":0}]
[0,1,990,null,null,null,null,null,null,0,null,null,null,null,null,null,null,null,null,null,null,null,null,null,null,null,null,null,null,null,null,null,null,null,null,null,null,{"$f":"[3]Data!D45","v":96250},{"$f":"[3]Data!E45","v":"يوسفى بيتى لتر"},0,{"$f":"[3]الصباحى!Q45","v":0},{"$f":"[3]الصباحى!N45","v":0},{"$f":"'[3]تحميل تجزئه '!N45","v":0},{"$f":"[3]المسائى!N45","v":0}]
[0,1,990,null,null,null,null,null,null,0,null,null,null,null,null,null,null,null,null,null,null,null,null,null,null,null,null,null,null,null,null,null,null,null,null,null,null,{"$f":"[3]Data!D46","v":92740},{"$f":"[3]Data!E46","v":"كل يوم تفاح 180 قديم"},-12,{"$f":"[3]الصباحى!Q46","v":0},{"$f":"[3]الصباحى!N46","v":12},{"$f":"'[3]تحميل تجزئه '!N46","v":0},{"$f":"[3]المسائى!N46","v":0}]
[0,1,990,null,null,null,null,null,null,0,null,null,null,null,null,null,null,null,null,null,null,null,null,null,null,null,null,null,null,null,null,null,null,null,null,null,null,{"$f":"[3]Data!D47","v":16900},{"$f":"[3]Data!E47","v":"تفاح كل يوم 225"},-20,{"$f":"[3]الصباحى!Q47","v":0},{"$f":"[3]الصباحى!N47","v":20},{"$f":"'[3]تحميل تجزئه '!N47","v":0},{"$f":"[3]المسائى!N47","v":0}]
[0,1,990,null,null,null,null,null,null,0,null,null,null,null,null,null,null,null,null,null,null,null,null,null,null,null,null,null,null,null,null,null,null,null,null,null,null,{"$f":"[3]Data!D48","v":92760},{"$f":"[3]Data!E48","v":"كل يوم مانجو 180قديم"},0,{"$f":"[3]الصباحى!Q48","v":0},{"$f":"[3]الصباحى!N48","v":0},{"$f":"'[3]تحميل تجزئه '!N48","v":0},{"$f":"[3]المسائى!N48","v":0}]
[0,1,990,null,null,null,null,null,null,0,null,null,null,null,null,null,null,null,null,null,null,null,null,null,null,null,null,null,null,null,null,null,null,null,null,null,null,{"$f":"[3]Data!D49","v":16910},{"$f":"[3]Data!E49","v":"مانجو كل يوم 225"},0,{"$f":"[3]الصباحى!Q49","v":0},{"$f":"[3]الصباحى!N49","v":0},{"$f":"'[3]تحميل تجزئه '!N49","v":0},{"$f":"[3]المسائى!N49","v":0}]
[0,1,990,null,null,null,null,null,null,0,null,null,null,null,null,null,null,null,null,null,null,null,null,null,null,null,null,null,null,null,null,null,null,null,null,null,null,{"$f":"[3]Data!D50","v":92770},{"$f":"[3]Data!E50","v":"كل يوم جوافه 180قديم"},0,{"$f":"[3]الصباحى!Q50","v":0},{"$f":"[3]الصباحى!N50","v":0},{"$f":"'[3]تحميل تجزئه '!N50","v":0},{"$f":"[3]المسائى!N50","v":0}]
[0,1,990,null,null,null,null,null,null,0,null,null,null,null,null,null,null,null,null,null,null,null,null,null,null,null,null,null,null,null,null,null,null,null,null,null,null,{"$f":"[3]Data!D51","v":16920},{"$f":"[3]Data!E51","v":"جوافه كل يوم 225"},0,{"$f":"[3]الصباحى!Q51","v":0},{"$f":"[3]الصباحى!N51","v":0},{"$f":"'[3]تحميل تجزئه '!N51","v":0},{"$f":"[3]المسائى!N51","v":0}]
[0,1,990,null,null,null,null,null,null,0,null,null,null,null,null,null,null,null,null,null,null,null,null,null,null,null,null,null,null,null,null,null,null,null,null,null,null,{"$f":"[3]Data!D52","v":92750},{"$f":"[3]Data!E52","v":"كل يوم كوكتيل 180قديم"},0,{"$f":"[3]الصباحى!Q52","v":0},{"$f":"[3]الصباحى!N52","v":0},{"$f":"'[3]تحميل تجزئه '!N52","v":0},{"$f":"[3]المسائى!N52","v":0}]
[0,1,990,null,null,null,null,null,null,0,null,null,null,null,null,null,null,null,null,null,null,null,null,null,null,null,null,null,null,null,null,null,null,null,null,null,null,{"$f":"[3]Data!D53","v":16930},{"$f":"[3]Data!E53","v":"كوكتيل كل يوم 225"},0,{"$f":"[3]الصباحى!Q53","v":0},{"$f":"[3]الصباحى!N53","v":0},{"$f":"'[3]تحميل تجزئه '!N53","v":0},{"$f":"[3]المسائى!N53","v":0}]
[0,1,990,null,null,null,null,null,null,0,null,{"$f":"-F48","v":0},null,null,null,null,null,null,null,null,null,null,null,null,null,null,null,null,null,null,null,null,null,null,null,null,null,{"$f":"[3]Data!D54","v":94050},{"$f":"[3]Data!E54","v":"تفاح 900 كل يوم"},0,{"$f":"[3]الصباحى!Q54","v":0},{"$f":"[3]الصباحى!N54","v":0},{"$f":"'[3]تحميل تجزئه '!N54","v":0},{"$f":"[3]المسائى!N54","v":0}]
[0,1,990,null,null,null,null,null,null,0,null,{"$f":"-F49","v":0},null,null,null,null,null,null,null,null,null,null,null,null,null,null,null,null,null,null,null,null,null,null,null,null,null,{"$f":"[3]Data!D55","v":92280},{"$f":"[3]Data!E55","v":"كوكتيل 900 كل يوم"},0,{"$f":"[3]الصباحى!Q55","v":0},{"$f":"[3]الصباحى!N55","v":0},{"$f":"'[3]تحميل تجزئه '!N55","v":0},{"$f":"[3]المسائى!N55","v":0}]
[0,1,990,null,null,null,null,null,null,0,null,0,null,null,null,null,null,null,null,null,null,null,null,null,null,null,null,null,null,null,null,null,null,null,null,null,null,{"$f":"[3]Data!D56","v":92290},{"$f":"[3]Data!E56","v":"جوافه 900 كل يوم"},0,{"$f":"[3]الصباحى!Q56","v":0},{"$f":"[3]الصباحى!N56","v":0},{"$f":"'[3]تحميل تجزئه '!N56","v":0},{"$f":"[3]المسائى!N56","v":0}]
[0,1,990,null,null,null,null,null,null,0,null,0,null,null,null,null,null,null,null,null,null,null,null,null,null,null,null,null,null,null,null,null,null,null,null,null,null,{"$f":"[3]Data!D57","v":92310},{"$f":"[3]Data!E57","v":"مانجو 900 كل يوم"},0,{"$f":"[3]الصباحى!Q57","v":0},{"$f":"[3]الصباحى!N57","v":0},{"$f":"'[3]تحميل تجزئه '!N57","v":0},{"$f":"[3]المسائى!N57","v":0}]
[0,1,990,null,null,null,null,null,null,0,null,0,null,null,null,null,null,null,null,null,null,null,null,null,null,null,null,null,null,null,null,null,null,null,null,null,null,{"$f":"[3]Data!D58","v":16040},{"$f":"[3]Data!E58","v":"تفاح  لتر بلاستيك"},0,{"$f":"[3]الصباحى!Q58","v":0},{"$f":"[3]الصباحى!N58","v":0},{"$f":"'[3]تحميل تجزئه '!N58","v":0},{"$f":"[3]المسائى!N58","v":0}]
[0,1,990,null,null,null,null,null,null,0,null,0,null,null,null,null,null,null,null,null,null,null,null,null,null,null,null,null,null,null,null,null,null,null,null,null,null,{"$f":"[3]Data!D59","v":16030},{"$f":"[3]Data!E59","v":"كوكتيل  لتر بلاستيك"},0,{"$f":"[3]الصباحى!Q59","v":0},{"$f":"[3]الصباحى!N59","v":0},{"$f":"'[3]تحميل تجزئه '!N59","v":0},{"$f":"[3]المسائى!N59","v":0}]
[0,1,990,null,null,null,null,null,null,0,null,0,null,null,null,null,null,null,null,null,null,null,null,null,null,null,null,null,null,null,null,null,null,null,null,null,null,{"$f":"[3]Data!D60","v":16020},{"$f":"[3]Data!E60","v":"جوافه  لتر بلاستيك"},0,{"$f":"[3]الصباحى!Q60","v":0},{"$f":"[3]الصباحى!N60","v":0},{"$f":"'[3]تحميل تجزئه '!N60","v":0},{"$f":"[3]المسائى!N60","v":0}]
[0,1,990,null,null,null,null,null,null,0,null,0,null,null,null,null,null,null,null,null,null,null,null,null,null,null,null,null,null,null,null,null,null,null,null,null,null,{"$f":"[3]Data!D61","v":16010},{"$f":"[3]Data!E61","v":"مانجو  لتر بلاستيك"},0,{"$f":"[3]الصباحى!Q61","v":0},{"$f":"[3]الصباحى!N61","v":0},{"$f":"'[3]تحميل تجزئه '!N61","v":0},{"$f":"[3]المسائى!N61","v":0}]
[0,1,990,null,null,null,null,null,null,0,null,0,null,null,null,null,null,null,null,null,null,null,null,null,null,null,null,null,null,null,null,null,null,null,null,null,null,{"$f":"[3]Data!D62","v":16050},{"$f":"[3]Data!E62","v":"برتقال  لتر بلاستيل"},0,{"$f":"[3]الصباحى!Q62","v":0},{"$f":"[3]الصباحى!N62","v":0},{"$f":"'[3]تحميل تجزئه '!N62","v":0},{"$f":"[3]المسائى!N62","v":0}]
[0,1,990,null,null,null,null,null,null,0,null,0,null,null,null,null,null,null,null,null,null,null,null,null,null,null,null,null,null,null,null,null,null,null,null,null,null,{"$f":"[3]Data!D63","v":16820},{"$f":"[3]Data!E63","v":"تفاح  1.5 لتر"},0,{"$f":"[3]الصباحى!Q63","v":0},{"$f":"[3]الصباحى!N63","v":0},{"$f":"'[3]تحميل تجزئه '!N63","v":0},{"$f":"[3]المسائى!N63","v":0}]
[0,1,990,null,null,null,null,null,null,0,null,0,null,null,null,null,null,null,null,null,null,null,null,null,null,null,null,null,null,null,null,null,null,null,null,null,null,{"$f":"[3]Data!D64","v":16840},{"$f":"[3]Data!E64","v":"كوكتيل  1.5 لتر"},0,{"$f":"[3]الصباحى!Q64","v":0},{"$f":"[3]الصباحى!N64","v":0},{"$f":"'[3]تحميل تجزئه '!N64","v":0},{"$f":"[3]المسائى!N64","v":0}]
[0,1,990,null,null,null,null,null,null,0,null,0,null,null,null,null,null,null,null,null,null,null,null,null,null,null,null,null,null,null,null,null,null,null,null,null,null,{"$f":"[3]Data!D65","v":16830},{"$f":"[3]Data!E65","v":"جوافه  1.5 لتر"},0,{"$f":"[3]الصباحى!Q65","v":0},{"$f":"[3]الصباحى!N65","v":0},{"$f":"'[3]تحميل تجزئه '!N65","v":0},{"$f":"[3]المسائى!N65","v":0}]
[0,1,990,null,null,null,null,null,null,0,null,0,null,null,null,null,null,null,null,null,null,null,null,null,null,null,null,null,null,null,null,null,null,null,null,null,null,{"$f":"[3]Data!D66","v":16850},{"$f":"[3]Data!E66","v":"مانجو  1.5 لتر"},0,{"$f":"[3]الصباحى!Q66","v":0},{"$f":"[3]الصباحى!N66","v":0},{"$f":"'[3]تحميل تجزئه '!N66","v":0},{"$f":"[3]المسائى!N66","v":0}]
[0,1,990,null,null,null,null,null,null,0,null,0,null,null,null,null,null,null,null,null,null,null,null,null,null,null,null,null,null,null,null,null,null,null,null,null,null,{"$f":"[3]Data!D67","v":16340},{"$f":"[3]Data!E67","v":"ع مانجو الفونس 235"},0,{"$f":"[3]الصباحى!Q67","v":0},{"$f":"[3]الصباحى!N67","v":0},{"$f":"'[3]تحميل تجزئه '!N67","v":0},{"$f":"[3]المسائى!N67","v":0}]
[0,1,990,null,null,null,null,null,null,0,null,0,null,null,null,null,null,null,null,null,null,null,null,null,null,null,null,null,null,null,null,null,null,null,null,null,null,{"$f":"[3]Data!D68","v":16360},{"$f":"[3]Data!E68","v":"ع توت 235"},0,{"$f":"[3]الصباحى!Q68","v":0},{"$f":"[3]الصباحى!N68","v":0},{"$f":"'[3]تحميل تجزئه '!N68","v":0},{"$f":"[3]المسائى!N68","v":0}]
[0,1,990,null,null,null,null,null,null,0,null,0,null,null,null,null,null,null,null,null,null,null,null,null,null,null,null,null,null,null,null,null,null,null,null,null,null,{"$f":"[3]Data!D69","v":16380},{"$f":"[3]Data!E69","v":"مانجو لتر الفونس "},0,{"$f":"[3]الصباحى!Q69","v":0},{"$f":"[3]الصباحى!N69","v":0},{"$f":"'[3]تحميل تجزئه '!N69","v":0},{"$f":"[3]المسائى!N69","v":0}]
[0,1,990,null,null,null,null,null,null,0,null,0,null,null,null,null,null,null,null,null,null,null,null,null,null,null,null,null,null,null,null,null,null,null,null,null,null,{"$f":"[3]Data!D70","v":16410},{"$f":"[3]Data!E70","v":"ع توت لتر"},0,{"$f":"[3]الصباحى!Q70","v":0},{"$f":"[3]الصباحى!N70","v":0},{"$f":"'[3]تحميل تجزئه '!N70","v":0},{"$f":"[3]المسائى!N70","v":0}]
[0,1,990,null,null,null,null,null,null,0,null,0,null,null,null,null,null,null,null,null,null,null,null,null,null,null,null,null,null,null,null,null,null,null,null,null,null,{"$f":"[3]Data!D71","v":98220},{"$f":"[3]Data!E71","v":"تفاح كل يوم 900 "},0,{"$f":"[3]الصباحى!Q71","v":0},{"$f":"[3]الصباحى!N71","v":0},{"$f":"'[3]تحميل تجزئه '!N71","v":0},{"$f":"[3]المسائى!N71","v":0}]
[0,1,990,null,null,null,null,null,null,0,null,0,null,null,null,null,null,null,null,null,null,null,null,null,null,null,null,null,null,null,null,null,null,null,null,null,null,{"$f":"[3]Data!D72","v":98240},{"$f":"[3]Data!E72","v":"كوكتيل كل يوم 900 "},{"$f":"+AO66-AP66-AQ66-AR66","v":0},{"$f":"[3]الصباحى!Q72","v":0},{"$f":"[3]الصباحى!N72","v":0},{"$f":"'[3]تحميل تجزئه '!N72","v":0},{"$f":"[3]المسائى!N72","v":0}]
[0,1,990,null,null,null,null,null,null,{"$f":"VLOOKUP(E67,AL:AO,3,0)","v":0},null,0,null,null,null,null,null,null,null,null,null,null,null,null,null,null,null,null,null,null,null,null,null,null,null,null,null,{"$f":"[3]Data!D73","v":98210},{"$f":"[3]Data!E73","v":"جوافه كل يوم 900 "},0,{"$f":"[3]الصباحى!Q73","v":0},{"$f":"[3]الصباحى!N73","v":0},{"$f":"'[3]تحميل تجزئه '!N73","v":0},{"$f":"[3]المسائى!N73","v":0}]
[{"$f":"IF(D68=D67,SUMIF(D67:D67,D68,A67),A67+1)","v":0},1,990,null,null,null,null,null,null,0,null,0,null,null,null,null,null,null,null,null,null,null,null,null,null,null,null,null,null,null,null,null,null,null,null,null,null,{"$f":"[3]Data!D74","v":98230},{"$f":"[3]Data!E74","v":"مانجو كل يوم 900 "},0,{"$f":"[3]الصباحى!Q74","v":0},{"$f":"[3]الصباحى!N74","v":0},{"$f":"'[3]تحميل تجزئه '!N74","v":0},{"$f":"[3]المسائى!N74","v":0}]
[0,1,990,null,null,null,null,null,null,0,null,0,null,null,null,null,null,null,null,null,null,null,null,null,null,null,null,null,null,null,null,null,null,null,null,null,null,{"$f":"[3]Data!D75","v":0},{"$f":"[3]Data!E75","v":0},0,{"$f":"[3]الصباحى!Q75","v":0},{"$f":"[3]الصباحى!N75","v":0},{"$f":"'[3]تحميل تجزئه '!N75","v":0},{"$f":"[3]المسائى!N75","v":0}]
[0,1,990,null,null,null,null,null,null,0,null,0,null,null,null,null,null,null,null,null,null,null,null,null,null,null,null,null,null,null,null,null,null,null,null,null,null,{"$f":"[3]Data!D76","v":0},{"$f":"[3]Data!E76","v":0},0,{"$f":"[3]الصباحى!Q76","v":0},{"$f":"[3]الصباحى!N76","v":0},{"$f":"'[3]تحميل تجزئه '!N76","v":0},{"$f":"[3]المسائى!N76","v":0}]
[0,1,990,null,null,null,null,null,null,0,null,0,null,null,null,null,null,null,null,null,null,null,null,null,null,null,null,null,null,null,null,null,null,null,null,null,null,{"$f":"[3]Data!D77","v":0},{"$f":"[3]Data!E77","v":0},0,{"$f":"[3]الصباحى!Q77","v":0},{"$f":"[3]الصباحى!N77","v":0},{"$f":"'[3]تحميل تجزئه '!N77","v":0},{"$f":"[3]المسائى!N77","v":0}]
[0,1,990,null,null,null,null,null,null,0,null,0,null,null,null,null,null,null,null,null,null,null,null,null,null,null,null,null,null,null,null,null,null,null,null,null,null,{"$f":"[3]Data!D78","v":0},{"$f":"[3]Data!E78","v":0},0,{"$f":"[3]الصباحى!Q78","v":0},{"$f":"[3]الصباحى!N78","v":0},{"$f":"'[3]تحميل تجزئه '!N78","v":0},{"$f":"[3]المسائى!N78","v":0}]
[0,1,990,null,null,null,null,null,null,0,null,0,null,null,null,null,null,null,null,null,null,null,null,null,null,null,null,null,null,null,null,null,null,null,null,null,null,{"$f":"[3]Data!D79","v":0},{"$f":"[3]Data!E79","v":0},0,{"$f":"[3]الصباحى!Q79","v":0},{"$f":"[3]الصباحى!N79","v":0},{"$f":"'[3]تحميل تجزئه '!N79","v":0},{"$f":"[3]المسائى!N79","v":0}]
[0,1,990,null,null,null,null,null,null,0,null,0,null,null,null,null,null,null,null,null,null,null,null,null,null,null,null,null,null,null,null,null,null,null,null,null,null,{"$f":"[3]Data!D80","v":0},{"$f":"[3]Data!E80","v":0},0,{"$f":"[3]الصباحى!Q80","v":0},{"$f":"[3]الصباحى!N80","v":0},{"$f":"'[3]تحميل تجزئه '!N80","v":0},{"$f":"[3]المسائى!N80","v":0}]
[0,1,990,null,null,null,null,null,null,0,null,0,null,null,null,null,null,null,null,null,null,null,null,null,null,null,null,null,null,null,null,null,null,null,null,null,null,{"$f":"[3]Data!D81","v":0},{"$f":"[3]Data!E81","v":0},0,{"$f":"[3]الصباحى!Q81","v":0},{"$f":"[3]الصباحى!N81","v":0},{"$f":"'[3]تحميل تجزئه '!N81","v":0},{"$f":"[3]المسائى!N81","v":0}]
[0,1,990,null,null,null,null,null,null,0,null,0,null,null,null,null,null,null,null,null,null,null,null,null,null,null,null,null,null,null,null,null,null,null,null,null,null,{"$f":"[3]Data!D82","v":16070},{"$f":"[3]Data!E82","v":"ح بيتى 1لتر كامل 13"},0,{"$f":"[3]الصباحى!Q82","v":0},{"$f":"[3]الصباحى!N82","v":0},{"$f":"'[3]تحميل تجزئه '!N82","v":0},{"$f":"[3]المسائى!N82","v":0}]
[0,1,990,null,null,null,null,null,null,0,null,0,null,null,null,null,null,null,null,null,null,null,null,null,null,null,null,null,null,null,null,null,null,null,null,null,null,{"$f":"[3]Data!D83","v":16860},{"$f":"[3]Data!E83","v":"حليب بيـــــــتى لتر كامل "},0,{"$f":"[3]الصباحى!Q83","v":0},{"$f":"[3]الصباحى!N83","v":0},{"$f":"'[3]تحميل تجزئه '!N83","v":0},{"$f":"[3]المسائى!N83","v":0}]
[0,1,990,null,null,null,null,null,null,0,null,0,null,null,null,null,null,null,null,null,null,null,null,null,null,null,null,null,null,null,null,null,null,null,null,null,null,{"$f":"[3]Data!D84","v":16080},{"$f":"[3]Data!E84","v":" بيتى 1لتر خالى 13"},0,{"$f":"[3]الصباحى!Q84","v":0},{"$f":"[3]الصباحى!N84","v":0},{"$f":"'[3]تحميل تجزئه '!N84","v":0},{"$f":"[3]المسائى!N84","v":0}]
[0,1,990,null,null,null,null,null,null,0,null,0,null,null,null,null,null,null,null,null,null,null,null,null,null,null,null,null,null,null,null,null,null,null,null,null,null,{"$f":"[3]Data!D85","v":16870},{"$f":"[3]Data!E85","v":"حليب بيـــــــتى لتر منزوع"},0,{"$f":"[3]الصباحى!Q85","v":0},{"$f":"[3]الصباحى!N85","v":0},{"$f":"'[3]تحميل تجزئه '!N85","v":0},{"$f":"[3]المسائى!N85","v":0}]
[0,1,990,null,null,null,null,null,null,0,null,null,null,null,null,null,null,null,null,null,null,null,null,null,null,null,null,null,null,null,null,null,null,null,null,null,null,{"$f":"[3]Data!D86","v":0},{"$f":"[3]Data!E86","v":0},0,{"$f":"[3]الصباحى!Q86","v":0},{"$f":"[3]الصباحى!N86","v":0},{"$f":"'[3]تحميل تجزئه '!N86","v":0},{"$f":"[3]المسائى!N86","v":0}]
[0,1,990,null,null,null,null,null,null,0,null,null,null,null,null,null,null,null,null,null,null,null,null,null,null,null,null,null,null,null,null,null,null,null,null,null,null,{"$f":"[3]Data!D87","v":95440},{"$f":"[3]Data!E87","v":" بيتى 1.400 كامل "},0,{"$f":"[3]الصباحى!Q87","v":0},{"$f":"[3]الصباحى!N87","v":0},{"$f":"'[3]تحميل تجزئه '!N87","v":0},{"$f":"[3]المسائى!N87","v":0}]
[0,1,990,null,null,null,null,null,null,0,null,null,null,null,null,null,null,null,null,null,null,null,null,null,null,null,null,null,null,null,null,null,null,null,null,null,null,{"$f":"[3]Data!D88","v":95450},{"$f":"[3]Data!E88","v":" بيتى 1.400 خالى"},0,{"$f":"[3]الصباحى!Q88","v":0},{"$f":"[3]الصباحى!N88","v":0},{"$f":"'[3]تحميل تجزئه '!N88","v":0},{"$f":"[3]المسائى!N88","v":0}]
[0,1,990,null,null,null,null,null,null,0,null,null,null,null,null,null,null,null,null,null,null,null,null,null,null,null,null,null,null,null,null,null,null,null,null,null,null,{"$f":"[3]Data!D89","v":0},{"$f":"[3]Data!E89","v":0},0,{"$f":"[3]الصباحى!Q89","v":0},{"$f":"[3]الصباحى!N89","v":0},{"$f":"'[3]تحميل تجزئه '!N89","v":0},{"$f":"[3]المسائى!N89","v":0}]
[0,1,990,null,null,null,null,null,null,0,null,null,null,null,null,null,null,null,null,null,null,null,null,null,null,null,null,null,null,null,null,null,null,null,null,null,null,{"$f":"[3]Data!D90","v":97390},{"$f":"[3]Data!E90","v":"حليب مراعى كامل بلاستيك"},0,{"$f":"[3]الصباحى!Q90","v":0},{"$f":"[3]الصباحى!N90","v":0},{"$f":"'[3]تحميل تجزئه '!N90","v":0},{"$f":"[3]المسائى!N90","v":0}]
[0,1,990,null,null,null,null,null,null,0,null,null,null,null,null,null,null,null,null,null,null,null,null,null,null,null,null,null,null,null,null,null,null,null,null,null,null,{"$f":"[3]Data!D91","v":16740},{"$f":"[3]Data!E91","v":"حليب مراعى خالى بلاستيك"},0,{"$f":"[3]الصباحى!Q91","v":0},{"$f":"[3]الصباحى!N91","v":0},{"$f":"'[3]تحميل تجزئه '!N91","v":0},{"$f":"[3]المسائى!N91","v":0}]
[0,1,990,null,null,null,null,null,null,0,null,null,null,null,null,null,null,null,null,null,null,null,null,null,null,null,null,null,null,null,null,null,null,null,null,null,null,{"$f":"[3]Data!D92","v":0},{"$f":"[3]Data!E92","v":0},0,{"$f":"[3]الصباحى!Q92","v":0},{"$f":"[3]الصباحى!N92","v":0},{"$f":"'[3]تحميل تجزئه '!N92","v":0},{"$f":"[3]المسائى!N92","v":0}]
[0,1,990,null,null,null,null,null,null,0,null,null,null,null,null,null,null,null,null,null,null,null,null,null,null,null,null,null,null,null,null,null,null,null,null,null,null,{"$f":"[3]Data!D93","v":94860},{"$f":"[3]Data!E93","v":"حليب مراعى 1.500 كامل "},0,{"$f":"[3]الصباحى!Q93","v":0},{"$f":"[3]الصباحى!N93","v":0},{"$f":"'[3]تحميل تجزئه '!N93","v":0},{"$f":"[3]المسائى!N93","v":0}]
[0,1,990,null,null,null,null,null,null,0,null,null,null,null,null,null,null,null,null,null,null,null,null,null,null,null,null,null,null,null,null,null,null,null,null,null,null,{"$f":"[3]Data!D94","v":97680},{"$f":"[3]Data!E94","v":" حليب مراعى 1.500 خالى"},0,{"$f":"[3]الصباحى!Q94","v":0},{"$f":"[3]الصباحى!N94","v":0},{"$f":"'[3]تحميل تجزئه '!N94","v":0},{"$f":"[3]المسائى!N94","v":0}]
[0,1,990,null,null,null,null,null,null,0,null,null,null,null,null,null,null,null,null,null,null,null,null,null,null,null,null,null,null,null,null,null,null,null,null,null,null,{"$f":"[3]Data!D95","v":0},{"$f":"[3]Data!E95","v":0},0,{"$f":"[3]الصباحى!Q95","v":0},{"$f":"[3]الصباحى!N95","v":0},{"$f":"'[3]تحميل تجزئه '!N95","v":0},{"$f":"[3]المسائى!N95","v":0}]
[0,1,990,null,null,null,null,null,null,0,null,null,null,null,null,null,null,null,null,null,null,null,null,null,null,null,null,null,null,null,null,null,null,null,null,null,null,{"$f":"[3]Data!D96","v":91450},{"$f":"[3]Data!E96","v":"حليب مراعى كامل 1 لتر كرتون"},0,{"$f":"[3]الصباحى!Q96","v":0},{"$f":"[3]الصباحى!N96","v":0},{"$f":"'[3]تحميل تجزئه '!N96","v":0},{"$f":"[3]المسائى!N96","v":0}]
[0,1,990,null,null,null,null,null,null,0,null,null,null,null,null,null,null,null,null,null,null,null,null,null,null,null,null,null,null,null,null,null,null,null,null,null,null,{"$f":"[3]Data!D97","v":91470},{"$f":"[3]Data!E97","v":"حليب مراعى خالى 1 لتر كرتون"},0,{"$f":"[3]الصباحى!Q97","v":0},{"$f":"[3]الصباحى!N97","v":0},{"$f":"'[3]تحميل تجزئه '!N97","v":0},{"$f":"[3]المسائى!N97","v":0}]
[0,1,990,null,null,null,null,null,null,0,null,null,null,null,null,null,null,null,null,null,null,null,null,null,null,null,null,null,null,null,null,null,null,null,null,null,null,{"$f":"[3]Data!D98","v":91460},{"$f":"[3]Data!E98","v":"حليب مراعى  2⅟ دسم "},0,{"$f":"[3]الصباحى!Q98","v":0},{"$f":"[3]الصباحى!N98","v":0},{"$f":"'[3]تحميل تجزئه '!N98","v":0},{"$f":"[3]المسائى!N98","v":0}]
[0,1,990,null,null,null,null,null,null,0,null,null,null,null,null,null,null,null,null,null,null,null,null,null,null,null,null,null,null,null,null,null,null,null,null,null,null,{"$f":"[3]Data!D99","v":0},{"$f":"[3]Data!E99","v":0},0,{"$f":"[3]الصباحى!Q99","v":0},{"$f":"[3]الصباحى!N99","v":0},{"$f":"'[3]تحميل تجزئه '!N99","v":0},{"$f":"[3]المسائى!N99","v":0}]
[0,1,990,null,null,null,null,null,null,0,null,null,null,null,null,null,null,null,null,null,null,null,null,null,null,null,null,null,null,null,null,null,null,null,null,null,null,{"$f":"[3]Data!D100","v":91480},{"$f":"[3]Data!E100","v":"مراعى كامل 750  "},0,{"$f":"[3]الصباحى!Q100","v":0},{"$f":"[3]الصباحى!N100","v":0},{"$f":"'[3]تحميل تجزئه '!N100","v":0},{"$f":"[3]المسائى!N100","v":0}]
[0,1,990,null,null,null,null,null,null,0,null,null,null,null,null,null,null,null,null,null,null,null,null,null,null,null,null,null,null,null,null,null,null,null,null,null,null,{"$f":"[3]Data!D101","v":91490},{"$f":"[3]Data!E101","v":"مراعى خالى 750  "},0,{"$f":"[3]الصباحى!Q101","v":0},{"$f":"[3]الصباحى!N101","v":0},{"$f":"'[3]تحميل تجزئه '!N101","v":0},{"$f":"[3]المسائى!N101","v":0}]
[0,1,990,null,null,null,null,null,null,0,null,null,null,null,null,null,null,null,null,null,null,null,null,null,null,null,null,null,null,null,null,null,null,null,null,null,null,{"$f":"[3]Data!D102","v":0},{"$f":"[3]Data!E102","v":0},0,{"$f":"[3]الصباحى!Q102","v":0},{"$f":"[3]الصباحى!N102","v":0},{"$f":"'[3]تحميل تجزئه '!N102","v":0},{"$f":"[3]المسائى!N102","v":0}]
[0,1,990,null,null,null,null,null,null,0,null,null,null,null,null,null,null,null,null,null,null,null,null,null,null,null,null,null,null,null,null,null,null,null,null,null,null,{"$f":"[3]Data!D103","v":95180},{"$f":"[3]Data!E103","v":"حليب  مراعى 200مل "},0,{"$f":"[3]الصباحى!Q103","v":0},{"$f":"[3]الصباحى!N103","v":0},{"$f":"'[3]تحميل تجزئه '!N103","v":0},{"$f":"[3]المسائى!N103","v":0}]
[0,1,990,null,null,null,null,null,null,0,null,null,null,null,null,null,null,null,null,null,null,null,null,null,null,null,null,null,null,null,null,null,null,null,null,null,null,{"$f":"[3]Data!D104","v":95430},{"$f":"[3]Data!E104","v":"حليب محلى بالموز"},0,{"$f":"[3]الصباحى!Q104","v":0},{"$f":"[3]الصباحى!N104","v":0},{"$f":"'[3]تحميل تجزئه '!N104","v":0},{"$f":"[3]المسائى!N104","v":0}]
[0,1,990,null,null,null,null,null,null,0,null,null,null,null,null,null,null,null,null,null,null,null,null,null,null,null,null,null,null,null,null,null,null,null,null,null,null,{"$f":"[3]Data!D105","v":95190},{"$f":"[3]Data!E105","v":"حليب محلى بالشيكولاته"},0,{"$f":"[3]الصباحى!Q105","v":0},{"$f":"[3]الصباحى!N105","v":0},{"$f":"'[3]تحميل تجزئه '!N105","v":0},{"$f":"[3]المسائى!N105","v":0}]
[0,1,990,null,null,null,null,null,null,0,null,null,null,null,null,null,null,null,null,null,null,null,null,null,null,null,null,null,null,null,null,null,null,null,null,null,null,{"$f":"[3]Data!D106","v":95200},{"$f":"[3]Data!E106","v":"حليب محلى بالفراوله"},0,{"$f":"[3]الصباحى!Q106","v":0},{"$f":"[3]الصباحى!N106","v":0},{"$f":"'[3]تحميل تجزئه '!N106","v":0},{"$f":"[3]المسائى!N106","v":0}]
[0,1,990,null,null,null,null,null,null,0,null,null,null,null,null,null,null,null,null,null,null,null,null,null,null,null,null,null,null,null,null,null,null,null,null,null,null,{"$f":"[3]Data!D107","v":94060},{"$f":"[3]Data!E107","v":"محلى تــــــوفى  "},0,{"$f":"[3]الصباحى!Q107","v":0},{"$f":"[3]الصباحى!N107","v":0},{"$f":"'[3]تحميل تجزئه '!N107","v":0},{"$f":"[3]المسائى!N107","v":0}]
[0,1,990,null,null,null,null,null,null,0,null,null,null,null,null,null,null,null,null,null,null,null,null,null,null,null,null,null,null,null,null,null,null,null,null,null,null,{"$f":"[3]Data!D108","v":0},{"$f":"[3]Data!E108","v":0},0,{"$f":"[3]الصباحى!Q108","v":0},{"$f":"[3]الصباحى!N108","v":0},{"$f":"'[3]تحميل تجزئه '!N108","v":0},{"$f":"[3]المسائى!N108","v":0}]
[0,1,990,null,null,null,null,null,null,0,null,null,null,null,null,null,null,null,null,null,null,null,null,null,null,null,null,null,null,null,null,null,null,null,null,null,null,{"$f":"[3]Data!D109","v":95790},{"$f":"[3]Data!E109","v":"ح  موز  وفر (سليم )"},0,{"$f":"[3]الصباحى!Q109","v":0},{"$f":"[3]الصباحى!N109","v":0},{"$f":"'[3]تحميل تجزئه '!N109","v":0},{"$f":"[3]المسائى!N109","v":0}]
[0,1,990,null,null,null,null,null,null,0,null,null,null,null,null,null,null,null,null,null,null,null,null,null,null,null,null,null,null,null,null,null,null,null,null,null,null,{"$f":"[3]Data!D110","v":91790},{"$f":"[3]Data!E110","v":"ح  شيكولاته وفر( سليم )"},0,{"$f":"[3]الصباحى!Q110","v":0},{"$f":"[3]الصباحى!N110","v":0},{"$f":"'[3]تحميل تجزئه '!N110","v":0},{"$f":"[3]المسائى!N110","v":0}]
[0,1,990,null,null,null,null,null,null,0,null,null,null,null,null,null,null,null,null,null,null,null,null,null,null,null,null,null,null,null,null,null,null,null,null,null,null,{"$f":"[3]Data!D111","v":95150},{"$f":"[3]Data!E111","v":"ح  فراوله وفر  ( سليم )"},0,{"$f":"[3]الصباحى!Q111","v":0},{"$f":"[3]الصباحى!N111","v":0},{"$f":"'[3]تحميل تجزئه '!N111","v":0},{"$f":"[3]المسائى!N111","v":0}]
[0,1,990,null,null,null,null,null,null,0,null,null,null,null,null,null,null,null,null,null,null,null,null,null,null,null,null,null,null,null,null,null,null,null,null,null,null,{"$f":"[3]Data!D112","v":91016},{"$f":"[3]Data!E112","v":" تـــــــوفى  عرض"},0,{"$f":"[3]الصباحى!Q112","v":0},{"$f":"[3]الصباحى!N112","v":0},{"$f":"'[3]تحميل تجزئه '!N112","v":0},{"$f":"[3]المسائى!N112","v":0}]
[0,1,990,null,null,null,null,null,null,0,null,null,null,null,null,null,null,null,null,null,null,null,null,null,null,null,null,null,null,null,null,null,null,null,null,null,null,{"$f":"[3]Data!D113","v":16720},{"$f":"[3]Data!E113","v":"ستارز شيكولاته 150مل"},0,{"$f":"[3]الصباحى!Q113","v":0},{"$f":"[3]الصباحى!N113","v":0},{"$f":"'[3]تحميل تجزئه '!N113","v":0},{"$f":"[3]المسائى!N113","v":0}]
[0,1,990,null,null,null,null,null,null,0,null,null,null,null,null,null,null,null,null,null,null,null,null,null,null,null,null,null,null,null,null,null,null,null,null,null,null,{"$f":"[3]Data!D114","v":16730},{"$f":"[3]Data!E114","v":"ستارز فانيليا 150 مل"},0,{"$f":"[3]الصباحى!Q114","v":0},{"$f":"[3]الصباحى!N114","v":0},{"$f":"'[3]تحميل تجزئه '!N114","v":0},{"$f":"[3]المسائى!N114","v":0}]
[0,1,990,null,null,null,null,null,null,0,null,null,null,null,null,null,null,null,null,null,null,null,null,null,null,null,null,null,null,null,null,null,null,null,null,null,null,{"$f":"[3]Data!D115","v":0},{"$f":"[3]Data!E115","v":0},0,{"$f":"[3]الصباحى!Q115","v":0},{"$f":"[3]الصباحى!N115","v":0},{"$f":"'[3]تحميل تجزئه '!N115","v":0},{"$f":"[3]المسائى!N115","v":0}]
[0,1,990,null,null,null,null,null,null,0,null,null,null,null,null,null,null,null,null,null,null,null,null,null,null,null,null,null,null,null,null,null,null,null,null,null,null,{"$f":"[3]Data!D116","v":92840},{"$f":"[3]Data!E116","v":"مراعى 200مل 5+1"},0,{"$f":"[3]الصباحى!Q116","v":0},{"$f":"[3]الصباحى!N116","v":0},{"$f":"'[3]تحميل تجزئه '!N116","v":0},{"$f":"[3]المسائى!N116","v":0}]
[0,1,990,null,null,null,null,null,null,0,null,null,null,null,null,null,null,null,null,null,null,null,null,null,null,null,null,null,null,null,null,null,null,null,null,null,null,{"$f":"[3]Data!D117","v":93380},{"$f":"[3]Data!E117","v":"ح  موز    5+1"},0,{"$f":"[3]الصباحى!Q117","v":0},{"$f":"[3]الصباحى!N117","v":0},{"$f":"'[3]تحميل تجزئه '!N117","v":0},{"$f":"[3]المسائى!N117","v":0}]
[0,1,990,null,null,null,null,null,null,0,null,null,null,null,null,null,null,null,null,null,null,null,null,null,null,null,null,null,null,null,null,null,null,null,null,null,null,{"$f":"[3]Data!D118","v":93360},{"$f":"[3]Data!E118","v":"ح  شيكولاته    5+1"},0,{"$f":"[3]الصباحى!Q118","v":0},{"$f":"[3]الصباحى!N118","v":0},{"$f":"'[3]تحميل تجزئه '!N118","v":0},{"$f":"[3]المسائى!N118","v":0}]
[0,1,990,null,null,null,null,null,null,0,null,null,null,null,null,null,null,null,null,null,null,null,null,null,null,null,null,null,null,null,null,null,null,null,null,null,null,{"$f":"[3]Data!D119","v":93370},{"$f":"[3]Data!E119","v":"ح  فراوله    5+1"},0,{"$f":"[3]الصباحى!Q119","v":0},{"$f":"[3]الصباحى!N119","v":0},{"$f":"'[3]تحميل تجزئه '!N119","v":0},{"$f":"[3]المسائى!N119","v":0}]
[0,1,990,null,null,null,null,null,null,0,null,null,null,null,null,null,null,null,null,null,null,null,null,null,null,null,null,null,null,null,null,null,null,null,null,null,null,{"$f":"[3]Data!D120","v":0},{"$f":"[3]Data!E120","v":0},0,{"$f":"[3]الصباحى!Q120","v":0},{"$f":"[3]الصباحى!N120","v":0},{"$f":"'[3]تحميل تجزئه '!N120","v":0},{"$f":"[3]المسائى!N120","v":0}]
[0,1,990,null,null,null,null,null,null,0,null,null,null,null,null,null,null,null,null,null,null,null,null,null,null,null,null,null,null,null,null,null,null,null,null,null,null,{"$f":"[3]Data!D121","v":92610},{"$f":"[3]Data!E121","v":" مراعى  (اقتصادى) كرتون"},0,{"$f":"[3]الصباحى!Q121","v":0},{"$f":"[3]الصباحى!N121","v":0},{"$f":"'[3]تحميل تجزئه '!N121","v":0},{"$f":"[3]المسائى!N121","v":0}]
[0,1,990,null,null,null,null,null,null,0,null,null,null,null,null,null,null,null,null,null,null,null,null,null,null,null,null,null,null,null,null,null,null,null,null,null,null,{"$f":"[3]Data!D122","v":98550},{"$f":"[3]Data!E122","v":"مراعى  لتر عرض 4 عبوات بلاستيك"},0,{"$f":"[3]الصباحى!Q122","v":0},{"$f":"[3]الصباحى!N122","v":0},{"$f":"'[3]تحميل تجزئه '!N122","v":0},{"$f":"[3]المسائى!N122","v":0}]
[0,1,990,null,null,null,null,null,null,0,null,null,null,null,null,null,null,null,null,null,null,null,null,null,null,null,null,null,null,null,null,null,null,null,null,null,null,{"$f":"[3]Data!D123","v":91036},{"$f":"[3]Data!E123","v":"خالى  لتر 4 عبوات PET"},0,{"$f":"[3]الصباحى!Q123","v":0},{"$f":"[3]الصباحى!N123","v":0},{"$f":"'[3]تحميل تجزئه '!N123","v":0},{"$f":"[3]المسائى!N123","v":0}]
[0,1,990,null,null,null,null,null,null,0,null,null,null,null,null,null,null,null,null,null,null,null,null,null,null,null,null,null,null,null,null,null,null,null,null,null,null,{"$f":"[3]Data!D124","v":92520},{"$f":"[3]Data!E124","v":"ح كل يوم 500 جم"},0,{"$f":"[3]الصباحى!Q124","v":0},{"$f":"[3]الصباحى!N124","v":0},{"$f":"'[3]تحميل تجزئه '!N124","v":0},{"$f":"[3]المسائى!N124","v":0}]
[0,1,990,null,null,null,null,null,null,0,null,null,null,null,null,null,null,null,null,null,null,null,null,null,null,null,null,null,null,null,null,null,null,null,null,null,null,{"$f":"[3]Data!D125","v":91033},{"$f":"[3]Data!E125","v":"ستارز 5+1  150مل"},0,{"$f":"[3]الصباحى!Q125","v":0},{"$f":"[3]الصباحى!N125","v":0},{"$f":"'[3]تحميل تجزئه '!N125","v":0},{"$f":"[3]المسائى!N125","v":0}]
[0,1,990,null,null,null,null,null,null,0,null,null,null,null,null,null,null,null,null,null,null,null,null,null,null,null,null,null,null,null,null,null,null,null,null,null,null,{"$f":"[3]Data!D126","v":91034},{"$f":"[3]Data!E126","v":"ستارز فانيليا5+1  150مل"},0,{"$f":"[3]الصباحى!Q126","v":0},{"$f":"[3]الصباحى!N126","v":0},{"$f":"'[3]تحميل تجزئه '!N126","v":0},{"$f":"[3]المسائى!N126","v":0}]
[0,1,990,null,null,null,null,null,null,0,null,null,null,null,null,null,null,null,null,null,null,null,null,null,null,null,null,null,null,null,null,null,null,null,null,null,null,{"$f":"[3]Data!D127","v":0},{"$f":"[3]Data!E127","v":0},0,{"$f":"[3]الصباحى!Q127","v":0},{"$f":"[3]الصباحى!N127","v":0},{"$f":"'[3]تحميل تجزئه '!N127","v":0},{"$f":"[3]المسائى!N127","v":0}]
[0,1,990,null,null,null,null,null,null,0,null,null,null,null,null,null,null,null,null,null,null,null,null,null,null,null,null,null,null,null,null,null,null,null,null,null,null,{"$f":"[3]Data!D128","v":1},{"$f":"[3]Data!E128","v":"جوله فارغه"},0,{"$f":"[3]الصباحى!Q128","v":0},{"$f":"[3]الصباحى!N128","v":0},{"$f":"'[3]تحميل تجزئه '!N128","v":0},{"$f":"[3]المسائى!N128","v":0}]
[0,1,990,null,null,null,null,null,null,0,null,null,null,null,null,null,null,null,null,null,null,null,null,null,null,null,null,null,null,null,null,null,null,null,null,null,null,{"$f":"[3]Data!D129","v":0},{"$f":"[3]Data!E129","v":0},0,{"$f":"[3]الصباحى!Q129","v":0},{"$f":"[3]الصباحى!N129","v":0},{"$f":"'[3]تحميل تجزئه '!N129","v":0},{"$f":"[3]المسائى!N129","v":0}]
[0,1,990,null,null,null,null,null,null,0,null,null,null,null,null,null,null,null,null,null,null,null,null,null,null,null,null,null,null,null,null,null,null,null,null,null,null,{"$f":"[3]Data!D130","v":0},{"$f":"[3]Data!E130","v":0},0,{"$f":"[3]الصباحى!Q130","v":0},{"$f":"[3]الصباحى!N130","v":0},{"$f":"'[3]تحميل تجزئه '!N130","v":0},{"$f":"[3]المسائى!N130","v":0}]
[0,1,990,null,null,null,null,null,null,0,null,null,null,null,null,null,null,null,null,null,null,null,null,null,null,null,null,null,null,null,null,null,null,null,null,null,null,{"$f":"[3]Data!D131","v":0},{"$f":"[3]Data!E131","v":0},0,{"$f":"[3]الصباحى!Q131","v":0},{"$f":"[3]الصباحى!N131","v":0},{"$f":"'[3]تحميل تجزئه '!N131","v":0},{"$f":"[3]المسائى!N131","v":0}]
[0,1,990,null,null,null,null,null,null,0,null,null,null,null,null,null,null,null,null,null,null,null,null,null,null,null,null,null,null,null,null,null,null,null,null,null,null,{"$f":"[3]Data!D132","v":0},{"$f":"[3]Data!E132","v":0},0,{"$f":"[3]الصباحى!Q132","v":0},{"$f":"[3]الصباحى!N132","v":0},{"$f":"'[3]تحميل تجزئه '!N132","v":0},{"$f":"[3]المسائى!N132","v":0}]
[0,1,990,null,null,null,null,null,null,0,null,null,null,null,null,null,null,null,null,null,null,null,null,null,null,null,null,null,null,null,null,null,null,null,null,null,null,{"$f":"[3]Data!D133","v":0},{"$f":"[3]Data!E133","v":0},0,{"$f":"[3]الصباحى!Q133","v":0},{"$f":"[3]الصباحى!N133","v":0},{"$f":"'[3]تحميل تجزئه '!N133","v":0},{"$f":"[3]المسائى!N133","v":0}]
[0,1,990,null,null,null,null,null,null,0,null,null,null,null,null,null,null,null,null,null,null,null,null,null,null,null,null,null,null,null,null,null,null,null,null,null,null,{"$f":"[3]Data!D134","v":0},{"$f":"[3]Data!E134","v":0},0,{"$f":"[3]الصباحى!Q134","v":0},{"$f":"[3]الصباحى!N134","v":0},{"$f":"'[3]تحميل تجزئه '!N134","v":0},{"$f":"[3]المسائى!N134","v":0}]
[0,1,990,null,null,null,null,null,null,0,null,null,null,null,null,null,null,null,null,null,null,null,null,null,null,null,null,null,null,null,null,null,null,null,null,null,null,{"$f":"[3]Data!D135","v":0},{"$f":"[3]Data!E135","v":0},0,{"$f":"[3]الصباحى!Q135","v":0},{"$f":"[3]الصباحى!N135","v":0},{"$f":"'[3]تحميل تجزئه '!N135","v":0},{"$f":"[3]المسائى!N135","v":0}]
[0,1,990,null,null,null,null,null,null,0,null,null,null,null,null,null,null,null,null,null,null,null,null,null,null,null,null,null,null,null,null,null,null,null,null,null,null,{"$f":"[3]Data!D136","v":0},{"$f":"[3]Data!E136","v":0},{"$f":"+AO130-AP130-AQ130-AR130","v":0},{"$f":"[3]الصباحى!Q136","v":0},{"$f":"[3]الصباحى!N136","v":0},{"$f":"'[3]تحميل تجزئه '!N136","v":0},{"$f":"[3]المسائى!N136","v":0}]
[0,1,990,null,null,null,null,null,null,{"$f":"VLOOKUP(E131,AL:AO,3,0)","v":0},null,null,null,null,null,null,null,null,null,null,null,null,null,null,null,null,null,null,null,null,null,null,null,null,null,null,null,{"$f":"[3]Data!D137","v":91190},{"$f":"[3]Data!E137","v":"تـــــوت 100 جم"},0,{"$f":"[3]الصباحى!Q137","v":0},{"$f":"[3]الصباحى!N137","v":0},{"$f":"'[3]تحميل تجزئه '!N137","v":0},{"$f":"[3]المسائى!N137","v":0}]
[{"$f":"IF(D132=D131,SUMIF(D131:D131,D132,A131),A131+1)","v":0},1,990,null,null,null,null,null,null,0,null,null,null,null,null,null,null,null,null,null,null,null,null,null,null,null,null,null,null,null,null,null,null,null,null,null,null,{"$f":"[3]Data!D138","v":91280},{"$f":"[3]Data!E138","v":"مــــــــانجـــو110 جم"},0,{"$f":"[3]الصباحى!Q138","v":0},{"$f":"[3]الصباحى!N138","v":0},{"$f":"'[3]تحميل تجزئه '!N138","v":0},{"$f":"[3]المسائى!N138","v":0}]
[0,1,990,null,null,null,null,null,null,0,null,null,null,null,null,null,null,null,null,null,null,null,null,null,null,null,null,null,null,null,null,null,null,null,null,null,null,{"$f":"[3]Data!D139","v":91180},{"$f":"[3]Data!E139","v":"خـــــوخ100 جم"},0,{"$f":"[3]الصباحى!Q139","v":0},{"$f":"[3]الصباحى!N139","v":0},{"$f":"'[3]تحميل تجزئه '!N139","v":0},{"$f":"[3]المسائى!N139","v":0}]
[0,1,990,null,null,null,null,null,null,0,null,null,null,null,null,null,null,null,null,null,null,null,null,null,null,null,null,null,null,null,null,null,null,null,null,null,null,{"$f":"[3]Data!D140","v":91070},{"$f":"[3]Data!E140","v":"فـــراوله 100 جم"},0,{"$f":"[3]الصباحى!Q140","v":0},{"$f":"[3]الصباحى!N140","v":0},{"$f":"'[3]تحميل تجزئه '!N140","v":0},{"$f":"[3]المسائى!N140","v":0}]
[0,1,990,null,null,null,null,null,null,0,null,null,null,null,null,null,null,null,null,null,null,null,null,null,null,null,null,null,null,null,null,null,null,null,null,null,null,{"$f":"[3]Data!D141","v":91780},{"$f":"[3]Data!E141","v":"تــــــــارت 100 جم"},0,{"$f":"[3]الصباحى!Q141","v":0},{"$f":"[3]الصباحى!N141","v":0},{"$f":"'[3]تحميل تجزئه '!N141","v":0},{"$f":"[3]المسائى!N141","v":0}]
[0,1,990,null,null,null,null,null,null,0,null,null,null,null,null,null,null,null,null,null,null,null,null,null,null,null,null,null,null,null,null,null,null,null,null,null,null,{"$f":"[3]Data!D142","v":90990},{"$f":"[3]Data!E142","v":"كمثرى 100 جم "},0,{"$f":"[3]الصباحى!Q142","v":0},{"$f":"[3]الصباحى!N142","v":0},{"$f":"'[3]تحميل تجزئه '!N142","v":0},{"$f":"[3]المسائى!N142","v":0}]
[0,1,990,null,null,null,null,null,null,0,null,null,null,null,null,null,null,null,null,null,null,null,null,null,null,null,null,null,null,null,null,null,null,null,null,null,null,{"$f":"[3]Data!D143","v":0},{"$f":"[3]Data!E143","v":0},0,{"$f":"[3]الصباحى!Q143","v":0},{"$f":"[3]الصباحى!N143","v":0},{"$f":"'[3]تحميل تجزئه '!N143","v":0},{"$f":"[3]المسائى!N143","v":0}]
[0,1,990,null,null,null,null,null,null,0,null,null,null,null,null,null,null,null,null,null,null,null,null,null,null,null,null,null,null,null,null,null,null,null,null,null,null,{"$f":"[3]Data!D144","v":92650},{"$f":"[3]Data!E144","v":"توت100 جم   *48"},0,{"$f":"[3]الصباحى!Q144","v":0},{"$f":"[3]الصباحى!N144","v":0},{"$f":"'[3]تحميل تجزئه '!N144","v":0},{"$f":"[3]المسائى!N144","v":0}]
[0,1,990,null,null,null,null,null,null,0,null,null,null,null,null,null,null,null,null,null,null,null,null,null,null,null,null,null,null,null,null,null,null,null,null,null,null,{"$f":"[3]Data!D145","v":92640},{"$f":"[3]Data!E145","v":"مانجو100 جم   *48"},0,{"$f":"[3]الصباحى!Q145","v":0},{"$f":"[3]الصباحى!N145","v":0},{"$f":"'[3]تحميل تجزئه '!N145","v":0},{"$f":"[3]المسائى!N145","v":0}]
[0,1,990,null,null,null,null,null,null,0,null,null,null,null,null,null,null,null,null,null,null,null,null,null,null,null,null,null,null,null,null,null,null,null,null,null,null,{"$f":"[3]Data!D146","v":92670},{"$f":"[3]Data!E146","v":"خوخ 100 جم   *48"},0,{"$f":"[3]الصباحى!Q146","v":0},{"$f":"[3]الصباحى!N146","v":0},{"$f":"'[3]تحميل تجزئه '!N146","v":0},{"$f":"[3]المسائى!N146","v":0}]
[0,1,990,null,null,null,null,null,null,0,null,null,null,null,null,null,null,null,null,null,null,null,null,null,null,null,null,null,null,null,null,null,null,null,null,null,null,{"$f":"[3]Data!D147","v":92660},{"$f":"[3]Data!E147","v":"فراوله100 جم   *48"},0,{"$f":"[3]الصباحى!Q147","v":0},{"$f":"[3]الصباحى!N147","v":0},{"$f":"'[3]تحميل تجزئه '!N147","v":0},{"$f":"[3]المسائى!N147","v":0}]
[0,1,990,null,null,null,null,null,null,0,null,null,null,null,null,null,null,null,null,null,null,null,null,null,null,null,null,null,null,null,null,null,null,null,null,null,null,{"$f":"[3]Data!D148","v":92630},{"$f":"[3]Data!E148","v":"تارت100 جم   *48"},0,{"$f":"[3]الصباحى!Q148","v":0},{"$f":"[3]الصباحى!N148","v":0},{"$f":"'[3]تحميل تجزئه '!N148","v":0},{"$f":"[3]المسائى!N148","v":0}]
[0,1,990,null,null,null,null,null,null,0,null,null,null,null,null,null,null,null,null,null,null,null,null,null,null,null,null,null,null,null,null,null,null,null,null,null,null,{"$f":"[3]Data!D149","v":92620},{"$f":"[3]Data!E149","v":"كمثري 100 جم   *48"},0,{"$f":"[3]الصباحى!Q149","v":0},{"$f":"[3]الصباحى!N149","v":0},{"$f":"'[3]تحميل تجزئه '!N149","v":0},{"$f":"[3]المسائى!N149","v":0}]
[0,1,990,null,null,null,null,null,null,0,null,null,null,null,null,null,null,null,null,null,null,null,null,null,null,null,null,null,null,null,null,null,null,null,null,null,null,{"$f":"[3]Data!D150","v":0},{"$f":"[3]Data!E150","v":0},0,{"$f":"[3]الصباحى!Q150","v":0},{"$f":"[3]الصباحى!N150","v":0},{"$f":"'[3]تحميل تجزئه '!N150","v":0},{"$f":"[3]المسائى!N150","v":0}]
[0,1,990,null,null,null,null,null,null,0,null,null,null,null,null,null,null,null,null,null,null,null,null,null,null,null,null,null,null,null,null,null,null,null,null,null,null,{"$f":"[3]Data!D151","v":97380},{"$f":"[3]Data!E151","v":"فـــراوله 100 جم 3+1"},0,{"$f":"[3]الصباحى!Q151","v":0},{"$f":"[3]الصباحى!N151","v":0},{"$f":"'[3]تحميل تجزئه '!N151","v":0},{"$f":"[3]المسائى!N151","v":0}]
[0,1,990,null,null,null,null,null,null,0,null,null,null,null,null,null,null,null,null,null,null,null,null,null,null,null,null,null,null,null,null,null,null,null,null,null,null,{"$f":"[3]Data!D152","v":97370},{"$f":"[3]Data!E152","v":"خـــــوخ100 جم 3+1"},0,{"$f":"[3]الصباحى!Q152","v":0},{"$f":"[3]الصباحى!N152","v":0},{"$f":"'[3]تحميل تجزئه '!N152","v":0},{"$f":"[3]المسائى!N152","v":0}]
[0,1,990,null,null,null,null,null,null,0,null,null,null,null,null,null,null,null,null,null,null,null,null,null,null,null,null,null,null,null,null,null,null,null,null,null,null,{"$f":"[3]Data!D153","v":16890},{"$f":"[3]Data!E153","v":"فراوله100 جم   *48 - عرض"},0,{"$f":"[3]الصباحى!Q153","v":0},{"$f":"[3]الصباحى!N153","v":0},{"$f":"'[3]تحميل تجزئه '!N153","v":0},{"$f":"[3]المسائى!N153","v":0}]
[0,1,990,null,null,null,null,null,null,0,null,null,null,null,null,null,null,null,null,null,null,null,null,null,null,null,null,null,null,null,null,null,null,null,null,null,null,{"$f":"[3]Data!D154","v":92720},{"$f":"[3]Data!E154","v":"فراولة عرض 2 ج"},0,{"$f":"[3]الصباحى!Q154","v":0},{"$f":"[3]الصباحى!N154","v":0},{"$f":"'[3]تحميل تجزئه '!N154","v":0},{"$f":"[3]المسائى!N154","v":0}]
[0,1,990,null,null,null,null,null,null,0,null,null,null,null,null,null,null,null,null,null,null,null,null,null,null,null,null,null,null,null,null,null,null,null,null,null,null,{"$f":"[3]Data!D155","v":92730},{"$f":"[3]Data!E155","v":"خوخ عرض 2 ج"},0,{"$f":"[3]الصباحى!Q155","v":0},{"$f":"[3]الصباحى!N155","v":0},{"$f":"'[3]تحميل تجزئه '!N155","v":0},{"$f":"[3]المسائى!N155","v":0}]
[0,1,990,null,null,null,null,null,null,0,null,null,null,null,null,null,null,null,null,null,null,null,null,null,null,null,null,null,null,null,null,null,null,null,null,null,null,{"$f":"[3]Data!D156","v":0},{"$f":"[3]Data!E156","v":0},0,{"$f":"[3]الصباحى!Q156","v":0},{"$f":"[3]الصباحى!N156","v":0},{"$f":"'[3]تحميل تجزئه '!N156","v":0},{"$f":"[3]المسائى!N156","v":0}]
[0,1,990,null,null,null,null,null,null,0,null,null,null,null,null,null,null,null,null,null,null,null,null,null,null,null,null,null,null,null,null,null,null,null,null,null,null,{"$f":"[3]Data!D157","v":94140},{"$f":"[3]Data!E157","v":"ز.فراوله فاكهه 75"},0,{"$f":"[3]الصباحى!Q157","v":0},{"$f":"[3]الصباحى!N157","v":0},{"$f":"'[3]تحميل تجزئه '!N157","v":0},{"$f":"[3]المسائى!N157","v":0}]
[0,1,990,null,null,null,null,null,null,0,null,null,null,null,null,null,null,null,null,null,null,null,null,null,null,null,null,null,null,null,null,null,null,null,null,null,null,{"$f":"[3]Data!D158","v":94130},{"$f":"[3]Data!E158","v":"ز.خوخ فاكهه 75"},0,{"$f":"[3]الصباحى!Q158","v":0},{"$f":"[3]الصباحى!N158","v":0},{"$f":"'[3]تحميل تجزئه '!N158","v":0},{"$f":"[3]المسائى!N158","v":0}]
[0,1,990,null,null,null,null,null,null,0,null,null,null,null,null,null,null,null,null,null,null,null,null,null,null,null,null,null,null,null,null,null,null,null,null,null,null,{"$f":"[3]Data!D159","v":95830},{"$f":"[3]Data!E159","v":"طبيعى 75 جم  رمضان كريم "},0,{"$f":"[3]الصباحى!Q159","v":0},{"$f":"[3]الصباحى!N159","v":0},{"$f":"'[3]تحميل تجزئه '!N159","v":0},{"$f":"[3]المسائى!N159","v":0}]
[0,1,990,null,null,null,null,null,null,0,null,null,null,null,null,null,null,null,null,null,null,null,null,null,null,null,null,null,null,null,null,null,null,null,null,null,null,{"$f":"[3]Data!D160","v":90940},{"$f":"[3]Data!E160","v":"طبيعى 75 جم   "},0,{"$f":"[3]الصباحى!Q160","v":0},{"$f":"[3]الصباحى!N160","v":0},{"$f":"'[3]تحميل تجزئه '!N160","v":0},{"$f":"[3]المسائى!N160","v":0}]
[0,1,990,null,null,null,null,null,null,0,null,null,null,null,null,null,null,null,null,null,null,null,null,null,null,null,null,null,null,null,null,null,null,null,null,null,null,{"$f":"[3]Data!D161","v":91660},{"$f":"[3]Data!E161","v":"طبيعى 75  وفر جنيه"},0,{"$f":"[3]الصباحى!Q161","v":0},{"$f":"[3]الصباحى!N161","v":0},{"$f":"'[3]تحميل تجزئه '!N161","v":0},{"$f":"[3]المسائى!N161","v":0}]
[0,1,990,null,null,null,null,null,null,0,null,null,null,null,null,null,null,null,null,null,null,null,null,null,null,null,null,null,null,null,null,null,null,null,null,null,null,{"$f":"[3]Data!D162","v":93350},{"$f":"[3]Data!E162","v":"زبادي طبيعي 75 وفر 0.5"},0,{"$f":"[3]الصباحى!Q162","v":0},{"$f":"[3]الصباحى!N162","v":0},{"$f":"'[3]تحميل تجزئه '!N162","v":0},{"$f":"[3]المسائى!N162","v":0}]
[0,1,990,null,null,null,null,null,null,0,null,null,null,null,null,null,null,null,null,null,null,null,null,null,null,null,null,null,null,null,null,null,null,null,null,null,null,{"$f":"[3]Data!D163","v":0},{"$f":"[3]Data!E163","v":0},0,{"$f":"[3]الصباحى!Q163","v":0},{"$f":"[3]الصباحى!N163","v":0},{"$f":"'[3]تحميل تجزئه '!N163","v":0},{"$f":"[3]المسائى!N163","v":0}]
[0,1,990,null,null,null,null,null,null,0,null,null,null,null,null,null,null,null,null,null,null,null,null,null,null,null,null,null,null,null,null,null,null,null,null,null,null,{"$f":"[3]Data!D164","v":93250},{"$f":"[3]Data!E164","v":" خوخ 75 جم"},0,{"$f":"[3]الصباحى!Q164","v":0},{"$f":"[3]الصباحى!N164","v":0},{"$f":"'[3]تحميل تجزئه '!N164","v":0},{"$f":"[3]المسائى!N164","v":0}]
[0,1,990,null,null,null,null,null,null,0,null,null,null,null,null,null,null,null,null,null,null,null,null,null,null,null,null,null,null,null,null,null,null,null,null,null,null,{"$f":"[3]Data!D165","v":90970},{"$f":"[3]Data!E165","v":"ستار 75 جم"},0,{"$f":"[3]الصباحى!Q165","v":0},{"$f":"[3]الصباحى!N165","v":0},{"$f":"'[3]تحميل تجزئه '!N165","v":0},{"$f":"[3]المسائى!N165","v":0}]
[0,1,990,null,null,null,null,null,null,0,null,null,null,null,null,null,null,null,null,null,null,null,null,null,null,null,null,null,null,null,null,null,null,null,null,null,null,{"$f":"[3]Data!D166","v":92560},{"$f":"[3]Data!E166","v":"ستار 75 جم  وفر جنيه"},0,{"$f":"[3]الصباحى!Q166","v":0},{"$f":"[3]الصباحى!N166","v":0},{"$f":"'[3]تحميل تجزئه '!N166","v":0},{"$f":"[3]المسائى!N166","v":0}]
[0,1,990,null,null,null,null,null,null,0,null,null,null,null,null,null,null,null,null,null,null,null,null,null,null,null,null,null,null,null,null,null,null,null,null,null,null,{"$f":"[3]Data!D167","v":94560},{"$f":"[3]Data!E167","v":"زبادي ستارز 75 وفر 0.5"},0,{"$f":"[3]الصباحى!Q167","v":0},{"$f":"[3]الصباحى!N167","v":0},{"$f":"'[3]تحميل تجزئه '!N167","v":0},{"$f":"[3]المسائى!N167","v":0}]
[0,1,990,null,null,null,null,null,null,0,null,null,null,null,null,null,null,null,null,null,null,null,null,null,null,null,null,null,null,null,null,null,null,null,null,null,null,{"$f":"[3]Data!D168","v":0},{"$f":"[3]Data!E168","v":0},0,{"$f":"[3]الصباحى!Q168","v":0},{"$f":"[3]الصباحى!N168","v":0},{"$f":"'[3]تحميل تجزئه '!N168","v":0},{"$f":"[3]المسائى!N168","v":0}]
[0,1,990,null,null,null,null,null,null,0,null,null,null,null,null,null,null,null,null,null,null,null,null,null,null,null,null,null,null,null,null,null,null,null,null,null,null,{"$f":"[3]Data!D169","v":91530},{"$f":"[3]Data!E169","v":" سكر 75 جرام"},0,{"$f":"[3]الصباحى!Q169","v":0},{"$f":"[3]الصباحى!N169","v":0},{"$f":"'[3]تحميل تجزئه '!N169","v":0},{"$f":"[3]المسائى!N169","v":0}]
[0,1,990,null,null,null,null,null,null,0,null,null,null,null,null,null,null,null,null,null,null,null,null,null,null,null,null,null,null,null,null,null,null,null,null,null,null,{"$f":"[3]Data!D170","v":16550},{"$f":"[3]Data!E170","v":" سكر 75 وفر جنيه"},0,{"$f":"[3]الصباحى!Q170","v":0},{"$f":"[3]الصباحى!N170","v":0},{"$f":"'[3]تحميل تجزئه '!N170","v":0},{"$f":"[3]المسائى!N170","v":0}]
[0,1,990,null,null,null,null,null,null,0,null,null,null,null,null,null,null,null,null,null,null,null,null,null,null,null,null,null,null,null,null,null,null,null,null,null,null,{"$f":"[3]Data!D171","v":98490},{"$f":"[3]Data!E171","v":"زبادى سكر وفر 0.5"},0,{"$f":"[3]الصباحى!Q171","v":0},{"$f":"[3]الصباحى!N171","v":0},{"$f":"'[3]تحميل تجزئه '!N171","v":0},{"$f":"[3]المسائى!N171","v":0}]
[0,1,990,null,null,null,null,null,null,0,null,null,null,null,null,null,null,null,null,null,null,null,null,null,null,null,null,null,null,null,null,null,null,null,null,null,null,{"$f":"[3]Data!D172","v":0},{"$f":"[3]Data!E172","v":0},0,{"$f":"[3]الصباحى!Q172","v":0},{"$f":"[3]الصباحى!N172","v":0},{"$f":"'[3]تحميل تجزئه '!N172","v":0},{"$f":"[3]المسائى!N172","v":0}]
[0,1,990,null,null,null,null,null,null,0,null,null,null,null,null,null,null,null,null,null,null,null,null,null,null,null,null,null,null,null,null,null,null,null,null,null,null,{"$f":"[3]Data!D173","v":90980},{"$f":"[3]Data!E173","v":"ستار 105جم "},0,{"$f":"[3]الصباحى!Q173","v":0},{"$f":"[3]الصباحى!N173","v":0},{"$f":"'[3]تحميل تجزئه '!N173","v":0},{"$f":"[3]المسائى!N173","v":0}]
[0,1,990,null,null,null,null,null,null,0,null,null,null,null,null,null,null,null,null,null,null,null,null,null,null,null,null,null,null,null,null,null,null,null,null,null,null,{"$f":"[3]Data!D174","v":93340},{"$f":"[3]Data!E174","v":"ستار 105جم 5+1  "},0,{"$f":"[3]الصباحى!Q174","v":0},{"$f":"[3]الصباحى!N174","v":0},{"$f":"'[3]تحميل تجزئه '!N174","v":0},{"$f":"[3]المسائى!N174","v":0}]
[0,1,990,null,null,null,null,null,null,0,null,null,null,null,null,null,null,null,null,null,null,null,null,null,null,null,null,null,null,null,null,null,null,null,null,null,null,{"$f":"[3]Data!D175","v":95710},{"$f":"[3]Data!E175","v":"ستار105 وفر 2ج"},0,{"$f":"[3]الصباحى!Q175","v":0},{"$f":"[3]الصباحى!N175","v":0},{"$f":"'[3]تحميل تجزئه '!N175","v":0},{"$f":"[3]المسائى!N175","v":0}]
[0,1,990,null,null,null,null,null,null,0,null,null,null,null,null,null,null,null,null,null,null,null,null,null,null,null,null,null,null,null,null,null,null,null,null,null,null,{"$f":"[3]Data!D176","v":98470},{"$f":"[3]Data!E176","v":"ستار 105جم 3+1  "},0,{"$f":"[3]الصباحى!Q176","v":0},{"$f":"[3]الصباحى!N176","v":0},{"$f":"'[3]تحميل تجزئه '!N176","v":0},{"$f":"[3]المسائى!N176","v":0}]
[0,1,990,null,null,null,null,null,null,0,null,null,null,null,null,null,null,null,null,null,null,null,null,null,null,null,null,null,null,null,null,null,null,null,null,null,null,{"$f":"[3]Data!D177","v":0},{"$f":"[3]Data!E177","v":0},0,{"$f":"[3]الصباحى!Q177","v":0},{"$f":"[3]الصباحى!N177","v":0},{"$f":"'[3]تحميل تجزئه '!N177","v":0},{"$f":"[3]المسائى!N177","v":0}]
[0,1,990,null,null,null,null,null,null,0,null,null,null,null,null,null,null,null,null,null,null,null,null,null,null,null,null,null,null,null,null,null,null,null,null,null,null,{"$f":"[3]Data!D178","v":96040},{"$f":"[3]Data!E178","v":"سكر 105جم "},0,{"$f":"[3]الصباحى!Q178","v":0},{"$f":"[3]الصباحى!N178","v":0},{"$f":"'[3]تحميل تجزئه '!N178","v":0},{"$f":"[3]المسائى!N178","v":0}]
[0,1,990,null,null,null,null,null,null,0,null,null,null,null,null,null,null,null,null,null,null,null,null,null,null,null,null,null,null,null,null,null,null,null,null,null,null,{"$f":"[3]Data!D179","v":98480},{"$f":"[3]Data!E179","v":"سكر 105جم  (3+1)"},0,{"$f":"[3]الصباحى!Q179","v":0},{"$f":"[3]الصباحى!N179","v":0},{"$f":"'[3]تحميل تجزئه '!N179","v":0},{"$f":"[3]المسائى!N179","v":0}]
[0,1,990,null,null,null,null,null,null,0,null,null,null,null,null,null,null,null,null,null,null,null,null,null,null,null,null,null,null,null,null,null,null,null,null,null,null,{"$f":"[3]Data!D180","v":0},{"$f":"[3]Data!E180","v":0},0,{"$f":"[3]الصباحى!Q180","v":0},{"$f":"[3]الصباحى!N180","v":0},{"$f":"'[3]تحميل تجزئه '!N180","v":0},{"$f":"[3]المسائى!N180","v":0}]
[0,1,990,null,null,null,null,null,null,0,null,null,null,null,null,null,null,null,null,null,null,null,null,null,null,null,null,null,null,null,null,null,null,null,null,null,null,{"$f":"[3]Data!D181","v":90960},{"$f":"[3]Data!E181","v":"طبيعى 105"},0,{"$f":"[3]الصباحى!Q181","v":0},{"$f":"[3]الصباحى!N181","v":0},{"$f":"'[3]تحميل تجزئه '!N181","v":0},{"$f":"[3]المسائى!N181","v":0}]
[0,1,990,null,null,null,null,null,null,0,null,null,null,null,null,null,null,null,null,null,null,null,null,null,null,null,null,null,null,null,null,null,null,null,null,null,null,{"$f":"[3]Data!D182","v":91880},{"$f":"[3]Data!E182","v":"طبيعى  105(5+1)"},0,{"$f":"[3]الصباحى!Q182","v":0},{"$f":"[3]الصباحى!N182","v":0},{"$f":"'[3]تحميل تجزئه '!N182","v":0},{"$f":"[3]المسائى!N182","v":0}]
[0,1,990,null,null,null,null,null,null,0,null,null,null,null,null,null,null,null,null,null,null,null,null,null,null,null,null,null,null,null,null,null,null,null,null,null,null,{"$f":"[3]Data!D183","v":91820},{"$f":"[3]Data!E183","v":"طبيعى 105 (9+3) "},0,{"$f":"[3]الصباحى!Q183","v":0},{"$f":"[3]الصباحى!N183","v":0},{"$f":"'[3]تحميل تجزئه '!N183","v":0},{"$f":"[3]المسائى!N183","v":0}]
[0,1,990,null,null,null,null,null,null,0,null,null,null,null,null,null,null,null,null,null,null,null,null,null,null,null,null,null,null,null,null,null,null,null,null,null,null,{"$f":"[3]Data!D184","v":95690},{"$f":"[3]Data!E184","v":"طبيعى 105 وفر 4 جنيه"},0,{"$f":"[3]الصباحى!Q184","v":0},{"$f":"[3]الصباحى!N184","v":0},{"$f":"'[3]تحميل تجزئه '!N184","v":0},{"$f":"[3]المسائى!N184","v":0}]
[0,1,990,null,null,null,null,null,null,0,null,null,null,null,null,null,null,null,null,null,null,null,null,null,null,null,null,null,null,null,null,null,null,null,null,null,null,{"$f":"[3]Data!D185","v":93440},{"$f":"[3]Data!E185","v":"طبيعى 105 وفر 2ج  "},0,{"$f":"[3]الصباحى!Q185","v":0},{"$f":"[3]الصباحى!N185","v":0},{"$f":"'[3]تحميل تجزئه '!N185","v":0},{"$f":"[3]المسائى!N185","v":0}]
[0,1,990,null,null,null,null,null,null,0,null,null,null,null,null,null,null,null,null,null,null,null,null,null,null,null,null,null,null,null,null,null,null,null,null,null,null,{"$f":"[3]Data!D186","v":97790},{"$f":"[3]Data!E186","v":"طبيعى  105(3+1)"},0,{"$f":"[3]الصباحى!Q186","v":0},{"$f":"[3]الصباحى!N186","v":0},{"$f":"'[3]تحميل تجزئه '!N186","v":0},{"$f":"[3]المسائى!N186","v":0}]
[0,1,990,null,null,null,null,null,null,0,null,null,null,null,null,null,null,null,null,null,null,null,null,null,null,null,null,null,null,null,null,null,null,null,null,null,null,{"$f":"[3]Data!D187","v":96940},{"$f":"[3]Data!E187","v":"طبيعى  105(5+1) باندل"},0,{"$f":"[3]الصباحى!Q187","v":0},{"$f":"[3]الصباحى!N187","v":0},{"$f":"'[3]تحميل تجزئه '!N187","v":0},{"$f":"[3]المسائى!N187","v":0}]
[0,1,990,null,null,null,null,null,null,0,null,null,null,null,null,null,null,null,null,null,null,null,null,null,null,null,null,null,null,null,null,null,null,null,null,null,null,{"$f":"[3]Data!D188","v":16510},{"$f":"[3]Data!E188","v":"طبيعى 105 عرض 6+2"},0,{"$f":"[3]الصباحى!Q188","v":0},{"$f":"[3]الصباحى!N188","v":0},{"$f":"'[3]تحميل تجزئه '!N188","v":0},{"$f":"[3]المسائى!N188","v":0}]
[0,1,990,null,null,null,null,null,null,0,null,null,null,null,null,null,null,null,null,null,null,null,null,null,null,null,null,null,null,null,null,null,null,null,null,null,null,{"$f":"[3]Data!D189","v":95840},{"$f":"[3]Data!E189","v":"طبيعى 105 رمضان كريم"},0,{"$f":"[3]الصباحى!Q189","v":0},{"$f":"[3]الصباحى!N189","v":0},{"$f":"'[3]تحميل تجزئه '!N189","v":0},{"$f":"[3]المسائى!N189","v":0}]
[0,1,990,null,null,null,null,null,null,0,null,null,null,null,null,null,null,null,null,null,null,null,null,null,null,null,null,null,null,null,null,null,null,null,null,null,null,{"$f":"[3]Data!D190","v":16480},{"$f":"[3]Data!E190","v":"طبيعى 105 رمضان كريم 5+1"},0,{"$f":"[3]الصباحى!Q190","v":0},{"$f":"[3]الصباحى!N190","v":0},{"$f":"'[3]تحميل تجزئه '!N190","v":0},{"$f":"[3]المسائى!N190","v":0}]
[0,1,990,null,null,null,null,null,null,0,null,null,null,null,null,null,null,null,null,null,null,null,null,null,null,null,null,null,null,null,null,null,null,null,null,null,null,{"$f":"[3]Data!D191","v":0},{"$f":"[3]Data!E191","v":0},0,{"$f":"[3]الصباحى!Q191","v":0},{"$f":"[3]الصباحى!N191","v":0},{"$f":"'[3]تحميل تجزئه '!N191","v":0},{"$f":"[3]المسائى!N191","v":0}]
[0,1,990,null,null,null,null,null,null,0,null,null,null,null,null,null,null,null,null,null,null,null,null,null,null,null,null,null,null,null,null,null,null,null,null,null,null,{"$f":"[3]Data!D192","v":0},{"$f":"[3]Data!E192","v":0},0,{"$f":"[3]الصباحى!Q192","v":0},{"$f":"[3]الصباحى!N192","v":0},{"$f":"'[3]تحميل تجزئه '!N192","v":0},{"$f":"[3]المسائى!N192","v":0}]
[0,1,990,null,null,null,null,null,null,0,null,null,null,null,null,null,null,null,null,null,null,null,null,null,null,null,null,null,null,null,null,null,null,null,null,null,null,{"$f":"[3]Data!D193","v":0},{"$f":"[3]Data!E193","v":0},0,{"$f":"[3]الصباحى!Q193","v":0},{"$f":"[3]الصباحى!N193","v":0},{"$f":"'[3]تحميل تجزئه '!N193","v":0},{"$f":"[3]المسائى!N193","v":0}]
[0,1,990,null,null,null,null,null,null,0,null,null,null,null,null,null,null,null,null,null,null,null,null,null,null,null,null,null,null,null,null,null,null,null,null,null,null,{"$f":"[3]Data!D194","v":90950},{"$f":"[3]Data!E194","v":"لايت 105 "},0,{"$f":"[3]الصباحى!Q194","v":0},{"$f":"[3]الصباحى!N194","v":0},{"$f":"'[3]تحميل تجزئه '!N194","v":0},{"$f":"[3]المسائى!N194","v":0}]
[0,1,990,null,null,null,null,null,null,0,null,null,null,null,null,null,null,null,null,null,null,null,null,null,null,null,null,null,null,null,null,null,null,null,null,null,null,{"$f":"[3]Data!D195","v":91840},{"$f":"[3]Data!E195","v":"لايت 105 (5+1 ) "},0,{"$f":"[3]الصباحى!Q195","v":0},{"$f":"[3]الصباحى!N195","v":0},{"$f":"'[3]تحميل تجزئه '!N195","v":0},{"$f":"[3]المسائى!N195","v":0}]
[0,1,990,null,null,null,null,null,null,0,null,null,null,null,null,null,null,null,null,null,null,null,null,null,null,null,null,null,null,null,null,null,null,null,null,null,null,{"$f":"[3]Data!D196","v":91830},{"$f":"[3]Data!E196","v":"لايت 105( 9+3) "},0,{"$f":"[3]الصباحى!Q196","v":0},{"$f":"[3]الصباحى!N196","v":0},{"$f":"'[3]تحميل تجزئه '!N196","v":0},{"$f":"[3]المسائى!N196","v":0}]
[0,1,990,null,null,null,null,null,null,0,null,null,null,null,null,null,null,null,null,null,null,null,null,null,null,null,null,null,null,null,null,null,null,null,null,null,null,{"$f":"[3]Data!D197","v":92080},{"$f":"[3]Data!E197","v":"لايت 105 وفر 4 جنيه"},0,{"$f":"[3]الصباحى!Q197","v":0},{"$f":"[3]الصباحى!N197","v":0},{"$f":"'[3]تحميل تجزئه '!N197","v":0},{"$f":"[3]المسائى!N197","v":0}]
[0,1,990,null,null,null,null,null,null,0,null,null,null,null,null,null,null,null,null,null,null,null,null,null,null,null,null,null,null,null,null,null,null,null,null,null,null,{"$f":"[3]Data!D198","v":95720},{"$f":"[3]Data!E198","v":"لايت 105وفر 2ج"},0,{"$f":"[3]الصباحى!Q198","v":0},{"$f":"[3]الصباحى!N198","v":0},{"$f":"'[3]تحميل تجزئه '!N198","v":0},{"$f":"[3]المسائى!N198","v":0}]
[0,1,990,null,null,null,null,null,null,0,null,null,null,null,null,null,null,null,null,null,null,null,null,null,null,null,null,null,null,null,null,null,null,null,null,null,null,{"$f":"[3]Data!D199","v":16530},{"$f":"[3]Data!E199","v":"لايت 105 عرض  6+2"},0,{"$f":"[3]الصباحى!Q199","v":0},{"$f":"[3]الصباحى!N199","v":0},{"$f":"'[3]تحميل تجزئه '!N199","v":0},{"$f":"[3]المسائى!N199","v":0}]
[0,1,990,null,null,null,null,null,null,0,null,null,null,null,null,null,null,null,null,null,null,null,null,null,null,null,null,null,null,null,null,null,null,null,null,null,null,{"$f":"[3]Data!D200","v":95850},{"$f":"[3]Data!E200","v":"لايت 105  رمضان كريم"},{"$f":"+AO194-AP194-AQ194-AR194","v":0},{"$f":"[3]الصباحى!Q200","v":0},{"$f":"[3]الصباحى!N200","v":0},{"$f":"'[3]تحميل تجزئه '!N200","v":0},{"$f":"[3]المسائى!N200","v":0}]
[0,1,990,null,null,null,null,null,null,{"$f":"VLOOKUP(E195,AL:AO,3,0)","v":0},null,null,null,null,null,null,null,null,null,null,null,null,null,null,null,null,null,null,null,null,null,null,null,null,null,null,null,{"$f":"[3]Data!D201","v":16490},{"$f":"[3]Data!E201","v":"لايت 105 (5+1 )رمضان كر يم"},0,{"$f":"[3]الصباحى!Q201","v":0},{"$f":"[3]الصباحى!N201","v":0},{"$f":"'[3]تحميل تجزئه '!N201","v":0},{"$f":"[3]المسائى!N201","v":0}]
[{"$f":"IF(D196=D195,SUMIF(D195:D195,D196,A195),A195+1)","v":0},1,990,null,null,null,null,null,null,0,null,null,null,null,null,null,null,null,null,null,null,null,null,null,null,null,null,null,null,null,null,null,null,null,null,null,null,{"$f":"[3]Data!D202","v":0},{"$f":"[3]Data!E202","v":0},0,{"$f":"[3]الصباحى!Q202","v":0},{"$f":"[3]الصباحى!N202","v":0},{"$f":"'[3]تحميل تجزئه '!N202","v":0},{"$f":"[3]المسائى!N202","v":0}]
[0,1,990,null,null,null,null,null,null,0,null,null,null,null,null,null,null,null,null,null,null,null,null,null,null,null,null,null,null,null,null,null,null,null,null,null,null,{"$f":"[3]Data!D203","v":0},{"$f":"[3]Data!E203","v":0},0,{"$f":"[3]الصباحى!Q203","v":0},{"$f":"[3]الصباحى!N203","v":0},{"$f":"'[3]تحميل تجزئه '!N203","v":0},{"$f":"[3]المسائى!N203","v":0}]
[0,1,990,null,null,null,null,null,null,0,null,null,null,null,null,null,null,null,null,null,null,null,null,null,null,null,null,null,null,null,null,null,null,null,null,null,null,{"$f":"[3]Data!D204","v":0},{"$f":"[3]Data!E204","v":0},0,{"$f":"[3]الصباحى!Q204","v":0},{"$f":"[3]الصباحى!N204","v":0},{"$f":"'[3]تحميل تجزئه '!N204","v":0},{"$f":"[3]المسائى!N204","v":0}]
[0,1,990,null,null,null,null,null,null,0,null,null,null,null,null,null,null,null,null,null,null,null,null,null,null,null,null,null,null,null,null,null,null,null,null,null,null,{"$f":"[3]Data!D205","v":16260},{"$f":"[3]Data!E205","v":"مشروب رايب  220 "},0,{"$f":"[3]الصباحى!Q205","v":0},{"$f":"[3]الصباحى!N205","v":0},{"$f":"'[3]تحميل تجزئه '!N205","v":0},{"$f":"[3]المسائى!N205","v":0}]
[0,1,990,null,null,null,null,null,null,0,null,null,null,null,null,null,null,null,null,null,null,null,null,null,null,null,null,null,null,null,null,null,null,null,null,null,null,{"$f":"[3]Data!D206","v":16090},{"$f":"[3]Data!E206","v":"مشروب فراوله 220   "},0,{"$f":"[3]الصباحى!Q206","v":0},{"$f":"[3]الصباحى!N206","v":0},{"$f":"'[3]تحميل تجزئه '!N206","v":0},{"$f":"[3]المسائى!N206","v":0}]
[0,1,990,null,null,null,null,null,null,0,null,null,null,null,null,null,null,null,null,null,null,null,null,null,null,null,null,null,null,null,null,null,null,null,null,null,null,{"$f":"[3]Data!D207","v":16100},{"$f":"[3]Data!E207","v":"مشروب خوخ  220 "},0,{"$f":"[3]الصباحى!Q207","v":0},{"$f":"[3]الصباحى!N207","v":0},{"$f":"'[3]تحميل تجزئه '!N207","v":0},{"$f":"[3]المسائى!N207","v":0}]
[0,1,990,null,null,null,null,null,null,0,null,null,null,null,null,null,null,null,null,null,null,null,null,null,null,null,null,null,null,null,null,null,null,null,null,null,null,{"$f":"[3]Data!D208","v":16110},{"$f":"[3]Data!E208","v":"مشروب مانجو 220"},0,{"$f":"[3]الصباحى!Q208","v":0},{"$f":"[3]الصباحى!N208","v":0},{"$f":"'[3]تحميل تجزئه '!N208","v":0},{"$f":"[3]المسائى!N208","v":0}]
[0,1,990,null,null,null,null,null,null,0,null,null,null,null,null,null,null,null,null,null,null,null,null,null,null,null,null,null,null,null,null,null,null,null,null,null,null,{"$f":"[3]Data!D209","v":16120},{"$f":"[3]Data!E209","v":"مشروب بانوفي 220 "},0,{"$f":"[3]الصباحى!Q209","v":0},{"$f":"[3]الصباحى!N209","v":0},{"$f":"'[3]تحميل تجزئه '!N209","v":0},{"$f":"[3]المسائى!N209","v":0}]
[0,1,990,null,null,null,null,null,null,0,null,null,null,null,null,null,null,null,null,null,null,null,null,null,null,null,null,null,null,null,null,null,null,null,null,null,null,{"$f":"[3]Data!D210","v":16130},{"$f":"[3]Data!E210","v":"مشروب بافن   220"},0,{"$f":"[3]الصباحى!Q210","v":0},{"$f":"[3]الصباحى!N210","v":0},{"$f":"'[3]تحميل تجزئه '!N210","v":0},{"$f":"[3]المسائى!N210","v":0}]
[0,1,990,null,null,null,null,null,null,0,null,null,null,null,null,null,null,null,null,null,null,null,null,null,null,null,null,null,null,null,null,null,null,null,null,null,null,{"$f":"[3]Data!D211","v":0},{"$f":"[3]Data!E211","v":0},0,{"$f":"[3]الصباحى!Q211","v":0},{"$f":"[3]الصباحى!N211","v":0},{"$f":"'[3]تحميل تجزئه '!N211","v":0},{"$f":"[3]المسائى!N211","v":0}]
[0,1,990,null,null,null,null,null,null,0,null,null,null,null,null,null,null,null,null,null,null,null,null,null,null,null,null,null,null,null,null,null,null,null,null,null,null,{"$f":"[3]Data!D212","v":0},{"$f":"[3]Data!E212","v":0},0,{"$f":"[3]الصباحى!Q212","v":0},{"$f":"[3]الصباحى!N212","v":0},{"$f":"'[3]تحميل تجزئه '!N212","v":0},{"$f":"[3]المسائى!N212","v":0}]
[0,1,990,null,null,null,null,null,null,0,null,null,null,null,null,null,null,null,null,null,null,null,null,null,null,null,null,null,null,null,null,null,null,null,null,null,null,{"$f":"[3]Data!D213","v":16270},{"$f":"[3]Data!E213","v":"مشروب رايب   440  "},0,{"$f":"[3]الصباحى!Q213","v":0},{"$f":"[3]الصباحى!N213","v":0},{"$f":"'[3]تحميل تجزئه '!N213","v":0},{"$f":"[3]المسائى!N213","v":0}]
[0,1,990,null,null,null,null,null,null,0,null,null,null,null,null,null,null,null,null,null,null,null,null,null,null,null,null,null,null,null,null,null,null,null,null,null,null,{"$f":"[3]Data!D214","v":16170},{"$f":"[3]Data!E214","v":"مشروب فراوله  440 "},0,{"$f":"[3]الصباحى!Q214","v":0},{"$f":"[3]الصباحى!N214","v":0},{"$f":"'[3]تحميل تجزئه '!N214","v":0},{"$f":"[3]المسائى!N214","v":0}]
[0,1,990,null,null,null,null,null,null,0,null,null,null,null,null,null,null,null,null,null,null,null,null,null,null,null,null,null,null,null,null,null,null,null,null,null,null,{"$f":"[3]Data!D215","v":16180},{"$f":"[3]Data!E215","v":"مشروب خوخ   440 "},0,{"$f":"[3]الصباحى!Q215","v":0},{"$f":"[3]الصباحى!N215","v":0},{"$f":"'[3]تحميل تجزئه '!N215","v":0},{"$f":"[3]المسائى!N215","v":0}]
[0,1,990,null,null,null,null,null,null,0,null,null,null,null,null,null,null,null,null,null,null,null,null,null,null,null,null,null,null,null,null,null,null,null,null,null,null,{"$f":"[3]Data!D216","v":16190},{"$f":"[3]Data!E216","v":"مشروب مانجو   440 "},0,{"$f":"[3]الصباحى!Q216","v":0},{"$f":"[3]الصباحى!N216","v":0},{"$f":"'[3]تحميل تجزئه '!N216","v":0},{"$f":"[3]المسائى!N216","v":0}]
[0,1,990,null,null,null,null,null,null,0,null,null,null,null,null,null,null,null,null,null,null,null,null,null,null,null,null,null,null,null,null,null,null,null,null,null,null,{"$f":"[3]Data!D217","v":16210},{"$f":"[3]Data!E217","v":"مشروب بانوفي    440 "},0,{"$f":"[3]الصباحى!Q217","v":0},{"$f":"[3]الصباحى!N217","v":0},{"$f":"'[3]تحميل تجزئه '!N217","v":0},{"$f":"[3]المسائى!N217","v":0}]
[0,1,990,null,null,null,null,null,null,0,null,null,null,null,null,null,null,null,null,null,null,null,null,null,null,null,null,null,null,null,null,null,null,null,null,null,null,{"$f":"[3]Data!D218","v":16220},{"$f":"[3]Data!E218","v":"مشروب  بافن   440 "},0,{"$f":"[3]الصباحى!Q218","v":0},{"$f":"[3]الصباحى!N218","v":0},{"$f":"'[3]تحميل تجزئه '!N218","v":0},{"$f":"[3]المسائى!N218","v":0}]
[0,1,990,null,null,null,null,null,null,0,null,null,null,null,null,null,null,null,null,null,null,null,null,null,null,null,null,null,null,null,null,null,null,null,null,null,null,{"$f":"[3]Data!D219","v":0},{"$f":"[3]Data!E219","v":0},0,{"$f":"[3]الصباحى!Q219","v":0},{"$f":"[3]الصباحى!N219","v":0},{"$f":"'[3]تحميل تجزئه '!N219","v":0},{"$f":"[3]المسائى!N219","v":0}]
[0,1,990,null,null,null,null,null,null,0,null,null,null,null,null,null,null,null,null,null,null,null,null,null,null,null,null,null,null,null,null,null,null,null,null,null,null,{"$f":"[3]Data!D220","v":0},{"$f":"[3]Data!E220","v":0},0,{"$f":"[3]الصباحى!Q220","v":0},{"$f":"[3]الصباحى!N220","v":0},{"$f":"'[3]تحميل تجزئه '!N220","v":0},{"$f":"[3]المسائى!N220","v":0}]
[0,1,990,null,null,null,null,null,null,0,null,null,null,null,null,null,null,null,null,null,null,null,null,null,null,null,null,null,null,null,null,null,null,null,null,null,null,{"$f":"[3]Data!D221","v":10430},{"$f":"[3]Data!E221","v":"رايب لتر"},0,{"$f":"[3]الصباحى!Q221","v":0},{"$f":"[3]الصباحى!N221","v":0},{"$f":"'[3]تحميل تجزئه '!N221","v":0},{"$f":"[3]المسائى!N221","v":0}]
[0,1,990,null,null,null,null,null,null,0,null,null,null,null,null,null,null,null,null,null,null,null,null,null,null,null,null,null,null,null,null,null,null,null,null,null,null,{"$f":"[3]Data!D222","v":92090},{"$f":"[3]Data!E222","v":"طبيعي 170 جم"},0,{"$f":"[3]الصباحى!Q222","v":0},{"$f":"[3]الصباحى!N222","v":0},{"$f":"'[3]تحميل تجزئه '!N222","v":0},{"$f":"[3]المسائى!N222","v":0}]
[0,1,990,null,null,null,null,null,null,0,null,null,null,null,null,null,null,null,null,null,null,null,null,null,null,null,null,null,null,null,null,null,null,null,null,null,null,{"$f":"[3]Data!D223","v":93240},{"$f":"[3]Data!E223","v":"لايت 170 جم"},0,{"$f":"[3]الصباحى!Q223","v":0},{"$f":"[3]الصباحى!N223","v":0},{"$f":"'[3]تحميل تجزئه '!N223","v":0},{"$f":"[3]المسائى!N223","v":0}]
[0,1,990,null,null,null,null,null,null,0,null,null,null,null,null,null,null,null,null,null,null,null,null,null,null,null,null,null,null,null,null,null,null,null,null,null,null,{"$f":"[3]Data!D224","v":16610},{"$f":"[3]Data!E224","v":"طبيعي170جم عرض "},0,{"$f":"[3]الصباحى!Q224","v":0},{"$f":"[3]الصباحى!N224","v":0},{"$f":"'[3]تحميل تجزئه '!N224","v":0},{"$f":"[3]المسائى!N224","v":0}]
[0,1,990,null,null,null,null,null,null,0,null,null,null,null,null,null,null,null,null,null,null,null,null,null,null,null,null,null,null,null,null,null,null,null,null,null,null,{"$f":"[3]Data!D225","v":16620},{"$f":"[3]Data!E225","v":"لايت 170جم عرض"},0,{"$f":"[3]الصباحى!Q225","v":0},{"$f":"[3]الصباحى!N225","v":0},{"$f":"'[3]تحميل تجزئه '!N225","v":0},{"$f":"[3]المسائى!N225","v":0}]
[0,1,990,null,null,null,null,null,null,0,null,null,null,null,null,null,null,null,null,null,null,null,null,null,null,null,null,null,null,null,null,null,null,null,null,null,null,{"$f":"[3]Data!D226","v":93650},{"$f":"[3]Data!E226","v":"طبيعي 400 جم"},0,{"$f":"[3]الصباحى!Q226","v":0},{"$f":"[3]الصباحى!N226","v":0},{"$f":"'[3]تحميل تجزئه '!N226","v":0},{"$f":"[3]المسائى!N226","v":0}]
[0,1,990,null,null,null,null,null,null,0,null,null,null,null,null,null,null,null,null,null,null,null,null,null,null,null,null,null,null,null,null,null,null,null,null,null,null,{"$f":"[3]Data!D227","v":0},{"$f":"[3]Data!E227","v":0},0,{"$f":"[3]الصباحى!Q227","v":0},{"$f":"[3]الصباحى!N227","v":0},{"$f":"'[3]تحميل تجزئه '!N227","v":0},{"$f":"[3]المسائى!N227","v":0}]
[0,1,990,null,null,null,null,null,null,0,null,null,null,null,null,null,null,null,null,null,null,null,null,null,null,null,null,null,null,null,null,null,null,null,null,null,null,{"$f":"[3]Data!D228","v":95160},{"$f":"[3]Data!E228","v":"كـــــريمه طهى 1 لتر  "},0,{"$f":"[3]الصباحى!Q228","v":0},{"$f":"[3]الصباحى!N228","v":0},{"$f":"'[3]تحميل تجزئه '!N228","v":0},{"$f":"[3]المسائى!N228","v":0}]
[0,1,990,null,null,null,null,null,null,0,null,null,null,null,null,null,null,null,null,null,null,null,null,null,null,null,null,null,null,null,null,null,null,null,null,null,null,{"$f":"[3]Data!D229","v":97720},{"$f":"[3]Data!E229","v":"طهى لتر عرض وفر 20 جنيه"},0,{"$f":"[3]الصباحى!Q229","v":0},{"$f":"[3]الصباحى!N229","v":0},{"$f":"'[3]تحميل تجزئه '!N229","v":0},{"$f":"[3]المسائى!N229","v":0}]
[0,2,990,null,null,null,null,null,null,0,null,null,null,null,null,null,null,null,null,null,null,null,null,null,null,null,null,null,null,null,null,null,null,null,null,null,null,{"$f":"[3]Data!D230","v":95170},{"$f":"[3]Data!E230","v":"كـــــــريمه خفق 1 لتر  "},0,{"$f":"[3]الصباحى!Q230","v":0},{"$f":"[3]الصباحى!N230","v":0},{"$f":"'[3]تحميل تجزئه '!N230","v":0},{"$f":"[3]المسائى!N230","v":0}]
[0,2,990,null,null,null,null,null,null,0,null,null,null,null,null,null,null,null,null,null,null,null,null,null,null,null,null,null,null,null,null,null,null,null,null,null,null,{"$f":"[3]Data!D231","v":97830},{"$f":"[3]Data!E231","v":"خفق لتر عرض وفر 20 جنيه"},0,{"$f":"[3]الصباحى!Q231","v":0},{"$f":"[3]الصباحى!N231","v":0},{"$f":"'[3]تحميل تجزئه '!N231","v":0},{"$f":"[3]المسائى!N231","v":0}]
[0,2,990,null,null,null,null,null,null,0,null,null,null,null,null,null,null,null,null,null,null,null,null,null,null,null,null,null,null,null,null,null,null,null,null,null,null,{"$f":"[3]Data!D232","v":16060},{"$f":"[3]Data!E232","v":"كـــــــريمه خفق 450  "},0,{"$f":"[3]الصباحى!Q232","v":0},{"$f":"[3]الصباحى!N232","v":0},{"$f":"'[3]تحميل تجزئه '!N232","v":0},{"$f":"[3]المسائى!N232","v":0}]
[0,2,990,null,null,null,null,null,null,0,null,null,null,null,null,null,null,null,null,null,null,null,null,null,null,null,null,null,null,null,null,null,null,null,null,null,null,{"$f":"[3]Data!D233","v":97820},{"$f":"[3]Data!E233","v":"خفق 500 مل جديد وفر 10 جنيه"},0,{"$f":"[3]الصباحى!Q233","v":0},{"$f":"[3]الصباحى!N233","v":0},{"$f":"'[3]تحميل تجزئه '!N233","v":0},{"$f":"[3]المسائى!N233","v":0}]
[0,2,990,null,null,null,null,null,null,0,null,null,null,null,null,null,null,null,null,null,null,null,null,null,null,null,null,null,null,null,null,null,null,null,null,null,null,{"$f":"[3]Data!D234","v":97650},{"$f":"[3]Data!E234","v":"كـــــــريمه طهي 450  "},0,{"$f":"[3]الصباحى!Q234","v":0},{"$f":"[3]الصباحى!N234","v":0},{"$f":"'[3]تحميل تجزئه '!N234","v":0},{"$f":"[3]المسائى!N234","v":0}]
[0,2,990,null,null,null,null,null,null,0,null,null,null,null,null,null,null,null,null,null,null,null,null,null,null,null,null,null,null,null,null,null,null,null,null,null,null,{"$f":"[3]Data!D235","v":97710},{"$f":"[3]Data!E235","v":"كـــــــريمه طهي 450  عرض"},0,{"$f":"[3]الصباحى!Q235","v":0},{"$f":"[3]الصباحى!N235","v":0},{"$f":"'[3]تحميل تجزئه '!N235","v":0},{"$f":"[3]المسائى!N235","v":0}]
[0,2,990,null,null,null,null,null,null,0,null,null,null,null,null,null,null,null,null,null,null,null,null,null,null,null,null,null,null,null,null,null,null,null,null,null,null,{"$f":"[3]Data!D236","v":98520},{"$f":"[3]Data!E236","v":"كــــــريمه خفق 200 مل"},0,{"$f":"[3]الصباحى!Q236","v":0},{"$f":"[3]الصباحى!N236","v":0},{"$f":"'[3]تحميل تجزئه '!N236","v":0},{"$f":"[3]المسائى!N236","v":0}]
[0,2,990,null,null,null,null,null,null,0,null,null,null,null,null,null,null,null,null,null,null,null,null,null,null,null,null,null,null,null,null,null,null,null,null,null,null,{"$f":"[3]Data!D237","v":97640},{"$f":"[3]Data!E237","v":"كـــــريمه خفق 200 مل"},0,{"$f":"[3]الصباحى!Q237","v":0},{"$f":"[3]الصباحى!N237","v":0},{"$f":"'[3]تحميل تجزئه '!N237","v":0},{"$f":"[3]المسائى!N237","v":0}]
[0,2,990,null,null,null,null,null,null,0,null,null,null,null,null,null,null,null,null,null,null,null,null,null,null,null,null,null,null,null,null,null,null,null,null,null,null,{"$f":"[3]Data!D238","v":97730},{"$f":"[3]Data!E238","v":"كــــــريمه خفق 200 مل عرض"},0,{"$f":"[3]الصباحى!Q238","v":0},{"$f":"[3]الصباحى!N238","v":0},{"$f":"'[3]تحميل تجزئه '!N238","v":0},{"$f":"[3]المسائى!N238","v":0}]
[0,2,990,null,null,null,null,null,null,0,null,null,null,null,null,null,null,null,null,null,null,null,null,null,null,null,null,null,null,null,null,null,null,null,null,null,null,{"$f":"[3]Data!D239","v":98530},{"$f":"[3]Data!E239","v":"كـــــريمه طهى 200 مل"},0,{"$f":"[3]الصباحى!Q239","v":0},{"$f":"[3]الصباحى!N239","v":0},{"$f":"'[3]تحميل تجزئه '!N239","v":0},{"$f":"[3]المسائى!N239","v":0}]
[0,2,990,null,null,null,null,null,null,0,null,null,null,null,null,null,null,null,null,null,null,null,null,null,null,null,null,null,null,null,null,null,null,null,null,null,null,{"$f":"[3]Data!D240","v":16590},{"$f":"[3]Data!E240","v":"كـــــريمه طهى 200 مل وفر"},0,{"$f":"[3]الصباحى!Q240","v":0},{"$f":"[3]الصباحى!N240","v":0},{"$f":"'[3]تحميل تجزئه '!N240","v":0},{"$f":"[3]المسائى!N240","v":0}]
[0,2,990,null,null,null,null,null,null,0,null,null,null,null,null,null,null,null,null,null,null,null,null,null,null,null,null,null,null,null,null,null,null,null,null,null,null,{"$f":"[3]Data!D241","v":97700},{"$f":"[3]Data!E241","v":"كريمه طهى 200 مل وفر"},0,{"$f":"[3]الصباحى!Q241","v":0},{"$f":"[3]الصباحى!N241","v":0},{"$f":"'[3]تحميل تجزئه '!N241","v":0},{"$f":"[3]المسائى!N241","v":0}]
[0,2,990,null,null,null,null,null,null,0,null,null,null,null,null,null,null,null,null,null,null,null,null,null,null,null,null,null,null,null,null,null,null,null,null,null,null,{"$f":"[3]Data!D242","v":97670},{"$f":"[3]Data!E242","v":"كريمه خفق 5 كيلو "},0,{"$f":"[3]الصباحى!Q242","v":0},{"$f":"[3]الصباحى!N242","v":0},{"$f":"'[3]تحميل تجزئه '!N242","v":0},{"$f":"[3]المسائى!N242","v":0}]
[0,2,990,null,null,null,null,null,null,0,null,null,null,null,null,null,null,null,null,null,null,null,null,null,null,null,null,null,null,null,null,null,null,null,null,null,null,{"$f":"[3]Data!D243","v":16420},{"$f":"[3]Data!E243","v":"كريمه خفق 10 كيلو "},0,{"$f":"[3]الصباحى!Q243","v":0},{"$f":"[3]الصباحى!N243","v":0},{"$f":"'[3]تحميل تجزئه '!N243","v":0},{"$f":"[3]المسائى!N243","v":0}]
[0,2,990,null,null,null,null,null,null,0,null,null,null,null,null,null,null,null,null,null,null,null,null,null,null,null,null,null,null,null,null,null,null,null,null,null,null,{"$f":"[3]Data!D244","v":0},{"$f":"[3]Data!E244","v":0},0,{"$f":"[3]الصباحى!Q244","v":0},{"$f":"[3]الصباحى!N244","v":0},{"$f":"'[3]تحميل تجزئه '!N244","v":0},{"$f":"[3]المسائى!N244","v":0}]
[0,2,990,null,null,null,null,null,null,0,null,null,null,null,null,null,null,null,null,null,null,null,null,null,null,null,null,null,null,null,null,null,null,null,null,null,null,{"$f":"[3]Data!D245","v":0},{"$f":"[3]Data!E245","v":0},0,{"$f":"[3]الصباحى!Q245","v":0},{"$f":"[3]الصباحى!N245","v":0},{"$f":"'[3]تحميل تجزئه '!N245","v":0},{"$f":"[3]المسائى!N245","v":0}]
[0,2,990,null,null,null,null,null,null,0,null,null,null,null,null,null,null,null,null,null,null,null,null,null,null,null,null,null,null,null,null,null,null,null,null,null,null,{"$f":"[3]Data!D246","v":0},{"$f":"[3]Data!E246","v":0},0,{"$f":"[3]الصباحى!Q246","v":0},{"$f":"[3]الصباحى!N246","v":0},{"$f":"'[3]تحميل تجزئه '!N246","v":0},{"$f":"[3]المسائى!N246","v":0}]
[0,2,990,null,null,null,null,null,null,0,null,null,null,null,null,null,null,null,null,null,null,null,null,null,null,null,null,null,null,null,null,null,null,null,null,null,null,{"$f":"[3]Data!D247","v":0},{"$f":"[3]Data!E247","v":0},0,{"$f":"[3]الصباحى!Q247","v":0},{"$f":"[3]الصباحى!N247","v":0},{"$f":"'[3]تحميل تجزئه '!N247","v":0},{"$f":"[3]المسائى!N247","v":0}]
[0,2,990,null,null,null,null,null,null,0,null,null,null,null,null,null,null,null,null,null,null,null,null,null,null,null,null,null,null,null,null,null,null,null,null,null,null,{"$f":"[3]Data!D248","v":0},{"$f":"[3]Data!E248","v":0},0,{"$f":"[3]الصباحى!Q248","v":0},{"$f":"[3]الصباحى!N248","v":0},{"$f":"'[3]تحميل تجزئه '!N248","v":0},{"$f":"[3]المسائى!N248","v":0}]
[0,2,990,null,null,null,null,null,null,0,null,null,null,null,null,null,null,null,null,null,null,null,null,null,null,null,null,null,null,null,null,null,null,null,null,null,null,{"$f":"[3]Data!D249","v":0},{"$f":"[3]Data!E249","v":0},0,{"$f":"[3]الصباحى!Q249","v":0},{"$f":"[3]الصباحى!N249","v":0},{"$f":"'[3]تحميل تجزئه '!N249","v":0},{"$f":"[3]المسائى!N249","v":0}]
[0,2,990,null,null,null,null,null,null,0,null,null,null,null,null,null,null,null,null,null,null,null,null,null,null,null,null,null,null,null,null,null,null,null,null,null,null,{"$f":"[3]Data!D250","v":0},{"$f":"[3]Data!E250","v":0},0,{"$f":"[3]الصباحى!Q250","v":0},{"$f":"[3]الصباحى!N250","v":0},{"$f":"'[3]تحميل تجزئه '!N250","v":0},{"$f":"[3]المسائى!N250","v":0}]
[0,2,990,null,null,null,null,null,null,0,null,null,null,null,null,null,null,null,null,null,null,null,null,null,null,null,null,null,null,null,null,null,null,null,null,null,null,{"$f":"[3]Data!D251","v":0},{"$f":"[3]Data!E251","v":0},0,{"$f":"[3]الصباحى!Q251","v":0},{"$f":"[3]الصباحى!N251","v":0},{"$f":"'[3]تحميل تجزئه '!N251","v":0},{"$f":"[3]المسائى!N251","v":0}]
[0,2,990,null,null,null,null,null,null,0,null,null,null,null,null,null,null,null,null,null,null,null,null,null,null,null,null,null,null,null,null,null,null,null,null,null,null,{"$f":"[3]Data!D252","v":0},{"$f":"[3]Data!E252","v":0},0,{"$f":"[3]الصباحى!Q252","v":0},{"$f":"[3]الصباحى!N252","v":0},{"$f":"'[3]تحميل تجزئه '!N252","v":0},{"$f":"[3]المسائى!N252","v":0}]
[0,2,990,null,null,null,null,null,null,0,null,null,null,null,null,null,null,null,null,null,null,null,null,null,null,null,null,null,null,null,null,null,null,null,null,null,null,{"$f":"[3]Data!D253","v":0},{"$f":"[3]Data!E253","v":0},0,{"$f":"[3]الصباحى!Q253","v":0},{"$f":"[3]الصباحى!N253","v":0},{"$f":"'[3]تحميل تجزئه '!N253","v":0},{"$f":"[3]المسائى!N253","v":0}]
[0,2,990,null,null,null,null,null,null,0,null,null,null,null,null,null,null,null,null,null,null,null,null,null,null,null,null,null,null,null,null,null,null,null,null,null,null,{"$f":"[3]Data!D254","v":99740},{"$f":"[3]Data!E254","v":"باسكت بلاستيك"},0,{"$f":"[3]الصباحى!Q254","v":0},{"$f":"[3]الصباحى!N254","v":0},{"$f":"'[3]تحميل تجزئه '!N254","v":0},{"$f":"[3]المسائى!N254","v":0}]
[0,2,990,null,null,null,null,null,null,0,null,null,null,null,null,null,null,null,null,null,null,null,null,null,null,null,null,null,null,null,null,null,null,null,null,null,null,{"$f":"[3]Data!D255","v":99750},{"$f":"[3]Data!E255","v":"بالته خشب"},0,{"$f":"[3]الصباحى!Q255","v":0},{"$f":"[3]الصباحى!N255","v":0},{"$f":"'[3]تحميل تجزئه '!N255","v":0},{"$f":"[3]المسائى!N255","v":0}]
[0,2,990,null,null,null,null,null,null,0,null,null,null,null,null,null,null,null,null,null,null,null,null,null,null,null,null,null,null,null,null,null,null,null,null,null,null,{"$f":"[3]Data!D256","v":0},{"$f":"[3]Data!E256","v":0},0,{"$f":"[3]الصباحى!Q256","v":0},{"$f":"[3]الصباحى!N256","v":0},{"$f":"'[3]تحميل تجزئه '!N256","v":0},{"$f":"[3]المسائى!N256","v":0}]
[0,2,990,null,null,null,null,null,null,0]
[0,2,990,null,null,null,null,null,null,0]
[0,2,990,null,null,null,null,null,null,0]
[0,2,990,null,null,null,null,null,null,0]
[0,2,990,null,null,null,null,null,null,0]
[0,2,990,null,null,null,null,null,null,0]
[0,2,990,null,null,null,null,null,null,0]
[0,2,990,null,null,null,null,null,null,0]
[0,2,990,null,null,null,null,null,null,{"$f":"VLOOKUP(E259,AL:AO,3,0)","v":0}]
[{"$f":"IF(D260=D259,SUMIF(D259:D259,D260,A259),A259+1)","v":0},2,990,null,null,null,null,null,null,0]
[0,2,990,null,null,null,null,null,null,0]
[0,2,990,null,null,null,null,null,null,0]
[0,2,990,null,null,null,null,null,null,0]
[0,2,990,null,null,null,null,null,null,0]
[0,2,990,null,null,null,null,null,null,0]
[0,2,990,null,null,null,null,null,null,0]
[0,2,990,null,null,null,null,null,null,0]
[0,2,990,null,null,null,null,null,null,0]
[0,2,990,null,null,null,null,null,null,0]
[0,2,990,null,null,null,null,null,null,0]
[0,2,990,null,null,null,null,null,null,0]
[0,2,990,null,null,null,null,null,null,0]
[0,2,990,null,null,null,null,null,null,0]
[0,2,990,null,null,null,null,null,null,0]
[0,2,990,null,null,null,null,null,null,0]
[0,2,990,null,null,null,null,null,null,0]
[0,2,990,null,null,null,null,null,null,0]
[0,2,990,null,null,null,null,null,null,0]
[0,2,990,null,null,null,null,null,null,0]
[0,2,990,null,null,null,null,null,null,0]
[0,2,990,null,null,null,null,null,null,0]
[0,2,990,null,null,null,null,null,null,0]
[0,2,990,null,null,null,null,null,null,0]
[0,2,990,null,null,null,null,null,null,0]
[0,2,990,null,null,null,null,null,null,0]
[0,2,990,null,null,null,null,null,null,0]
[0,2,990,null,null,null,null,null,null,0]
[0,2,990,null,null,null,null,null,null,0]
[0,2,990,null,null,null,null,null,null,0]
[0,2,990,null,null,null,null,null,null,0]
[0,2,990,null,null,null,null,null,null,0]
[0,2,990,null,null,null,null,null,null,0]
[0,2,990,null,null,null,null,null,null,0]
[0,2,990,null,null,null,null,null,null,0]
[0,2,990,null,null,null,null,null,null,0]
[0,2,990,null,null,null,null,null,null,0]
[0,2,990,null,null,null,null,null,null,0]
[0,2,990,null,null,null,null,null,null,0]
[0,2,990,null,null,null,null,null,null,0]
[0,2,990,null,null,null,null,null,null,0]
[0,2,990,null,null,null,null,null,null,0]
[0,2,990,null,null,null,null,null,null,0]
[0,2,990,null,null,null,null,null,null,0]
[0,2,990,null,null,null,null,null,null,0]
[0,2,990,null,null,null,null,null,null,0]
[0,2,990,null,null,null,null,null,null,0]
[0,2,990,null,null,null,null,null,null,0]
[0,2,990,null,null,null,null,null,null,0]
[0,2,990,null,null,null,null,null,null,0]
[0,2,990,null,null,null,null,null,null,0]
[0,2,990,null,null,null,null,null,null,0]
[0,2,990,null,null,null,null,null,null,0]
[0,2,990,null,null,null,null,null,null,0]
[0,2,990,null,null,null,null,null,null,0]
[0,2,990,null,null,null,null,null,null,0]
[0,2,990,null,null,null,null,null,null,0]
[0,2,990,null,null,null,null,null,null,0]
[0,2,990,null,null,null,null,null,null,0]
[0,2,990,null,null,null,null,null,null,0]
[0,2,990,null,null,null,null,null,null,0]
[0,2,990,null,null,null,null,null,null,0]
[0,2,990,null,null,null,null,null,null,0]
[0,2,990,null,null,null,null,null,null,{"$f":"VLOOKUP(E323,AL:AO,3,0)","v":0}]
[{"$f":"IF(D324=D323,SUMIF(D323:D323,D324,A323),A323+1)","v":0},2,990,null,null,null,null,null,null,0]
[0,2,990,null,null,null,null,null,null,0]
[0,2,990,null,null,null,null,null,null,0]
[0,2,990,null,null,null,null,null,null,0]
[0,2,990,null,null,null,null,null,null,0]
[0,2,990,null,null,null,null,null,null,0]
[0,2,990,null,null,null,null,null,null,0]
[0,2,990,null,null,null,null,null,null,0]
[0,2,990,null,null,null,null,null,null,0]
[0,2,990,null,null,null,null,null,null,0]
[0,2,990,null,null,null,null,null,null,0]
[0,2,990,null,null,null,null,null,null,0]
[0,2,990,null,null,null,null,null,null,0]
[0,2,990,null,null,null,null,null,null,0]
[0,2,990,null,null,null,null,null,null,0]
[0,2,990,null,null,null,null,null,null,0]
[0,2,990,null,null,null,null,null,null,0]
[0,2,990,null,null,null,null,null,null,0]
[0,2,990,null,null,null,null,null,null,0]
[0,2,990,null,null,null,null,null,null,0]
[0,2,990,null,null,null,null,null,null,0]
[0,2,990,null,null,null,null,null,null,0]
[0,2,990,null,null,null,null,null,null,0]
[0,2,990,null,null,null,null,null,null,0]
[0,2,990,null,null,null,null,null,null,0]
[0,2,990,null,null,null,null,null,null,0]
[0,2,990,null,null,null,null,null,null,0]
[0,2,990,null,null,null,null,null,null,0]
[0,2,990,null,null,null,null,null,null,0]
[0,2,990,null,null,null,null,null,null,0]
[0,2,990,null,null,null,null,null,null,0]
[0,2,990,null,null,null,null,null,null,0]
[0,2,990,null,null,null,null,null,null,0]
[0,2,990,null,null,null,null,null,null,0]
[0,2,990,null,null,null,null,null,null,0]
[0,2,990,null,null,null,null,null,null,0]
[0,2,990,null,null,null,null,null,null,0]
[0,2,990,null,null,null,null,null,null,0]
[0,2,990,null,null,null,null,null,null,0]
[0,2,990,null,null,null,null,null,null,0]
[0,2,990,null,null,null,null,null,null,0]
[0,2,990,null,null,null,null,null,null,0]
[0,2,990,null,null,null,null,null,null,0]
[0,2,990,null,null,null,null,null,null,0]
[0,2,990,null,null,null,null,null,null,0]
[0,2,990,null,null,null,null,null,null,0]
[0,2,990,null,null,null,null,null,null,0]
[0,2,990,null,null,null,null,null,null,0]
[0,2,990,null,null,null,null,null,null,0]
[0,2,990,null,null,null,null,null,null,0]
[0,2,990,null,null,null,null,null,null,0]
[0,2,990,null,null,null,null,null,null,0]
[0,2,990,null,null,null,null,null,null,0]
[0,2,990,null,null,null,null,null,null,0]
[0,2,990,null,null,null,null,null,null,0]
[0,2,990,null,null,null,null,null,null,0]
[0,2,990,null,null,null,null,null,null,0]
[0,2,990,null,null,null,null,null,null,0]
[0,2,990,null,null,null,null,null,null,0]
[0,2,990,null,null,null,null,null,null,0]
[0,2,990,null,null,null,null,null,null,0]
[0,2,990,null,null,null,null,null,null,0]
[0,2,990,null,null,null,null,null,null,0]
[0,2,990,null,null,null,null,null,null,{"$f":"VLOOKUP(E387,AL:AO,3,0)","v":0}]
[{"$f":"IF(D388=D387,SUMIF(D387:D387,D388,A387),A387+1)","v":0},2,990,null,null,null,null,null,null,0]
[0,2,990,null,null,null,null,null,null,0]
[0,2,990,null,null,null,null,null,null,0]
[0,2,990,null,null,null,null,null,null,0]
[0,2,990,null,null,null,null,null,null,0]
[0,2,990,null,null,null,null,null,null,0]
[0,2,990,null,null,null,null,null,null,0]
[0,2,990,null,null,null,null,null,null,0]
[0,2,990,null,null,null,null,null,null,0]
[0,2,990,null,null,null,null,null,null,0]
[0,2,990,null,null,null,null,null,null,0]
[0,2,990,null,null,null,null,null,null,0]
[0,2,990,null,null,null,null,null,null,0]
[0,2,990,null,null,null,null,null,null,0]
[0,2,990,null,null,null,null,null,null,0]
[0,2,990,null,null,null,null,null,null,0]
[0,2,990,null,null,null,null,null,null,0]
[0,2,990,null,null,null,null,null,null,0]
[0,2,990,null,null,null,null,null,null,0]
[0,2,990,null,null,null,null,null,null,0]
[0,2,990,null,null,null,null,null,null,0]
[0,2,990,null,null,null,null,null,null,0]
[0,2,990,null,null,null,null,null,null,0]
[0,2,990,null,null,null,null,null,null,0]
[0,2,990,null,null,null,null,null,null,0]
[0,2,990,null,null,null,null,null,null,0]
[0,2,990,null,null,null,null,null,null,0]
[0,2,990,null,null,null,null,null,null,0]
[0,2,990,null,null,null,null,null,null,0]
[0,2,990,null,null,null,null,null,null,0]
[0,2,990,null,null,null,null,null,null,0]
[0,2,990,null,null,null,null,null,null,0]
[0,2,990,null,null,null,null,null,null,0]
[0,2,990,null,null,null,null,null,null,0]
[0,2,990,null,null,null,null,null,null,0]
[0,2,990,null,null,null,null,null,null,0]
[0,2,990,null,null,null,null,null,null,0]
[0,2,990,null,null,null,null,null,null,0]
[0,2,990,null,null,null,null,null,null,0]
[0,2,990,null,null,null,null,null,null,0]
[0,2,990,null,null,null,null,null,null,0]
[0,2,990,null,null,null,null,null,null,0]
[0,2,990,null,null,null,null,null,null,0]
[0,2,990,null,null,null,null,null,null,0]
[0,2,990,null,null,null,null,null,null,0]
[0,2,990,null,null,null,null,null,null,0]
[0,2,990,null,null,null,null,null,null,0]
[0,2,990,null,null,null,null,null,null,0]
[0,2,990,null,null,null,null,null,null,0]
[0,2,990,null,null,null,null,null,null,0]
[0,2,990,null,null,null,null,null,null,0]
[0,2,990,null,null,null,null,null,null,0]
[0,2,990,null,null,null,null,null,null,0]
[0,2,990,null,null,null,null,null,null,0]
[0,2,990,null,null,null,null,null,null,0]
[0,2,990,null,null,null,null,null,null,0]
[0,2,990,null,null,null,null,null,null,0]
[0,2,990,null,null,null,null,null,null,0]
[0,2,990,null,null,null,null,null,null,0]
[0,2,990,null,null,null,null,null,null,0]
[0,2,990,null,null,null,null,null,null,0]
[0,2,990,null,null,null,null,null,null,0]
[0,2,990,null,null,null,null,null,null,0]
[0,2,990,null,null,null,null,null,null,{"$f":"VLOOKUP(E451,AL:AO,3,0)","v":0}]
[{"$f":"IF(D452=D451,SUMIF(D451:D451,D452,A451),A451+1)","v":0},2,990,null,null,null,null,null,null,0]
[0,2,990,null,null,null,null,null,null,0]
[0,2,990,null,null,null,null,null,null,0]
[0,2,990,null,null,null,null,null,null,0]
[0,2,990,null,null,null,null,null,null,0]
[0,2,990,null,null,null,null,null,null,0]
[0,2,990,null,null,null,null,null,null,0]
[0,2,990,null,null,null,null,null,null,0]
[0,2,990,null,null,null,null,null,null,0]
[0,2,990,null,null,null,null,null,null,0]
[0,2,990,null,null,null,null,null,null,0]
[0,2,990,null,null,null,null,null,null,0]
[0,2,990,null,null,null,null,null,null,0]
[0,2,990,null,null,null,null,null,null,0]
[0,2,990,null,null,null,null,null,null,0]
[0,2,990,null,null,null,null,null,null,0]
[0,2,990,null,null,null,null,null,null,0]
[0,2,990,null,null,null,null,null,null,0]
[0,2,990,null,null,null,null,null,null,0]
[0,2,990,null,null,null,null,null,null,0]
[0,2,990,null,null,null,null,null,null,0]
[0,2,990,null,null,null,null,null,null,0]
[0,2,990,null,null,null,null,null,null,0]
[0,2,990,null,null,null,null,null,null,0]
[0,2,990,null,null,null,null,null,null,0]
[0,2,990,null,null,null,null,null,null,0]
[0,2,990,null,null,null,null,null,null,0]
[0,2,990,null,null,null,null,null,null,0]
[0,2,990,null,null,null,null,null,null,0]
[0,2,990,null,null,null,null,null,null,0]
[0,2,990,null,null,null,null,null,null,0]
[0,2,990,null,null,null,null,null,null,0]
[0,2,990,null,null,null,null,null,null,0]
[0,2,990,null,null,null,null,null,null,0]
[0,2,990,null,null,null,null,null,null,0]
[0,2,990,null,null,null,null,null,null,0]
[0,2,990,null,null,null,null,null,null,0]
[0,2,990,null,null,null,null,null,null,0]
[0,2,990,null,null,null,null,null,null,0]
[0,2,990,null,null,null,null,null,null,0]
[0,2,990,null,null,null,null,null,null,0]
[0,2,990,null,null,null,null,null,null,0]
[0,2,990,null,null,null,null,null,null,0]
[0,2,990,null,null,null,null,null,null,0]
[0,2,990,null,null,null,null,null,null,0]
[0,2,990,null,null,null,null,null,null,0]
[0,2,990,null,null,null,null,null,null,0]
[0,2,990,null,null,null,null,null,null,0]
[0,2,990,null,null,null,null,null,null,0]
[0,2,990,null,null,null,null,null,null,0]
[0,2,990,null,null,null,null,null,null,0]
[0,2,990,null,null,null,null,null,null,0]
[0,2,990,null,null,null,null,null,null,0]
[0,2,990,null,null,null,null,null,null,0]
[0,2,990,null,null,null,null,null,null,0]
[0,2,990,null,null,null,null,null,null,0]
[0,2,990,null,null,null,null,null,null,0]
[0,2,990,null,null,null,null,null,null,0]
[0,2,990,null,null,null,null,null,null,0]
[0,2,990,null,null,null,null,null,null,0]
[0,2,990,null,null,null,null,null,null,0]
[0,2,990,null,null,null,null,null,null,0]
[0,2,990,null,null,null,null,null,null,0]
[0,2,990,null,null,null,null,null,null,{"$f":"VLOOKUP(E515,AL:AO,3,0)","v":0}]
[{"$f":"IF(D516=D515,SUMIF(D515:D515,D516,A515),A515+1)","v":0},2,990,null,null,null,null,null,null,0]
[0,2,990,null,null,null,null,null,null,0]
[0,2,990,null,null,null,null,null,null,0]
[0,2,990,null,null,null,null,null,null,0]
[0,2,990,null,null,null,null,null,null,0]
[0,2,990,null,null,null,null,null,null,0]
[0,2,990,null,null,null,null,null,null,0]
[0,2,990,null,null,null,null,null,null,0]
[0,2,990,null,null,null,null,null,null,0]
[0,2,990,null,null,null,null,null,null,0]
[0,2,990,null,null,null,null,null,null,0]
[0,2,990,null,null,null,null,null,null,0]
[0,2,990,null,null,null,null,null,null,0]
[0,2,990,null,null,null,null,null,null,0]
[0,2,990,null,null,null,null,null,null,0]
[0,2,990,null,null,null,null,null,null,0]
[0,2,990,null,null,null,null,null,null,0]
[0,2,990,null,null,null,null,null,null,0]
[0,2,990,null,null,null,null,null,null,0]
[0,2,990,null,null,null,null,null,null,0]
[0,2,990,null,null,null,null,null,null,0]
[0,2,990,null,null,null,null,null,null,0]
[0,2,990,null,null,null,null,null,null,0]
[0,2,990,null,null,null,null,null,null,0]
[0,2,990,null,null,null,null,null,null,0]
[0,2,990,null,null,null,null,null,null,0]
[0,2,990,null,null,null,null,null,null,0]
[0,2,990,null,null,null,null,null,null,0]
[0,2,990,null,null,null,null,null,null,0]
[0,2,990,null,null,null,null,null,null,0]
[0,2,990,null,null,null,null,null,null,0]
[0,2,990,null,null,null,null,null,null,0]
[0,2,990,null,null,null,null,null,null,0]
[0,2,990,null,null,null,null,null,null,0]
[0,2,990,null,null,null,null,null,null,0]
[0,2,990,null,null,null,null,null,null,0]
[0,2,990,null,null,null,null,null,null,0]
[0,2,990,null,null,null,null,null,null,0]
[0,2,990,null,null,null,null,null,null,0]
[0,2,990,null,null,null,null,null,null,0]
[0,2,990,null,null,null,null,null,null,0]
[0,2,990,null,null,null,null,null,null,0]
[0,2,990,null,null,null,null,null,null,0]
[0,2,990,null,null,null,null,null,null,0]
[0,2,990,null,null,null,null,null,null,0]
[0,2,990,null,null,null,null,null,null,0]
[0,2,990,null,null,null,null,null,null,0]
[0,2,990,null,null,null,null,null,null,0]
[0,2,990,null,null,null,null,null,null,0]
[0,2,990,null,null,null,null,null,null,0]
[0,2,990,null,null,null,null,null,null,0]
[0,2,990,null,null,null,null,null,null,0]
[0,2,990,null,null,null,null,null,null,0]
[0,2,990,null,null,null,null,null,null,0]
[0,2,990,null,null,null,null,null,null,0]
[0,2,990,null,null,null,null,null,null,0]
[0,2,990,null,null,null,null,null,null,0]
[0,2,990,null,null,null,null,null,null,0]
[0,2,990,null,null,null,null,null,null,0]
[0,2,990,null,null,null,null,null,null,0]
[0,2,990,null,null,null,null,null,null,0]
[0,2,990,null,null,null,null,null,null,0]
[0,2,990,null,null,null,null,null,null,0]
[0,2,990,null,null,null,null,null,null,{"$f":"VLOOKUP(E579,AL:AO,3,0)","v":0}]
[{"$f":"IF(D580=D579,SUMIF(D579:D579,D580,A579),A579+1)","v":0},2,990,null,null,null,null,null,null,0]
[0,2,990,null,null,null,null,null,null,0]
[0,2,990,null,null,null,null,null,null,0]
[0,2,990,null,null,null,null,null,null,0]
[0,2,990,null,null,null,null,null,null,0]
[0,2,990,null,null,null,null,null,null,0]
[0,2,990,null,null,null,null,null,null,0]
[0,2,990,null,null,null,null,null,null,0]
[0,2,990,null,null,null,null,null,null,0]
[0,2,990,null,null,null,null,null,null,0]
[0,2,990,null,null,null,null,null,null,0]
[0,2,990,null,null,null,null,null,null,0]
[0,2,990,null,null,null,null,null,null,0]
[0,2,990,null,null,null,null,null,null,0]
[0,2,990,null,null,null,null,null,null,0]
[0,2,990,null,null,null,null,null,null,0]
[0,2,990,null,null,null,null,null,null,0]
[0,2,990,null,null,null,null,null,null,0]
[0,2,990,null,null,null,null,null,null,0]
[0,2,990,null,null,null,null,null,null,0]
[0,2,990,null,null,null,null,null,null,0]
[0,2,990,null,null,null,null,null,null,0]
[0,2,990,null,null,null,null,null,null,0]
[0,2,990,null,null,null,null,null,null,0]
[0,2,990,null,null,null,null,null,null,0]
[0,2,990,null,null,null,null,null,null,0]
[0,2,990,null,null,null,null,null,null,0]
[0,2,990,null,null,null,null,null,null,0]
[0,2,990,null,null,null,null,null,null,0]
[0,2,990,null,null,null,null,null,null,0]
[0,2,990,null,null,null,null,null,null,0]
[0,2,990,null,null,null,null,null,null,0]
[0,2,990,null,null,null,null,null,null,0]
[0,2,990,null,null,null,null,null,null,0]
[0,2,990,null,null,null,null,null,null,0]
[0,2,990,null,null,null,null,null,null,0]
[0,2,990,null,null,null,null,null,null,0]
[0,2,990,null,null,null,null,null,null,0]
[0,2,990,null,null,null,null,null,null,0]
[0,2,990,null,null,null,null,null,null,0]
[0,2,990,null,null,null,null,null,null,0]
[0,2,990,null,null,null,null,null,null,0]
[0,2,990,null,null,null,null,null,null,0]
[0,2,990,null,null,null,null,null,null,0]
[0,2,990,null,null,null,null,null,null,0]
[0,2,990,null,null,null,null,null,null,0]
[0,2,990,null,null,null,null,null,null,0]
[0,2,990,null,null,null,null,null,null,0]
[0,2,990,null,null,null,null,null,null,0]
[0,2,990,null,null,null,null,null,null,0]
[0,2,990,null,null,null,null,null,null,0]
[0,2,990,null,null,null,null,null,null,0]
[0,2,990,null,null,null,null,null,null,0]
[0,2,990,null,null,null,null,null,null,0]
[0,2,990,null,null,null,null,null,null,0]
[0,2,990,null,null,null,null,null,null,0]
[0,2,990,null,null,null,null,null,null,0]
[0,2,990,null,null,null,null,null,null,0]
[0,2,990,null,null,null,null,null,null,0]
[0,2,990,null,null,null,null,null,null,0]
[0,2,990,null,null,null,null,null,null,0]
[0,2,990,null,null,null,null,null,null,0]
[0,2,990,null,null,null,null,null,null,0]
[0,2,990,null,null,null,null,null,null,{"$f":"VLOOKUP(E643,AL:AO,3,0)","v":0}]
[{"$f":"IF(D644=D643,SUMIF(D643:D643,D644,A643),A643+1)","v":0},2,990,null,null,null,null,null,null,0]
[0,2,990,null,null,null,null,null,null,0]
[0,2,990,null,null,null,null,null,null,0]
[0,2,990,null,null,null,null,null,null,0]
[0,2,990,null,null,null,null,null,null,0]
[0,2,990,null,null,null,null,null,null,0]
[0,2,990,null,null,null,null,null,null,0]
[0,2,990,null,null,null,null,null,null,0]
[0,2,990,null,null,null,null,null,null,0]
[0,2,990,null,null,null,null,null,null,0]
[0,2,990,null,null,null,null,null,null,0]
[0,2,990,null,null,null,null,null,null,0]
[0,2,990,null,null,null,null,null,null,0]
[0,2,990,null,null,null,null,null,null,0]
[0,2,990,null,null,null,null,null,null,0]
[0,2,990,null,null,null,null,null,null,0]
[0,2,990,null,null,null,null,null,null,0]
[0,2,990,null,null,null,null,null,null,0]
[0,2,990,null,null,null,null,null,null,0]
[0,2,990,null,null,null,null,null,null,0]
[0,2,990,null,null,null,null,null,null,0]
[0,2,990,null,null,null,null,null,null,0]
[0,2,990,null,null,null,null,null,null,0]
[0,2,990,null,null,null,null,null,null,0]
[0,2,990,null,null,null,null,null,null,0]
[0,2,990,null,null,null,null,null,null,0]
[0,2,990,null,null,null,null,null,null,0]
[0,2,990,null,null,null,null,null,null,0]
[0,2,990,null,null,null,null,null,null,0]
[0,2,990,null,null,null,null,null,null,0]
[0,2,990,null,null,null,null,null,null,0]
[0,2,990,null,null,null,null,null,null,0]
[0,2,990,null,null,null,null,null,null,0]
[0,2,990,null,null,null,null,null,null,0]
[0,2,990,null,null,null,null,null,null,0]
[0,2,990,null,null,null,null,null,null,0]
[0,2,990,null,null,null,null,null,null,0]
[0,2,990,null,null,null,null,null,null,0]
[0,2,990,null,null,null,null,null,null,0]
[0,2,990,null,null,null,null,null,null,0]
[0,2,990,null,null,null,null,null,null,0]
[0,2,990,null,null,null,null,null,null,0]
[0,2,990,null,null,null,null,null,null,0]
[0,2,990,null,null,null,null,null,null,0]
[0,2,990,null,null,null,null,null,null,0]
[0,2,990,null,null,null,null,null,null,0]
[0,2,990,null,null,null,null,null,null,0]
[0,2,990,null,null,null,null,null,null,0]
[0,2,990,null,null,null,null,null,null,0]
[0,2,990,null,null,null,null,null,null,0]
[0,2,990,null,null,null,null,null,null,0]
[0,2,990,null,null,null,null,null,null,0]
[0,2,990,null,null,null,null,null,null,0]
[0,2,990,null,null,null,null,null,null,0]
[0,2,990,null,null,null,null,null,null,0]
[0,2,990,null,null,null,null,null,null,0]
[0,2,990,null,null,null,null,null,null,0]
[0,2,990,null,null,null,null,null,null,0]
[0,2,990,null,null,null,null,null,null,0]
[0,2,990,null,null,null,null,null,null,0]
[0,2,990,null,null,null,null,null,null,0]
[0,2,990,null,null,null,null,null,null,0]
[0,2,990,null,null,null,null,null,null,0]
[0,2,990,null,null,null,null,null,null,{"$f":"VLOOKUP(E707,AL:AO,3,0)","v":0}]
[{"$f":"IF(D708=D707,SUMIF(D707:D707,D708,A707),A707+1)","v":0},2,990,null,null,null,null,null,null,0]
[0,2,990,null,null,null,null,null,null,0]
[0,2,990,null,null,null,null,null,null,0]
[0,2,990,null,null,null,null,null,null,0]
[0,2,990,null,null,null,null,null,null,0]
[0,2,990,null,null,null,null,null,null,0]
[0,2,990,null,null,null,null,null,null,0]
[0,2,990,null,null,null,null,null,null,0]
[0,2,990,null,null,null,null,null,null,0]
[0,2,990,null,null,null,null,null,null,0]
[0,2,990,null,null,null,null,null,null,0]
[0,2,990,null,null,null,null,null,null,0]
[0,2,990,null,null,null,null,null,null,0]
[0,2,990,null,null,null,null,null,null,0]
[0,2,990,null,null,null,null,null,null,0]
[0,2,990,null,null,null,null,null,null,0]
[0,2,990,null,null,null,null,null,null,0]
[0,2,990,null,null,null,null,null,null,0]
[0,2,990,null,null,null,null,null,null,0]
[0,2,990,null,null,null,null,null,null,0]
[0,2,990,null,null,null,null,null,null,0]
[0,2,990,null,null,null,null,null,null,0]
[0,2,990,null,null,null,null,null,null,0]
[0,2,990,null,null,null,null,null,null,0]
[0,2,990,null,null,null,null,null,null,0]
[0,2,990,null,null,null,null,null,null,0]
[0,2,990,null,null,null,null,null,null,0]
[0,2,990,null,null,null,null,null,null,0]
[0,2,990,null,null,null,null,null,null,0]
[0,2,990,null,null,null,null,null,null,0]
[0,2,990,null,null,null,null,null,null,0]
[0,2,990,null,null,null,null,null,null,0]
[0,2,990,null,null,null,null,null,null,0]
[0,2,990,null,null,null,null,null,null,0]
[0,2,990,null,null,null,null,null,null,0]
[0,2,990,null,null,null,null,null,null,0]
[0,2,990,null,null,null,null,null,null,0]
[0,2,990,null,null,null,null,null,null,0]
[0,2,990,null,null,null,null,null,null,0]
[0,2,990,null,null,null,null,null,null,0]
[0,2,990,null,null,null,null,null,null,0]
[0,2,990,null,null,null,null,null,null,0]
[0,2,990,null,null,null,null,null,null,0]
[0,2,990,null,null,null,null,null,null,0]
[0,2,990,null,null,null,null,null,null,0]
[0,2,990,null,null,null,null,null,null,0]
[0,2,990,null,null,null,null,null,null,0]
[0,2,990,null,null,null,null,null,null,0]
[0,2,990,null,null,null,null,null,null,0]
[0,2,990,null,null,null,null,null,null,0]
[0,2,990,null,null,null,null,null,null,0]
[0,2,990,null,null,null,null,null,null,0]
[0,2,990,null,null,null,null,null,null,0]
[0,2,990,null,null,null,null,null,null,0]
[0,2,990,null,null,null,null,null,null,0]
[0,2,990,null,null,null,null,null,null,0]
[0,2,990,null,null,null,null,null,null,0]
[0,2,990,null,null,null,null,null,null,0]
[0,2,990,null,null,null,null,null,null,0]
[0,2,990,null,null,null,null,null,null,0]
[0,2,990,null,null,null,null,null,null,0]
[0,2,990,null,null,null,null,null,null,0]
[0,2,990,null,null,null,null,null,null,0]
[0,2,990,null,null,null,null,null,null,{"$f":"VLOOKUP(E771,AL:AO,3,0)","v":0}]
[{"$f":"IF(D772=D771,SUMIF(D771:D771,D772,A771),A771+1)","v":0},2,990,null,null,null,null,null,null,0]
[0,2,990,null,null,null,null,null,null,0]
[0,2,990,null,null,null,null,null,null,0]
[0,2,990,null,null,null,null,null,null,0]
[0,2,990,null,null,null,null,null,null,0]
[0,2,990,null,null,null,null,null,null,0]
[0,2,990,null,null,null,null,null,null,0]
[0,2,990,null,null,null,null,null,null,0]
[0,2,990,null,null,null,null,null,null,0]
[0,2,990,null,null,null,null,null,null,0]
[0,2,990,null,null,null,null,null,null,0]
[0,2,990,null,null,null,null,null,null,0]
[0,2,990,null,null,null,null,null,null,0]
[0,2,990,null,null,null,null,null,null,0]
[0,2,990,null,null,null,null,null,null,0]
[0,2,990,null,null,null,null,null,null,0]
[0,2,990,null,null,null,null,null,null,0]
[0,2,990,null,null,null,null,null,null,0]
[0,2,990,null,null,null,null,null,null,0]
[0,2,990,null,null,null,null,null,null,0]
[0,2,990,null,null,null,null,null,null,0]
[0,2,990,null,null,null,null,null,null,0]
[0,2,990,null,null,null,null,null,null,0]
[0,2,990,null,null,null,null,null,null,0]
[0,2,990,null,null,null,null,null,null,0]
[0,2,990,null,null,null,null,null,null,0]
[0,2,990,null,null,null,null,null,null,0]
[0,2,990,null,null,null,null,null,null,0]
[0,2,990,null,null,null,null,null,null,0]
[0,2,990,null,null,null,null,null,null,0]
[0,2,990,null,null,null,null,null,null,0]
[0,2,990,null,null,null,null,null,null,0]
[0,2,990,null,null,null,null,null,null,0]
[0,2,990,null,null,null,null,null,null,0]
[0,2,990,null,null,null,null,null,null,0]
[0,2,990,null,null,null,null,null,null,0]
[0,2,990,null,null,null,null,null,null,0]
[0,2,990,null,null,null,null,null,null,0]
[0,2,990,null,null,null,null,null,null,0]
[0,2,990,null,null,null,null,null,null,0]
[0,2,990,null,null,null,null,null,null,0]
[0,2,990,null,null,null,null,null,null,0]
[0,2,990,null,null,null,null,null,null,0]
[0,2,990,null,null,null,null,null,null,0]
[0,2,990,null,null,null,null,null,null,0]
[0,2,990,null,null,null,null,null,null,0]
[0,2,990,null,null,null,null,null,null,0]
[0,2,990,null,null,null,null,null,null,0]
[0,2,990,null,null,null,null,null,null,0]
[0,2,990,null,null,null,null,null,null,0]
[0,2,990,null,null,null,null,null,null,0]
[0,2,990,null,null,null,null,null,null,0]
[0,2,990,null,null,null,null,null,null,0]
[0,2,990,null,null,null,null,null,null,0]
[0,2,990,null,null,null,null,null,null,0]
[0,2,990,null,null,null,null,null,null,0]
[0,2,990,null,null,null,null,null,null,0]
[0,2,990,null,null,null,null,null,null,0]
[0,2,990,null,null,null,null,null,null,0]
[0,2,990,null,null,null,null,null,null,0]
[0,2,990,null,null,null,null,null,null,0]
[0,2,990,null,null,null,null,null,null,0]
[0,2,990,null,null,null,null,null,null,0]
[0,2,990,null,null,null,null,null,null,{"$f":"VLOOKUP(E835,AL:AO,3,0)","v":0}]
[{"$f":"IF(D836=D835,SUMIF(D835:D835,D836,A835),A835+1)","v":0},2,990,null,null,null,null,null,null,0]
[0,2,990,null,null,null,null,null,null,0]
[0,2,990,null,null,null,null,null,null,0]
[0,2,990,null,null,null,null,null,null,0]
[0,2,990,null,null,null,null,null,null,0]
[0,2,990,null,null,null,null,null,null,0]
[0,2,990,null,null,null,null,null,null,0]
[0,2,990,null,null,null,null,null,null,0]
[0,2,990,null,null,null,null,null,null,0]
[0,2,990,null,null,null,null,null,null,0]
[0,2,990,null,null,null,null,null,null,0]
[0,2,990,null,null,null,null,null,null,0]
[0,2,990,null,null,null,null,null,null,0]
[0,2,990,null,null,null,null,null,null,0]
[0,2,990,null,null,null,null,null,null,0]
[0,2,990,null,null,null,null,null,null,0]
[0,2,990,null,null,null,null,null,null,0]
[0,2,990,null,null,null,null,null,null,0]
[0,2,990,null,null,null,null,null,null,0]
[0,2,990,null,null,null,null,null,null,0]
[0,2,990,null,null,null,null,null,null,0]
[0,2,990,null,null,null,null,null,null,0]
[0,2,990,null,null,null,null,null,null,0]
[0,2,990,null,null,null,null,null,null,0]
[0,2,990,null,null,null,null,null,null,0]
[0,2,990,null,null,null,null,null,null,0]
[0,2,990,null,null,null,null,null,null,0]
[0,2,990,null,null,null,null,null,null,0]
[0,2,990,null,null,null,null,null,null,0]
[0,2,990,null,null,null,null,null,null,0]
[0,2,990,null,null,null,null,null,null,0]
[0,2,990,null,null,null,null,null,null,0]
[0,2,990,null,null,null,null,null,null,0]
[0,2,990,null,null,null,null,null,null,0]
[0,2,990,null,null,null,null,null,null,0]
[0,2,990,null,null,null,null,null,null,0]
[0,2,990,null,null,null,null,null,null,0]
[0,2,990,null,null,null,null,null,null,0]
[0,2,990,null,null,null,null,null,null,0]
[0,2,990,null,null,null,null,null,null,0]
[0,2,990,null,null,null,null,null,null,0]
[0,2,990,null,null,null,null,null,null,0]
[0,2,990,null,null,null,null,null,null,0]
[0,2,990,null,null,null,null,null,null,0]
[0,2,990,null,null,null,null,null,null,0]
[0,2,990,null,null,null,null,null,null,0]
[0,2,990,null,null,null,null,null,null,0]
[0,2,990,null,null,null,null,null,null,0]
[0,2,990,null,null,null,null,null,null,0]
[0,2,990,null,null,null,null,null,null,0]
[0,2,990,null,null,null,null,null,null,0]
[0,2,990,null,null,null,null,null,null,0]
[0,2,990,null,null,null,null,null,null,0]
[0,2,990,null,null,null,null,null,null,0]
[0,2,990,null,null,null,null,null,null,0]
[0,2,990,null,null,null,null,null,null,0]
[0,2,990,null,null,null,null,null,null,0]
[0,2,990,null,null,null,null,null,null,0]
[0,2,990,null,null,null,null,null,null,0]
[0,2,990,null,null,null,null,null,null,0]
[0,2,990,null,null,null,null,null,null,0]
[0,2,990,null,null,null,null,null,null,0]
[0,2,990,null,null,null,null,null,null,0]
[0,2,990,null,null,null,null,null,null,{"$f":"VLOOKUP(E899,AL:AO,3,0)","v":0}]
[{"$f":"IF(D900=D899,SUMIF(D899:D899,D900,A899),A899+1)","v":0},2,990,null,null,null,null,null,null,0]
[0,2,990,null,null,null,null,null,null,0]
[0,2,990,null,null,null,null,null,null,0]
[0,2,990,null,null,null,null,null,null,0]
[0,2,990,null,null,null,null,null,null,0]
[0,2,990,null,null,null,null,null,null,0]
[0,2,990,null,null,null,null,null,null,0]
[0,2,990,null,null,null,null,null,null,0]
[0,2,990,null,null,null,null,null,null,0]
[0,2,990,null,null,null,null,null,null,0]
[0,2,990,null,null,null,null,null,null,0]
[0,2,990,null,null,null,null,null,null,0]
[0,2,990,null,null,null,null,null,null,0]
[0,2,990,null,null,null,null,null,null,0]
[0,2,990,null,null,null,null,null,null,0]
[0,2,990,null,null,null,null,null,null,0]
[0,2,990,null,null,null,null,null,null,0]
[0,2,990,null,null,null,null,null,null,0]
[0,2,990,null,null,null,null,null,null,0]
[0,2,990,null,null,null,null,null,null,0]
[0,2,990,null,null,null,null,null,null,0]
[0,2,990,null,null,null,null,null,null,0]
[0,2,990,null,null,null,null,null,null,0]
[0,2,990,null,null,null,null,null,null,0]
[0,2,990,null,null,null,null,null,null,0]
[0,2,990,null,null,null,null,null,null,0]
[0,2,990,null,null,null,null,null,null,0]
[0,2,990,null,null,null,null,null,null,0]
[0,2,990,null,null,null,null,null,null,0]
[0,2,990,null,null,null,null,null,null,0]
[0,2,990,null,null,null,null,null,null,0]
[0,2,990,null,null,null,null,null,null,0]
[0,2,990,null,null,null,null,null,null,0]
[0,2,990,null,null,null,null,null,null,0]
[0,2,990,null,null,null,null,null,null,0]
[0,2,990,null,null,null,null,null,null,0]
[0,2,990,null,null,null,null,null,null,0]
[0,2,990,null,null,null,null,null,null,0]
[0,2,990,null,null,null,null,null,null,0]
[0,2,990,null,null,null,null,null,null,0]
[0,2,990,null,null,null,null,null,null,0]
[0,2,990,null,null,null,null,null,null,0]
[0,2,990,null,null,null,null,null,null,0]
[0,2,990,null,null,null,null,null,null,0]
[0,2,990,null,null,null,null,null,null,0]
[0,2,990,null,null,null,null,null,null,0]
[0,2,990,null,null,null,null,null,null,0]
[0,2,990,null,null,null,null,null,null,0]
[0,2,990,null,null,null,null,null,null,0]
[0,2,990,null,null,null,null,null,null,0]
[0,2,990,null,null,null,null,null,null,0]
[0,2,990,null,null,null,null,null,null,0]
[0,2,990,null,null,null,null,null,null,0]
[0,2,990,null,null,null,null,null,null,0]
[0,2,990,null,null,null,null,null,null,0]
[0,2,990,null,null,null,null,null,null,0]
[0,2,990,null,null,null,null,null,null,0]
[0,2,990,null,null,null,null,null,null,0]
[0,2,990,null,null,null,null,null,null,0]
[0,2,990,null,null,null,null,null,null,0]
[0,2,990,null,null,null,null,null,null,0]
[0,2,990,null,null,null,null,null,null,0]
[0,2,990,null,null,null,null,null,null,0]
[0,2,990,null,null,null,null,null,null,{"$f":"VLOOKUP(E963,AL:AO,3,0)","v":0}]
[{"$f":"IF(D964=D963,SUMIF(D963:D963,D964,A963),A963+1)","v":0},2,990,null,null,null,null,null,null,0]
[0,2,990,null,null,null,null,null,null,0]
[0,2,990,null,null,null,null,null,null,0]
[0,2,990,null,null,null,null,null,null,0]
[0,2,990,null,null,null,null,null,null,0]
[0,2,990,null,null,null,null,null,null,0]
[0,2,990,null,null,null,null,null,null,0]
[0,2,990,null,null,null,null,null,null,0]
[0,2,990,null,null,null,null,null,null,0]
[0,2,990,null,null,null,null,null,null,0]
[0,2,990,null,null,null,null,null,null,0]
[0,2,990,null,null,null,null,null,null,0]
[0,2,990,null,null,null,null,null,null,0]
[0,2,990,null,null,null,null,null,null,0]
[0,2,990,null,null,null,null,null,null,0]
[0,2,990,null,null,null,null,null,null,0]
[0,2,990,null,null,null,null,null,null,0]
[0,2,990,null,null,null,null,null,null,0]
[0,2,990,null,null,null,null,null,null,0]
[0,2,990,null,null,null,null,null,null,0]
[0,2,990,null,null,null,null,null,null,0]
[0,2,990,null,null,null,null,null,null,0]
[0,2,990,null,null,null,null,null,null,0]
[0,2,990,null,null,null,null,null,null,0]
[0,2,990,null,null,null,null,null,null,0]
[0,2,990,null,null,null,null,null,null,0]
[0,2,990,null,null,null,null,null,null,0]
[0,2,990,null,null,null,null,null,null,0]
[0,2,990,null,null,null,null,null,null,0]
[0,2,990,null,null,null,null,null,null,0]
[0,2,990,null,null,null,null,null,null,0]
[0,2,990,null,null,null,null,null,null,0]
[0,2,990,null,null,null,null,null,null,0]
[0,2,990,null,null,null,null,null,null,0]
[0,2,990,null,null,null,null,null,null,0]
[0,2,990,null,null,null,null,null,null,0]
[0,2,990,null,null,null,null,null,null,0]
[0,2,990,null,null,null,null,null,null,0]
[0,2,990,null,null,null,null,null,null,0]
[0,2,990,null,null,null,null,null,null,0]
[0,2,990,null,null,null,null,null,null,0]
[0,2,990,null,null,null,null,null,null,0]
[0,2,990,null,null,null,null,null,null,0]
[0,2,990,null,null,null,null,null,null,0]
[0,2,990,null,null,null,null,null,null,0]
[0,2,990,null,null,null,null,null,null,0]
[0,2,990,null,null,null,null,null,null,0]
[0,2,990,null,null,null,null,null,null,0]
[0,2,990,null,null,null,null,null,null,0]
[0,2,990,null,null,null,null,null,null,0]
[0,2,990,null,null,null,null,null,null,0]
[0,2,990,null,null,null,null,null,null,0]
[0,2,990,null,null,null,null,null,null,0]
[0,2,990,null,null,null,null,null,null,0]
[0,2,990,null,null,null,null,null,null,0]
[0,2,990,null,null,null,null,null,null,0]
[0,2,990,null,null,null,null,null,null,0]
[0,2,990,null,null,null,null,null,null,0]
[0,2,990,null,null,null,null,null,null,0]
[0,2,990,null,null,null,null,null,null,0]
[0,2,990,null,null,null,null,null,null,0]
[0,2,990,null,null,null,null,null,null,0]
[0,2,990,null,null,null,null,null,null,0]
[0,2,990,null,null,null,null,null,null,{"$f":"VLOOKUP(E1027,AL:AO,3,0)","v":0}]
[{"$f":"IF(D1028=D1027,SUMIF(D1027:D1027,D1028,A1027),A1027+1)","v":0},2,990,null,null,null,null,null,null,0]
[0,2,990,null,null,null,null,null,null,0]
[0,2,990,null,null,null,null,null,null,0]
[0,2,990,null,null,null,null,null,null,0]
[0,2,990,null,null,null,null,null,null,0]
[0,2,990,null,null,null,null,null,null,0]
[0,2,990,null,null,null,null,null,null,0]
[0,2,990,null,null,null,null,null,null,0]
[0,2,990,null,null,null,null,null,null,0]
[0,2,990,null,null,null,null,null,null,0]
[0,2,990,null,null,null,null,null,null,0]
[0,2,990,null,null,null,null,null,null,0]
[0,2,990,null,null,null,null,null,null,0]
[0,2,990,null,null,null,null,null,null,0]
[0,2,990,null,null,null,null,null,null,0]
[0,2,990,null,null,null,null,null,null,0]
[0,2,990,null,null,null,null,null,null,0]
[0,2,990,null,null,null,null,null,null,0]
[0,2,990,null,null,null,null,null,null,0]
[0,2,990,null,null,null,null,null,null,0]
[0,2,990,null,null,null,null,null,null,0]
[0,2,990,null,null,null,null,null,null,0]
[0,2,990,null,null,null,null,null,null,0]
[0,2,990,null,null,null,null,null,null,0]
[0,2,990,null,null,null,null,null,null,0]
[0,2,990,null,null,null,null,null,null,0]
[0,2,990,null,null,null,null,null,null,0]
[0,2,990,null,null,null,null,null,null,0]
[0,2,990,null,null,null,null,null,null,0]
[0,2,990,null,null,null,null,null,null,0]
[0,2,990,null,null,null,null,null,null,0]
[0,2,990,null,null,null,null,null,null,0]
[0,2,990,null,null,null,null,null,null,0]
[0,2,990,null,null,null,null,null,null,0]
[0,2,990,null,null,null,null,null,null,0]
[0,2,990,null,null,null,null,null,null,0]
[0,2,990,null,null,null,null,null,null,0]
[0,2,990,null,null,null,null,null,null,0]
[0,2,990,null,null,null,null,null,null,0]
[0,2,990,null,null,null,null,null,null,0]
[0,2,990,null,null,null,null,null,null,0]
[0,2,990,null,null,null,null,null,null,0]
[0,2,990,null,null,null,null,null,null,0]
[0,2,990,null,null,null,null,null,null,0]
[0,2,990,null,null,null,null,null,null,0]
[0,2,990,null,null,null,null,null,null,0]
[0,2,990,null,null,null,null,null,null,0]
[0,2,990,null,null,null,null,null,null,0]
[0,2,990,null,null,null,null,null,null,0]
[0,2,990,null,null,null,null,null,null,0]
[0,2,990,null,null,null,null,null,null,0]
[0,2,990,null,null,null,null,null,null,0]
[0,2,990,null,null,null,null,null,null,0]
[0,2,990,null,null,null,null,null,null,0]
[0,2,990,null,null,null,null,null,null,0]
[0,2,990,null,null,null,null,null,null,0]
[0,2,990,null,null,null,null,null,null,0]
[0,2,990,null,null,null,null,null,null,0]
[0,2,990,null,null,null,null,null,null,0]
[0,2,990,null,null,null,null,null,null,0]
[0,2,990,null,null,null,null,null,null,0]
[0,2,990,null,null,null,null,null,null,0]
[0,2,990,null,null,null,null,null,null,0]
[0,2,990,null,null,null,null,null,null,{"$f":"VLOOKUP(E1091,AL:AO,3,0)","v":0}]
[{"$f":"IF(D1092=D1091,SUMIF(D1091:D1091,D1092,A1091),A1091+1)","v":0},2,990,null,null,null,null,null,null,0]
[0,2,990,null,null,null,null,null,null,0]
[0,2,990,null,null,null,null,null,null,0]
[0,2,990,null,null,null,null,null,null,0]
[0,2,990,null,null,null,null,null,null,0]
[0,2,990,null,null,null,null,null,null,0]
[0,2,990,null,null,null,null,null,null,0]
[0,2,990,null,null,null,null,null,null,0]
[0,2,990,null,null,null,null,null,null,0]
[0,2,990,null,null,null,null,null,null,0]
[0,2,990,null,null,null,null,null,null,0]
[0,2,990,null,null,null,null,null,null,0]
[0,2,990,null,null,null,null,null,null,0]
[0,2,990,null,null,null,null,null,null,0]
[0,2,990,null,null,null,null,null,null,0]
[0,2,990,null,null,null,null,null,null,0]
[0,2,990,null,null,null,null,null,null,0]
[0,2,990,null,null,null,null,null,null,0]
[0,2,990,null,null,null,null,null,null,0]
[0,2,990,null,null,null,null,null,null,0]
[0,2,990,null,null,null,null,null,null,0]
[0,2,990,null,null,null,null,null,null,0]
[0,2,990,null,null,null,null,null,null,0]
[0,2,990,null,null,null,null,null,null,0]
[0,2,990,null,null,null,null,null,null,0]
[0,2,990,null,null,null,null,null,null,0]
[0,2,990,null,null,null,null,null,null,0]
[0,2,990,null,null,null,null,null,null,0]
[0,2,990,null,null,null,null,null,null,0]
[0,2,990,null,null,null,null,null,null,0]
[0,2,990,null,null,null,null,null,null,0]
[0,2,990,null,null,null,null,null,null,0]
[0,2,990,null,null,null,null,null,null,0]
[0,2,990,null,null,null,null,null,null,0]
[0,2,990,null,null,null,null,null,null,0]
[0,2,990,null,null,null,null,null,null,0]
[0,2,990,null,null,null,null,null,null,0]
[0,2,990,null,null,null,null,null,null,0]
[0,2,990,null,null,null,null,null,null,0]
[0,2,990,null,null,null,null,null,null,0]
[0,2,990,null,null,null,null,null,null,0]
[0,2,990,null,null,null,null,null,null,0]
[0,2,990,null,null,null,null,null,null,0]
[0,2,990,null,null,null,null,null,null,0]
[0,2,990,null,null,null,null,null,null,0]
[0,2,990,null,null,null,null,null,null,0]
[0,2,990,null,null,null,null,null,null,0]
[0,2,990,null,null,null,null,null,null,0]
[0,2,990,null,null,null,null,null,null,0]
[0,2,990,null,null,null,null,null,null,0]
[0,2,990,null,null,null,null,null,null,0]
[0,2,990,null,null,null,null,null,null,0]
[0,2,990,null,null,null,null,null,null,0]
[0,2,990,null,null,null,null,null,null,0]
[0,2,990,null,null,null,null,null,null,0]
[0,2,990,null,null,null,null,null,null,0]
[0,2,990,null,null,null,null,null,null,0]
[0,2,990,null,null,null,null,null,null,0]
[0,2,990,null,null,null,null,null,null,0]
[0,2,990,null,null,null,null,null,null,0]
[0,2,990,null,null,null,null,null,null,0]
[0,2,990,null,null,null,null,null,null,0]
[0,2,990,null,null,null,null,null,null,0]
[0,2,990,null,null,null,null,null,null,{"$f":"VLOOKUP(E1155,AL:AO,3,0)","v":0}]
[{"$f":"IF(D1156=D1155,SUMIF(D1155:D1155,D1156,A1155),A1155+1)","v":0},2,990,null,null,null,null,null,null,0]
[0,2,990,null,null,null,null,null,null,0]
[0,2,990,null,null,null,null,null,null,0]
[0,2,990,null,null,null,null,null,null,0]
[0,2,990,null,null,null,null,null,null,0]
[0,2,990,null,null,null,null,null,null,0]
[0,2,990,null,null,null,null,null,null,0]
[0,2,990,null,null,null,null,null,null,0]
[0,2,990,null,null,null,null,null,null,0]
[0,2,990,null,null,null,null,null,null,0]
[0,2,990,null,null,null,null,null,null,0]
[0,2,990,null,null,null,null,null,null,0]
[0,2,990,null,null,null,null,null,null,0]
[0,2,990,null,null,null,null,null,null,0]
[0,2,990,null,null,null,null,null,null,0]
[0,2,990,null,null,null,null,null,null,0]
[0,2,990,null,null,null,null,null,null,0]
[0,2,990,null,null,null,null,null,null,0]
[0,2,990,null,null,null,null,null,null,0]
[0,2,990,null,null,null,null,null,null,0]
[0,2,990,null,null,null,null,null,null,0]
[0,2,990,null,null,null,null,null,null,0]
[0,2,990,null,null,null,null,null,null,0]
[0,2,990,null,null,null,null,null,null,0]
[0,2,990,null,null,null,null,null,null,0]
[0,2,990,null,null,null,null,null,null,0]
[0,2,990,null,null,null,null,null,null,0]
[0,2,990,null,null,null,null,null,null,0]
[0,2,990,null,null,null,null,null,null,0]
[0,2,990,null,null,null,null,null,null,0]
[0,2,990,null,null,null,null,null,null,0]
[0,2,990,null,null,null,null,null,null,0]
[0,2,990,null,null,null,null,null,null,0]
[0,2,990,null,null,null,null,null,null,0]
[0,2,990,null,null,null,null,null,null,0]
[0,2,990,null,null,null,null,null,null,0]
[0,2,990,null,null,null,null,null,null,0]
[0,2,990,null,null,null,null,null,null,0]
[0,2,990,null,null,null,null,null,null,0]
[0,2,990,null,null,null,null,null,null,0]
[0,2,990,null,null,null,null,null,null,0]
[0,2,990,null,null,null,null,null,null,0]
[0,2,990,null,null,null,null,null,null,0]
[0,2,990,null,null,null,null,null,null,0]
[0,2,990,null,null,null,null,null,null,0]
[0,2,990,null,null,null,null,null,null,0]
[0,2,990,null,null,null,null,null,null,0]
[0,2,990,null,null,null,null,null,null,0]
[0,2,990,null,null,null,null,null,null,0]
[0,2,990,null,null,null,null,null,null,0]
[0,2,990,null,null,null,null,null,null,0]
[0,2,990,null,null,null,null,null,null,0]
[0,2,990,null,null,null,null,null,null,0]
[0,2,990,null,null,null,null,null,null,0]
[0,2,990,null,null,null,null,null,null,0]
[0,2,990,null,null,null,null,null,null,0]
[0,2,990,null,null,null,null,null,null,0]
[0,2,990,null,null,null,null,null,null,0]
[0,2,990,null,null,null,null,null,null,0]
[0,2,990,null,null,null,null,null,null,0]
[0,2,990,null,null,null,null,null,null,0]
[0,2,990,null,null,null,null,null,null,0]
[0,2,990,null,null,null,null,null,null,0]
[0,2,990,null,null,null,null,null,null,{"$f":"VLOOKUP(E1219,AL:AO,3,0)","v":0}]
[{"$f":"IF(D1220=D1219,SUMIF(D1219:D1219,D1220,A1219),A1219+1)","v":0},2,990,null,null,null,null,null,null,0]
[0,2,990,null,null,null,null,null,null,0]
[0,2,990,null,null,null,null,null,null,0]
[0,2,990,null,null,null,null,null,null,0]
[0,2,990,null,null,null,null,null,null,0]
[0,2,990,null,null,null,null,null,null,0]
[0,2,990,null,null,null,null,null,null,0]
[0,2,990,null,null,null,null,null,null,0]
[0,2,990,null,null,null,null,null,null,0]
[0,2,990,null,null,null,null,null,null,0]
[0,2,990,null,null,null,null,null,null,0]
[0,2,990,null,null,null,null,null,null,0]
[0,2,990,null,null,null,null,null,null,0]
[0,2,990,null,null,null,null,null,null,0]
[0,2,990,null,null,null,null,null,null,0]
[0,2,990,null,null,null,null,null,null,0]
[0,2,990,null,null,null,null,null,null,0]
[0,2,990,null,null,null,null,null,null,0]
[0,2,990,null,null,null,null,null,null,0]
[0,2,990,null,null,null,null,null,null,0]
[0,2,990,null,null,null,null,null,null,0]
[0,2,990,null,null,null,null,null,null,0]
[0,2,990,null,null,null,null,null,null,0]
[0,2,990,null,null,null,null,null,null,0]
[0,2,990,null,null,null,null,null,null,0]
[0,2,990,null,null,null,null,null,null,0]
[0,2,990,null,null,null,null,null,null,0]
[0,2,990,null,null,null,null,null,null,0]
[0,2,990,null,null,null,null,null,null,0]
[0,2,990,null,null,null,null,null,null,0]
[0,2,990,null,null,null,null,null,null,0]
[0,2,990,null,null,null,null,null,null,0]
[0,2,990,null,null,null,null,null,null,0]
[0,2,990,null,null,null,null,null,null,0]
[0,2,990,null,null,null,null,null,null,0]
[0,2,990,null,null,null,null,null,null,0]
[0,2,990,null,null,null,null,null,null,0]
[0,2,990,null,null,null,null,null,null,0]
[0,2,990,null,null,null,null,null,null,0]
[0,2,990,null,null,null,null,null,null,0]
[0,2,990,null,null,null,null,null,null,0]
[0,2,990,null,null,null,null,null,null,0]
[0,2,990,null,null,null,null,null,null,0]
[0,2,990,null,null,null,null,null,null,0]
[0,2,990,null,null,null,null,null,null,0]
[0,2,990,null,null,null,null,null,null,0]
[0,2,990,null,null,null,null,null,null,0]
[0,2,990,null,null,null,null,null,null,0]
[0,2,990,null,null,null,null,null,null,0]
[0,2,990,null,null,null,null,null,null,0]
[0,2,990,null,null,null,null,null,null,0]
[0,2,990,null,null,null,null,null,null,0]
[0,2,990,null,null,null,null,null,null,0]
[0,2,990,null,null,null,null,null,null,0]
[0,2,990,null,null,null,null,null,null,0]
[0,2,990,null,null,null,null,null,null,0]
[0,2,990,null,null,null,null,null,null,0]
[0,2,990,null,null,null,null,null,null,0]
[0,2,990,null,null,null,null,null,null,0]
[0,2,990,null,null,null,null,null,null,0]
[0,2,990,null,null,null,null,null,null,0]
[0,2,990,null,null,null,null,null,null,0]
[0,2,990,null,null,null,null,null,null,0]
[0,2,990,null,null,null,null,null,null,{"$f":"VLOOKUP(E1283,AL:AO,3,0)","v":0}]
[{"$f":"IF(D1284=D1283,SUMIF(D1283:D1283,D1284,A1283),A1283+1)","v":0},2,990,null,null,null,null,null,null,0]
[0,2,990,null,null,null,null,null,null,0]
[0,2,990,null,null,null,null,null,null,0]
[0,2,990,null,null,null,null,null,null,0]
[0,2,990,null,null,null,null,null,null,0]
[0,2,990,null,null,null,null,null,null,0]
[0,2,990,null,null,null,null,null,null,0]
[0,2,990,null,null,null,null,null,null,0]
[0,2,990,null,null,null,null,null,null,0]
[0,2,990,null,null,null,null,null,null,0]
[0,2,990,null,null,null,null,null,null,0]
[0,2,990,null,null,null,null,null,null,0]
[0,2,990,null,null,null,null,null,null,0]
[0,2,990,null,null,null,null,null,null,0]
[0,2,990,null,null,null,null,null,null,0]
[0,2,990,null,null,null,null,null,null,0]
[0,2,990,null,null,null,null,null,null,0]
[0,2,990,null,null,null,null,null,null,0]
[0,2,990,null,null,null,null,null,null,0]
[0,2,990,null,null,null,null,null,null,0]
[0,2,990,null,null,null,null,null,null,0]
[0,2,990,null,null,null,null,null,null,0]
[0,2,990,null,null,null,null,null,null,0]
[0,2,990,null,null,null,null,null,null,0]
[0,2,990,null,null,null,null,null,null,0]
[0,2,990,null,null,null,null,null,null,0]
[0,2,990,null,null,null,null,null,null,0]
[0,2,990,null,null,null,null,null,null,0]
[0,2,990,null,null,null,null,null,null,0]
[0,2,990,null,null,null,null,null,null,0]
[0,2,990,null,null,null,null,null,null,0]
[0,2,990,null,null,null,null,null,null,0]
[0,2,990,null,null,null,null,null,null,0]
[0,2,990,null,null,null,null,null,null,0]
[0,2,990,null,null,null,null,null,null,0]
[0,2,990,null,null,null,null,null,null,0]
[0,2,990,null,null,null,null,null,null,0]
[0,2,990,null,null,null,null,null,null,0]
[0,2,990,null,null,null,null,null,null,0]
[0,2,990,null,null,null,null,null,null,0]
[0,2,990,null,null,null,null,null,null,0]
[0,2,990,null,null,null,null,null,null,0]
[0,2,990,null,null,null,null,null,null,0]
[0,2,990,null,null,null,null,null,null,0]
[0,2,990,null,null,null,null,null,null,0]
[0,2,990,null,null,null,null,null,null,0]
[0,2,990,null,null,null,null,null,null,0]
[0,2,990,null,null,null,null,null,null,0]
[0,2,990,null,null,null,null,null,null,0]
[0,2,990,null,null,null,null,null,null,0]
[0,2,990,null,null,null,null,null,null,0]
[0,2,990,null,null,null,null,null,null,0]
[0,2,990,null,null,null,null,null,null,0]
[0,2,990,null,null,null,null,null,null,0]
[0,2,990,null,null,null,null,null,null,0]
[0,2,990,null,null,null,null,null,null,0]
[0,2,990,null,null,null,null,null,null,0]
[0,2,990,null,null,null,null,null,null,0]
[0,2,990,null,null,null,null,null,null,0]
[0,2,990,null,null,null,null,null,null,0]
[0,2,990,null,null,null,null,null,null,0]
[0,2,990,null,null,null,null,null,null,0]
[0,2,990,null,null,null,null,null,null,0]
[0,2,990,null,null,null,null,null,null,{"$f":"VLOOKUP(E1347,AL:AO,3,0)","v":0}]
[{"$f":"IF(D1348=D1347,SUMIF(D1347:D1347,D1348,A1347),A1347+1)","v":0},2,990,null,null,null,null,null,null,0]
[0,2,990,null,null,null,null,null,null,0]
[0,2,990,null,null,null,null,null,null,0]
[0,2,990,null,null,null,null,null,null,0]
[0,2,990,null,null,null,null,null,null,0]
[0,2,990,null,null,null,null,null,null,0]
[0,2,990,null,null,null,null,null,null,0]
[0,2,990,null,null,null,null,null,null,0]
[0,2,990,null,null,null,null,null,null,0]
[0,2,990,null,null,null,null,null,null,0]
[0,2,990,null,null,null,null,null,null,0]
[0,2,990,null,null,null,null,null,null,0]
[0,2,990,null,null,null,null,null,null,0]
[0,2,990,null,null,null,null,null,null,0]
[0,2,990,null,null,null,null,null,null,0]
[0,2,990,null,null,null,null,null,null,0]
[0,2,990,null,null,null,null,null,null,0]
[0,2,990,null,null,null,null,null,null,0]
[0,2,990,null,null,null,null,null,null,0]
[0,2,990,null,null,null,null,null,null,0]
[0,2,990,null,null,null,null,null,null,0]
[0,2,990,null,null,null,null,null,null,0]
[0,2,990,null,null,null,null,null,null,0]
[0,2,990,null,null,null,null,null,null,0]
[0,2,990,null,null,null,null,null,null,0]
[0,2,990,null,null,null,null,null,null,0]
[0,2,990,null,null,null,null,null,null,0]
[0,2,990,null,null,null,null,null,null,0]
[0,2,990,null,null,null,null,null,null,0]
[0,2,990,null,null,null,null,null,null,0]
[0,2,990,null,null,null,null,null,null,0]
[0,2,990,null,null,null,null,null,null,0]
[0,2,990,null,null,null,null,null,null,0]
[0,2,990,null,null,null,null,null,null,0]
[0,2,990,null,null,null,null,null,null,0]
[0,2,990,null,null,null,null,null,null,0]
[0,2,990,null,null,null,null,null,null,0]
[0,2,990,null,null,null,null,null,null,0]
[0,2,990,null,null,null,null,null,null,0]
[0,2,990,null,null,null,null,null,null,0]
[0,2,990,null,null,null,null,null,null,0]
[0,2,990,null,null,null,null,null,null,0]
[0,2,990,null,null,null,null,null,null,0]
[0,2,990,null,null,null,null,null,null,0]
[0,2,990,null,null,null,null,null,null,0]
[0,2,990,null,null,null,null,null,null,0]
[0,2,990,null,null,null,null,null,null,0]
[0,2,990,null,null,null,null,null,null,0]
[0,2,990,null,null,null,null,null,null,0]
[0,2,990,null,null,null,null,null,null,0]
[0,2,990,null,null,null,null,null,null,0]
[0,2,990,null,null,null,null,null,null,0]
[0,2,990,null,null,null,null,null,null,0]
[0,2,990,null,null,null,null,null,null,0]
[0,2,990,null,null,null,null,null,null,0]
[0,2,990,null,null,null,null,null,null,0]
[0,2,990,null,null,null,null,null,null,0]
[0,2,990,null,null,null,null,null,null,0]
[0,2,990,null,null,null,null,null,null,0]
[0,2,990,null,null,null,null,null,null,0]
[0,2,990,null,null,null,null,null,null,0]
[0,2,990,null,null,null,null,null,null,0]
[0,2,990,null,null,null,null,null,null,0]
[0,2,990,null,null,null,null,null,null,{"$f":"VLOOKUP(E1411,AL:AO,3,0)","v":0}]
[{"$f":"IF(D1412=D1411,SUMIF(D1411:D1411,D1412,A1411),A1411+1)","v":0},2,990,null,null,null,null,null,null,0]
[0,2,990,null,null,null,null,null,null,0]
[0,2,990,null,null,null,null,null,null,0]
[0,2,990,null,null,null,null,null,null,0]
[0,2,990,null,null,null,null,null,null,0]
[0,2,990,null,null,null,null,null,null,0]
[0,2,990,null,null,null,null,null,null,0]
[0,2,990,null,null,null,null,null,null,0]
[0,2,990,null,null,null,null,null,null,0]
[0,2,990,null,null,null,null,null,null,0]
[0,2,990,null,null,null,null,null,null,0]
[0,2,990,null,null,null,null,null,null,0]
[0,2,990,null,null,null,null,null,null,0]
[0,2,990,null,null,null,null,null,null,0]
[0,2,990,null,null,null,null,null,null,0]
[0,2,990,null,null,null,null,null,null,0]
[0,2,990,null,null,null,null,null,null,0]
[0,2,990,null,null,null,null,null,null,0]
[0,2,990,null,null,null,null,null,null,0]
[0,2,990,null,null,null,null,null,null,0]
[0,2,990,null,null,null,null,null,null,0]
[0,2,990,null,null,null,null,null,null,0]
[0,2,990,null,null,null,null,null,null,0]
[0,2,990,null,null,null,null,null,null,0]
[0,2,990,null,null,null,null,null,null,0]
[0,2,990,null,null,null,null,null,null,0]
[0,2,990,null,null,null,null,null,null,0]
[0,2,990,null,null,null,null,null,null,0]
[0,2,990,null,null,null,null,null,null,0]
[0,2,990,null,null,null,null,null,null,0]
[0,2,990,null,null,null,null,null,null,0]
[0,2,990,null,null,null,null,null,null,0]
[0,2,990,null,null,null,null,null,null,0]
[0,2,990,null,null,null,null,null,null,0]
[0,2,990,null,null,null,null,null,null,0]
[0,2,990,null,null,null,null,null,null,0]
[0,2,990,null,null,null,null,null,null,0]
[0,2,990,null,null,null,null,null,null,0]
[0,2,990,null,null,null,null,null,null,0]
[0,2,990,null,null,null,null,null,null,0]
[0,2,990,null,null,null,null,null,null,0]
[0,2,990,null,null,null,null,null,null,0]
[0,2,990,null,null,null,null,null,null,0]
[0,2,990,null,null,null,null,null,null,0]
[0,2,990,null,null,null,null,null,null,0]
[0,2,990,null,null,null,null,null,null,0]
[0,2,990,null,null,null,null,null,null,0]
[0,2,990,null,null,null,null,null,null,0]
[0,2,990,null,null,null,null,null,null,0]
[0,2,990,null,null,null,null,null,null,0]
[0,2,990,null,null,null,null,null,null,0]
[0,2,990,null,null,null,null,null,null,0]
[0,2,990,null,null,null,null,null,null,0]
[0,2,990,null,null,null,null,null,null,0]
[0,2,990,null,null,null,null,null,null,0]
[0,2,990,null,null,null,null,null,null,0]
[0,2,990,null,null,null,null,null,null,0]
[0,2,990,null,null,null,null,null,null,0]
[0,2,990,null,null,null,null,null,null,0]
[0,2,990,null,null,null,null,null,null,0]
[0,2,990,null,null,null,null,null,null,0]
[0,2,990,null,null,null,null,null,null,0]
[0,2,990,null,null,null,null,null,null,0]
[0,2,990,null,null,null,null,null,null,{"$f":"VLOOKUP(E1475,AL:AO,3,0)","v":0}]
[{"$f":"IF(D1476=D1475,SUMIF(D1475:D1475,D1476,A1475),A1475+1)","v":0},2,990,null,null,null,null,null,null,0]
[0,2,990,null,null,null,null,null,null,0]
[0,2,990,null,null,null,null,null,null,0]
[0,2,990,null,null,null,null,null,null,0]
[0,2,990,null,null,null,null,null,null,0]
[0,2,990,null,null,null,null,null,null,0]
[0,2,990,null,null,null,null,null,null,0]
[0,2,990,null,null,null,null,null,null,0]
[0,2,990,null,null,null,null,null,null,0]
[0,2,990,null,null,null,null,null,null,0]
[0,2,990,null,null,null,null,null,null,0]
[0,2,990,null,null,null,null,null,null,0]
[0,2,990,null,null,null,null,null,null,0]
[0,2,990,null,null,null,null,null,null,0]
[0,2,990,null,null,null,null,null,null,0]
[0,2,990,null,null,null,null,null,null,0]
[0,2,990,null,null,null,null,null,null,0]
[0,2,990,null,null,null,null,null,null,0]
[0,2,990,null,null,null,null,null,null,0]
[0,2,990,null,null,null,null,null,null,0]
[0,2,990,null,null,null,null,null,null,0]
[0,2,990,null,null,null,null,null,null,0]
[0,2,990,null,null,null,null,null,null,0]
[0,2,990,null,null,null,null,null,null,0]
[0,2,990,null,null,null,null,null,null,0]
[0,2,990,null,null,null,null,null,null,0]
[0,2,990,null,null,null,null,null,null,0]
[0,2,990,null,null,null,null,null,null,0]
[0,2,990,null,null,null,null,null,null,0]
[0,2,990,null,null,null,null,null,null,0]
[0,2,990,null,null,null,null,null,null,0]
[0,2,990,null,null,null,null,null,null,0]
[0,2,990,null,null,null,null,null,null,0]
[0,2,990,null,null,null,null,null,null,0]
[0,2,990,null,null,null,null,null,null,0]
[0,2,990,null,null,null,null,null,null,0]
[0,2,990,null,null,null,null,null,null,0]
[0,2,990,null,null,null,null,null,null,0]
[0,2,990,null,null,null,null,null,null,0]
[0,2,990,null,null,null,null,null,null,0]
[0,2,990,null,null,null,null,null,null,0]
[0,2,990,null,null,null,null,null,null,0]
[0,2,990,null,null,null,null,null,null,0]
[0,2,990,null,null,null,null,null,null,0]
[0,2,990,null,null,null,null,null,null,0]
[0,2,990,null,null,null,null,null,null,0]
[0,2,990,null,null,null,null,null,null,0]
[0,2,990,null,null,null,null,null,null,0]
[0,2,990,null,null,null,null,null,null,0]
[0,2,990,null,null,null,null,null,null,0]
[0,2,990,null,null,null,null,null,null,0]
[0,2,990,null,null,null,null,null,null,0]
[0,2,990,null,null,null,null,null,null,0]
[0,2,990,null,null,null,null,null,null,0]
[0,2,990,null,null,null,null,null,null,0]
[0,2,990,null,null,null,null,null,null,0]
[0,2,990,null,null,null,null,null,null,0]
[0,2,990,null,null,null,null,null,null,0]
[0,2,990,null,null,null,null,null,null,0]
[0,2,990,null,null,null,null,null,null,0]
[0,2,990,null,null,null,null,null,null,0]
[0,2,990,null,null,null,null,null,null,0]
[0,2,990,null,null,null,null,null,null,0]
[0,2,990,null,null,null,null,null,null,{"$f":"VLOOKUP(E1539,AL:AO,3,0)","v":0}]
[{"$f":"IF(D1540=D1539,SUMIF(D1539:D1539,D1540,A1539),A1539+1)","v":0},2,990,null,null,null,null,null,null,0]
[0,2,990,null,null,null,null,null,null,0]
[0,2,990,null,null,null,null,null,null,0]
[0,2,990,null,null,null,null,null,null,0]
[0,2,990,null,null,null,null,null,null,0]
[0,2,990,null,null,null,null,null,null,0]
[0,2,990,null,null,null,null,null,null,0]
[0,2,990,null,null,null,null,null,null,0]
[0,2,990,null,null,null,null,null,null,0]
[0,2,990,null,null,null,null,null,null,0]
[0,2,990,null,null,null,null,null,null,0]
[0,2,990,null,null,null,null,null,null,0]
[0,2,990,null,null,null,null,null,null,0]
[0,2,990,null,null,null,null,null,null,0]
[0,2,990,null,null,null,null,null,null,0]
[0,2,990,null,null,null,null,null,null,0]
[0,2,990,null,null,null,null,null,null,0]
[0,2,990,null,null,null,null,null,null,0]
[0,2,990,null,null,null,null,null,null,0]
[0,2,990,null,null,null,null,null,null,0]
[0,2,990,null,null,null,null,null,null,0]
[0,2,990,null,null,null,null,null,null,0]
[0,2,990,null,null,null,null,null,null,0]
[0,2,990,null,null,null,null,null,null,0]
[0,2,990,null,null,null,null,null,null,0]
[0,2,990,null,null,null,null,null,null,0]
[0,2,990,null,null,null,null,null,null,0]
[0,2,990,null,null,null,null,null,null,0]
[0,2,990,null,null,null,null,null,null,0]
[0,2,990,null,null,null,null,null,null,0]
[0,2,990,null,null,null,null,null,null,0]
[0,2,990,null,null,null,null,null,null,0]
[0,2,990,null,null,null,null,null,null,0]
[0,2,990,null,null,null,null,null,null,0]
[0,2,990,null,null,null,null,null,null,0]
[0,2,990,null,null,null,null,null,null,0]
[0,2,990,null,null,null,null,null,null,0]
[0,2,990,null,null,null,null,null,null,0]
[0,2,990,null,null,null,null,null,null,0]
[0,2,990,null,null,null,null,null,null,0]
[0,2,990,null,null,null,null,null,null,0]
[0,2,990,null,null,null,null,null,null,0]
[0,2,990,null,null,null,null,null,null,0]
[0,2,990,null,null,null,null,null,null,0]
[0,2,990,null,null,null,null,null,null,0]
[0,2,990,null,null,null,null,null,null,0]
[0,2,990,null,null,null,null,null,null,0]
[0,2,990,null,null,null,null,null,null,0]
[0,2,990,null,null,null,null,null,null,0]
[0,2,990,null,null,null,null,null,null,0]
[0,2,990,null,null,null,null,null,null,0]
[0,2,990,null,null,null,null,null,null,0]
[0,2,990,null,null,null,null,null,null,0]
[0,2,990,null,null,null,null,null,null,0]
[0,2,990,null,null,null,null,null,null,0]
[0,2,990,null,null,null,null,null,null,0]
[0,2,990,null,null,null,null,null,null,0]
[0,2,990,null,null,null,null,null,null,0]
[0,2,990,null,null,null,null,null,null,0]
[0,2,990,null,null,null,null,null,null,0]
[0,2,990,null,null,null,null,null,null,0]
[0,2,990,null,null,null,null,null,null,0]
[0,2,990,null,null,null,null,null,null,0]
[0,2,990,null,null,null,null,null,null,{"$f":"VLOOKUP(E1603,AL:AO,3,0)","v":0}]
[{"$f":"IF(D1604=D1603,SUMIF(D1603:D1603,D1604,A1603),A1603+1)","v":0},2,990,null,null,null,null,null,null,0]
[0,2,990,null,null,null,null,null,null,0]
[0,2,990,null,null,null,null,null,null,0]
[0,2,990,null,null,null,null,null,null,0]
[0,2,990,null,null,null,null,null,null,0]
[0,2,990,null,null,null,null,null,null,0]
[0,2,990,null,null,null,null,null,null,0]
[0,2,990,null,null,null,null,null,null,0]
[0,2,990,null,null,null,null,null,null,0]
[0,2,990,null,null,null,null,null,null,0]
[0,2,990,null,null,null,null,null,null,0]
[0,2,990,null,null,null,null,null,null,0]
[0,2,990,null,null,null,null,null,null,0]
[0,2,990,null,null,null,null,null,null,0]
[0,2,990,null,null,null,null,null,null,0]
[0,2,990,null,null,null,null,null,null,0]
[0,2,990,null,null,null,null,null,null,0]
[0,2,990,null,null,null,null,null,null,0]
[0,1,990,null,null,null,null,null,null,0]
[0,1,990,null,null,null,null,null,null,0]
[0,1,990,null,null,null,null,null,null,0]
[0,1,990,null,null,null,null,null,null,0]
[0,1,990,null,null,null,null,null,null,0]
[0,1,990,null,null,null,null,null,null,0]
[0,1,990,null,null,null,null,null,null,0]
[0,1,990,null,null,null,null,null,null,0]
[0,1,990,null,null,null,null,null,null,0]
[0,1,990,null,null,null,null,null,null,0]
[0,1,990,null,null,null,null,null,null,0]
[0,1,990,null,null,null,null,null,null,0]
[0,1,990,null,null,null,null,null,null,0]
[0,1,990,null,null,null,null,null,null,0]
[0,1,990,null,null,null,null,null,null,0]
[0,1,990,null,null,null,null,null,null,0]
[0,1,990,null,null,null,null,null,null,0]
[0,3,990,null,null,null,null,null,null,0]
[0,3,990,null,null,null,null,null,null,0]
[0,3,990,null,null,null,null,null,null,0]
[0,3,990,null,null,null,null,null,null,0]
[0,3,990,null,null,null,null,null,null,0]
[0,3,990,null,null,null,null,null,null,0]
[0,3,990,null,null,null,null,null,null,0]
[0,3,990,null,null,null,null,null,null,0]
[0,3,990,null,null,null,null,null,null,0]
[0,3,990,null,null,null,null,null,null,0]
[0,3,990,null,null,null,null,null,null,0]
[0,3,990,null,null,null,null,null,null,0]
[0,3,990,null,null,null,null,null,null,0]
[0,3,990,null,null,null,null,null,null,0]
[0,3,990,null,null,null,null,null,null,0]
[0,3,990,null,null,null,null,null,null,0]
[0,3,990,null,null,null,null,null,null,0]
[0,3,990,null,null,null,null,null,null,0]
[0,3,990,null,null,null,null,null,null,0]
[0,3,990,null,null,null,null,null,null,0]
[0,3,990,null,null,null,null,null,null,0]
[0,3,990,null,null,null,null,null,null,0]
[0,3,990,null,null,null,null,null,null,0]
[0,3,990,null,null,null,null,null,null,0]
[0,3,990,null,null,null,null,null,null,0]
[0,3,990,null,null,null,null,null,null,0]
[0,3,990,null,null,null,null,null,null,0]
[0,3,990,null,null,null,null,null,null,0]
[0,3,990,null,null,null,null,null,null,{"$f":"VLOOKUP(E1667,AL:AO,3,0)","v":0}]
[{"$f":"IF(D1668=D1667,SUMIF(D1667:D1667,D1668,A1667),A1667+1)","v":0},3,990,null,null,null,null,null,null,0]
[0,3,990,null,null,null,null,null,null,0]
[0,3,990,null,null,null,null,null,null,0]
[0,3,990,null,null,null,null,null,null,0]
[0,3,990,null,null,null,null,null,null,0]
[0,3,990,null,null,null,null,null,null,0]
[0,3,990,null,null,null,null,null,null,0]
[0,3,990,null,null,null,null,null,null,0]
[0,3,990,null,null,null,null,null,null,0]
[0,3,990,null,null,null,null,null,null,0]
[0,3,990,null,null,null,null,null,null,0]
[0,3,990,null,null,null,null,null,null,0]
[0,3,990,null,null,null,null,null,null,0]
[0,3,990,null,null,null,null,null,null,0]
[0,3,990,null,null,null,null,null,null,0]
[0,3,990,null,null,null,null,null,null,0]
[0,3,990,null,null,null,null,null,null,0]
[0,3,990,null,null,null,null,null,null,0]
[0,3,990,null,null,null,null,null,null,0]
[0,3,990,null,null,null,null,null,null,0]
[0,3,990,null,null,null,null,null,null,0]
[0,3,990,null,null,null,null,null,null,0]
[0,3,990,null,null,null,null,null,null,0]
[0,3,990,null,null,null,null,null,null,0]
[0,3,990,null,null,null,null,null,null,0]
[0,3,990,null,null,null,null,null,null,0]
[0,3,990,null,null,null,null,null,null,0]
[0,3,990,null,null,null,null,null,null,0]
[0,3,990,null,null,null,null,null,null,0]
[0,3,990,null,null,null,null,null,null,0]
[0,3,990,null,null,null,null,null,null,0]
[0,3,990,null,null,null,null,null,null,0]
[0,3,990,null,null,null,null,null,null,0]
[0,3,990,null,null,null,null,null,null,0]
[0,3,990,null,null,null,null,null,null,0]
[0,3,990,null,null,null,null,null,null,0]
[0,3,990,null,null,null,null,null,null,0]
[0,3,990,null,null,null,null,null,null,0]
[0,3,990,null,null,null,null,null,null,0]
[0,3,990,null,null,null,null,null,null,0]
[0,3,990,null,null,null,null,null,null,0]
[0,3,990,null,null,null,null,null,null,0]
[0,3,990,null,null,null,null,null,null,0]
[0,3,990,null,null,null,null,null,null,0]
[0,3,990,null,null,null,null,null,null,0]
[0,3,990,null,null,null,null,null,null,0]
[0,3,990,null,null,null,null,null,null,0]
[0,3,990,null,null,null,null,null,null,0]
[0,3,990,null,null,null,null,null,null,0]
[0,3,990,null,null,null,null,null,null,0]
[0,3,990,null,null,null,null,null,null,0]
[0,3,990,null,null,null,null,null,null,0]
[0,3,990,null,null,null,null,null,null,0]
[0,3,990,null,null,null,null,null,null,0]
[0,3,990,null,null,null,null,null,null,0]
[0,3,990,null,null,null,null,null,null,0]
[0,3,990,null,null,null,null,null,null,0]
[0,3,990,null,null,null,null,null,null,0]
[0,3,990,null,null,null,null,null,null,0]
[0,3,990,null,null,null,null,null,null,0]
[0,3,990,null,null,null,null,null,null,0]
[0,3,990,null,null,null,null,null,null,0]
[0,3,990,null,null,null,null,null,null,0]
[0,3,990,null,null,null,null,null,null,{"$f":"VLOOKUP(E1731,AL:AO,3,0)","v":0}]
[{"$f":"IF(D1732=D1731,SUMIF(D1731:D1731,D1732,A1731),A1731+1)","v":0},3,990,null,null,null,null,null,null,0]
[0,3,990,null,null,null,null,null,null,0]
[0,3,990,null,null,null,null,null,null,0]
[0,3,990,null,null,null,null,null,null,0]
[0,3,990,null,null,null,null,null,null,0]
[0,3,990,null,null,null,null,null,null,0]
[0,3,990,null,null,null,null,null,null,0]
[0,3,990,null,null,null,null,null,null,0]
[0,3,990,null,null,null,null,null,null,0]
[0,3,990,null,null,null,null,null,null,0]
[0,3,990,null,null,null,null,null,null,0]
[0,3,990,null,null,null,null,null,null,0]
[0,3,990,null,null,null,null,null,null,0]
[0,3,990,null,null,null,null,null,null,0]
[0,3,990,null,null,null,null,null,null,0]
[0,3,990,null,null,null,null,null,null,0]
[0,3,990,null,null,null,null,null,null,0]
[0,3,990,null,null,null,null,null,null,0]
[0,3,990,null,null,null,null,null,null,0]
[0,3,990,null,null,null,null,null,null,0]
[0,3,990,null,null,null,null,null,null,0]
[0,3,990,null,null,null,null,null,null,0]
[0,3,990,null,null,null,null,null,null,0]
[0,3,990,null,null,null,null,null,null,0]
[0,3,990,null,null,null,null,null,null,0]
[0,3,990,null,null,null,null,null,null,0]
[0,3,990,null,null,null,null,null,null,0]
[0,3,990,null,null,null,null,null,null,0]
[0,3,990,null,null,null,null,null,null,0]
[0,3,990,null,null,null,null,null,null,0]
[0,3,990,null,null,null,null,null,null,0]
[0,3,990,null,null,null,null,null,null,0]
[0,3,990,null,null,null,null,null,null,0]
[0,3,990,null,null,null,null,null,null,0]
[0,3,990,null,null,null,null,null,null,0]
[0,3,990,null,null,null,null,null,null,0]
[0,3,990,null,null,null,null,null,null,0]
[0,3,990,null,null,null,null,null,null,0]
[0,3,990,null,null,null,null,null,null,0]
[0,3,990,null,null,null,null,null,null,0]
[0,3,990,null,null,null,null,null,null,0]
[0,3,990,null,null,null,null,null,null,0]
[0,3,990,null,null,null,null,null,null,0]
[0,3,990,null,null,null,null,null,null,0]
[0,3,990,null,null,null,null,null,null,0]
[0,3,990,null,null,null,null,null,null,0]
[0,3,990,null,null,null,null,null,null,0]
[0,3,990,null,null,null,null,null,null,0]
[0,3,990,null,null,null,null,null,null,0]
[0,3,990,null,null,null,null,null,null,0]
[0,3,990,null,null,null,null,null,null,0]
[0,3,990,null,null,null,null,null,null,0]
[0,3,990,null,null,null,null,null,null,0]
[0,3,990,null,null,null,null,null,null,0]
[0,3,990,null,null,null,null,null,null,0]
[0,3,990,null,null,null,null,null,null,0]
[0,3,990,null,null,null,null,null,null,0]
[0,3,990,null,null,null,null,null,null,0]
[0,3,990,null,null,null,null,null,null,0]
[0,3,990,null,null,null,null,null,null,0]
[0,3,990,null,null,null,null,null,null,0]
[0,3,990,null,null,null,null,null,null,0]
[0,3,990,null,null,null,null,null,null,0]
[0,3,990,null,null,null,null,null,null,{"$f":"VLOOKUP(E1795,AL:AO,3,0)","v":0}]
[{"$f":"IF(D1796=D1795,SUMIF(D1795:D1795,D1796,A1795),A1795+1)","v":0},3,990,null,null,null,null,null,null,0]
[0,3,990,null,null,null,null,null,null,0]
[0,3,990,null,null,null,null,null,null,0]
[0,3,990,null,null,null,null,null,null,0]
[0,3,990,null,null,null,null,null,null,0]
[0,3,990,null,null,null,null,null,null,0]
[0,3,990,null,null,null,null,null,null,0]
[0,3,990,null,null,null,null,null,null,0]
[0,3,990,null,null,null,null,null,null,0]
[0,3,990,null,null,null,null,null,null,0]
[0,3,990,null,null,null,null,null,null,0]
[0,3,990,null,null,null,null,null,null,0]
[0,3,990,null,null,null,null,null,null,0]
[0,3,990,null,null,null,null,null,null,0]
[0,3,990,null,null,null,null,null,null,0]
[0,3,990,null,null,null,null,null,null,0]
[0,3,990,null,null,null,null,null,null,0]
[0,3,990,null,null,null,null,null,null,0]
[0,3,990,null,null,null,null,null,null,0]
[0,3,990,null,null,null,null,null,null,0]
[0,3,990,null,null,null,null,null,null,0]
[0,3,990,null,null,null,null,null,null,0]
[0,3,990,null,null,null,null,null,null,0]
[0,3,990,null,null,null,null,null,null,0]
[0,3,990,null,null,null,null,null,null,0]
[0,3,990,null,null,null,null,null,null,0]
[0,3,990,null,null,null,null,null,null,0]
[0,3,990,null,null,null,null,null,null,0]
[0,3,990,null,null,null,null,null,null,0]
[0,3,990,null,null,null,null,null,null,0]
[0,3,990,null,null,null,null,null,null,0]
[0,3,990,null,null,null,null,null,null,0]
[0,3,990,null,null,null,null,null,null,0]
[0,3,990,null,null,null,null,null,null,0]
[0,3,990,null,null,null,null,null,null,0]
[0,3,990,null,null,null,null,null,null,0]
[0,3,990,null,null,null,null,null,null,0]
[0,3,990,null,null,null,null,null,null,0]
[0,3,990,null,null,null,null,null,null,0]
[0,3,990,null,null,null,null,null,null,0]
[0,3,990,null,null,null,null,null,null,0]
[0,3,990,null,null,null,null,null,null,0]
[0,3,990,null,null,null,null,null,null,0]
[0,3,990,null,null,null,null,null,null,0]
[0,3,990,null,null,null,null,null,null,0]
[0,3,990,null,null,null,null,null,null,0]
[0,3,990,null,null,null,null,null,null,0]
[0,3,990,null,null,null,null,null,null,0]
[0,3,990,null,null,null,null,null,null,0]
[0,3,990,null,null,null,null,null,null,0]
[0,3,990,null,null,null,null,null,null,0]
[0,3,990,null,null,null,null,null,null,0]
[0,3,990,null,null,null,null,null,null,0]
[0,3,990,null,null,null,null,null,null,0]
[0,3,990,null,null,null,null,null,null,0]
[0,3,990,null,null,null,null,null,null,0]
[0,3,990,null,null,null,null,null,null,0]
[0,3,990,null,null,null,null,null,null,0]
[0,3,990,null,null,null,null,null,null,0]
[0,3,990,null,null,null,null,null,null,0]
[0,3,990,null,null,null,null,null,null,0]
[0,3,990,null,null,null,null,null,null,0]
[0,3,990,null,null,null,null,null,null,0]
[0,3,990,null,null,null,null,null,null,{"$f":"VLOOKUP(E1859,AL:AO,3,0)","v":0}]
[{"$f":"IF(D1860=D1859,SUMIF(D1859:D1859,D1860,A1859),A1859+1)","v":0},3,990,null,null,null,null,null,null,0]
[0,3,990,null,null,null,null,null,null,0]
[0,3,990,null,null,null,null,null,null,0]
[0,3,990,null,null,null,null,null,null,0]
[0,3,990,null,null,null,null,null,null,0]
[0,3,990,null,null,null,null,null,null,0]
[0,3,990,null,null,null,null,null,null,0]
[0,3,990,null,null,null,null,null,null,0]
[0,3,990,null,null,null,null,null,null,0]
[0,3,990,null,null,null,null,null,null,0]
[0,3,990,null,null,null,null,null,null,0]
[0,3,990,null,null,null,null,null,null,0]
[0,3,990,null,null,null,null,null,null,0]
[0,3,990,null,null,null,null,null,null,0]
[0,3,990,null,null,null,null,null,null,0]
[0,3,990,null,null,null,null,null,null,0]
[0,3,990,null,null,null,null,null,null,0]
[0,3,990,null,null,null,null,null,null,0]
[0,3,990,null,null,null,null,null,null,0]
[0,3,990,null,null,null,null,null,null,0]
[0,3,990,null,null,null,null,null,null,0]
[0,3,990,null,null,null,null,null,null,0]
[0,3,990,null,null,null,null,null,null,0]
[0,3,990,null,null,null,null,null,null,0]
[0,3,990,null,null,null,null,null,null,0]
[0,3,990,null,null,null,null,null,null,0]
[0,3,990,null,null,null,null,null,null,0]
[0,3,990,null,null,null,null,null,null,0]
[0,3,990,null,null,null,null,null,null,0]
[0,3,990,null,null,null,null,null,null,0]
[0,3,990,null,null,null,null,null,null,0]
[0,3,990,null,null,null,null,null,null,0]
[0,3,990,null,null,null,null,null,null,0]
[0,3,990,null,null,null,null,null,null,0]
[0,3,990,null,null,null,null,null,null,0]
[0,3,990,null,null,null,null,null,null,0]
[0,3,990,null,null,null,null,null,null,0]
[0,3,990,null,null,null,null,null,null,0]
[0,3,990,null,null,null,null,null,null,0]
[0,3,990,null,null,null,null,null,null,0]
[0,3,990,null,null,null,null,null,null,0]
[0,3,990,null,null,null,null,null,null,0]
[0,3,990,null,null,null,null,null,null,0]
[0,3,990,null,null,null,null,null,null,0]
[0,3,990,null,null,null,null,null,null,0]
[0,3,990,null,null,null,null,null,null,0]
[0,3,990,null,null,null,null,null,null,0]
[0,3,990,null,null,null,null,null,null,0]
[0,3,990,null,null,null,null,null,null,0]
[0,3,990,null,null,null,null,null,null,0]
[0,3,990,null,null,null,null,null,null,0]
[0,3,990,null,null,null,null,null,null,0]
[0,3,990,null,null,null,null,null,null,0]
[0,3,990,null,null,null,null,null,null,0]
[0,3,990,null,null,null,null,null,null,0]
[0,3,990,null,null,null,null,null,null,0]
[0,3,990,null,null,null,null,null,null,0]
[0,3,990,null,null,null,null,null,null,0]
[0,3,990,null,null,null,null,null,null,0]
[0,3,990,null,null,null,null,null,null,0]
[0,3,990,null,null,null,null,null,null,0]
[0,3,990,null,null,null,null,null,null,0]
[0,3,990,null,null,null,null,null,null,0]
[0,3,990,null,null,null,null,null,null,{"$f":"VLOOKUP(E1923,AL:AO,3,0)","v":0}]
[{"$f":"IF(D1924=D1923,SUMIF(D1923:D1923,D1924,A1923),A1923+1)","v":0},3,990,null,null,null,null,null,null,0]
[0,3,990,null,null,null,null,null,null,0]
[0,3,990,null,null,null,null,null,null,0]
[0,3,990,null,null,null,null,null,null,0]
[0,3,990,null,null,null,null,null,null,0]
[0,3,990,null,null,null,null,null,null,0]
[0,3,990,null,null,null,null,null,null,0]
[0,3,990,null,null,null,null,null,null,0]
[0,3,990,null,null,null,null,null,null,0]
[0,3,990,null,null,null,null,null,null,0]
[0,3,990,null,null,null,null,null,null,0]
[0,3,990,null,null,null,null,null,null,0]
[0,3,990,null,null,null,null,null,null,0]
[0,3,990,null,null,null,null,null,null,0]
[0,3,990,null,null,null,null,null,null,0]
[0,3,990,null,null,null,null,null,null,0]
[0,3,990,null,null,null,null,null,null,0]
[0,3,990,null,null,null,null,null,null,0]
[0,3,990,null,null,null,null,null,null,0]
[0,3,990,null,null,null,null,null,null,0]
[0,3,990,null,null,null,null,null,null,0]
[0,3,990,null,null,null,null,null,null,0]
[0,3,990,null,null,null,null,null,null,0]
[0,3,990,null,null,null,null,null,null,0]
[0,3,990,null,null,null,null,null,null,0]
[0,3,990,null,null,null,null,null,null,0]
[0,3,990,null,null,null,null,null,null,0]
[0,3,990,null,null,null,null,null,null,0]
[0,3,990,null,null,null,null,null,null,0]
[0,3,990,null,null,null,null,null,null,0]
[0,3,990,null,null,null,null,null,null,0]
[0,3,990,null,null,null,null,null,null,0]
[0,3,990,null,null,null,null,null,null,0]
[0,3,990,null,null,null,null,null,null,0]
[0,3,990,null,null,null,null,null,null,0]
[0,3,990,null,null,null,null,null,null,0]
[0,3,990,null,null,null,null,null,null,0]
[0,3,990,null,null,null,null,null,null,0]
[0,3,990,null,null,null,null,null,null,0]
[0,3,990,null,null,null,null,null,null,0]
[0,3,990,null,null,null,null,null,null,0]
[0,3,990,null,null,null,null,null,null,0]
[0,3,990,null,null,null,null,null,null,0]
[0,3,990,null,null,null,null,null,null,0]
[0,3,990,null,null,null,null,null,null,0]
[0,3,990,null,null,null,null,null,null,0]
[0,3,990,null,null,null,null,null,null,0]
[0,3,990,null,null,null,null,null,null,0]
[0,3,990,null,null,null,null,null,null,0]
[0,3,990,null,null,null,null,null,null,0]
[0,3,990,null,null,null,null,null,null,0]
[0,3,990,null,null,null,null,null,null,0]
[0,3,990,null,null,null,null,null,null,0]
[0,3,990,null,null,null,null,null,null,0]
[0,3,990,null,null,null,null,null,null,0]
[0,3,990,null,null,null,null,null,null,0]
[0,3,990,null,null,null,null,null,null,0]
[0,3,990,null,null,null,null,null,null,0]
[0,3,990,null,null,null,null,null,null,0]
[0,3,990,null,null,null,null,null,null,0]
[0,3,990,null,null,null,null,null,null,0]
[0,3,990,null,null,null,null,null,null,0]
[0,3,990,null,null,null,null,null,null,0]
[0,3,990,null,null,null,null,null,null,{"$f":"VLOOKUP(E1987,AL:AO,3,0)","v":0}]
[{"$f":"IF(D1988=D1987,SUMIF(D1987:D1987,D1988,A1987),A1987+1)","v":0},3,990,null,null,null,null,null,null,0]
[0,3,990,null,null,null,null,null,null,0]
[0,3,990,null,null,null,null,null,null,0]
[0,3,990,null,null,null,null,null,null,0]
[0,3,990,null,null,null,null,null,null,0]
[0,3,990,null,null,null,null,null,null,0]
[0,3,990,null,null,null,null,null,null,0]
[0,3,990,null,null,null,null,null,null,0]
[0,3,990,null,null,null,null,null,null,0]
[0,3,990,null,null,null,null,null,null,0]
[0,3,990,null,null,null,null,null,null,0]
[0,3,990,null,null,null,null,null,null,0]
[0,3,990,null,null,null,null,null,null,0]
[0,3,990,null,null,null,null,null,null,0]
[0,3,990,null,null,null,null,null,null,0]
[0,3,990,null,null,null,null,null,null,0]
[0,3,990,null,null,null,null,null,null,0]
[0,3,990,null,null,null,null,null,null,0]
[0,3,990,null,null,null,null,null,null,0]
[0,3,990,null,null,null,null,null,null,0]
[0,3,990,null,null,null,null,null,null,0]
[0,3,990,null,null,null,null,null,null,0]
[0,3,990,null,null,null,null,null,null,0]
[0,3,990,null,null,null,null,null,null,0]
[0,3,990,null,null,null,null,null,null,0]
[0,3,990,null,null,null,null,null,null,0]
[0,3,990,null,null,null,null,null,null,0]
[0,3,990,null,null,null,null,null,null,0]
[0,3,990,null,null,null,null,null,null,0]
[0,3,990,null,null,null,null,null,null,0]
[0,3,990,null,null,null,null,null,null,0]
[0,3,990,null,null,null,null,null,null,0]
[0,3,990,null,null,null,null,null,null,0]
[0,3,990,null,null,null,null,null,null,0]
[0,3,990,null,null,null,null,null,null,0]
[0,3,990,null,null,null,null,null,null,0]
[0,3,990,null,null,null,null,null,null,0]
[0,3,990,null,null,null,null,null,null,0]
[0,3,990,null,null,null,null,null,null,0]
[0,3,990,null,null,null,null,null,null,0]
[0,3,990,null,null,null,null,null,null,0]
[0,3,990,null,null,null,null,null,null,0]
[0,3,990,null,null,null,null,null,null,0]
[0,3,990,null,null,null,null,null,null,0]
[0,3,990,null,null,null,null,null,null,0]
[0,3,990,null,null,null,null,null,null,0]
[0,3,990,null,null,null,null,null,null,0]
[0,3,990,null,null,null,null,null,null,0]
[0,3,990,null,null,null,null,null,null,0]
[0,3,990,null,null,null,null,null,null,0]
[0,3,990,null,null,null,null,null,null,0]
[0,3,990,null,null,null,null,null,null,0]
[0,3,990,null,null,null,null,null,null,0]
[0,3,990,null,null,null,null,null,null,0]
[0,3,990,null,null,null,null,null,null,0]
[0,3,990,null,null,null,null,null,null,0]
[0,3,990,null,null,null,null,null,null,0]
[0,3,990,null,null,null,null,null,null,0]
[0,3,990,null,null,null,null,null,null,0]
[0,3,990,null,null,null,null,null,null,0]
[0,3,990,null,null,null,null,null,null,0]
[0,3,990,null,null,null,null,null,null,0]
[0,3,990,null,null,null,null,null,null,0]
[0,3,990,null,null,null,null,null,null,{"$f":"VLOOKUP(E2051,AL:AO,3,0)","v":0}]
[{"$f":"IF(D2052=D2051,SUMIF(D2051:D2051,D2052,A2051),A2051+1)","v":0},3,990,null,null,null,null,null,null,0]
[0,3,990,null,null,null,null,null,null,0]
[0,3,990,null,null,null,null,null,null,0]
[0,3,990,null,null,null,null,null,null,0]
[0,3,990,null,null,null,null,null,null,0]
[0,3,990,null,null,null,null,null,null,0]
[0,3,990,null,null,null,null,null,null,0]
[0,3,990,null,null,null,null,null,null,0]
[0,3,990,null,null,null,null,null,null,0]
[0,3,990,null,null,null,null,null,null,0]
[0,3,990,null,null,null,null,null,null,0]
[0,3,990,null,null,null,null,null,null,0]
[0,3,990,null,null,null,null,null,null,0]
[0,3,990,null,null,null,null,null,null,0]
[0,3,990,null,null,null,null,null,null,0]
[0,3,990,null,null,null,null,null,null,0]
[0,3,990,null,null,null,null,null,null,0]
[0,3,990,null,null,null,null,null,null,0]
[0,3,990,null,null,null,null,null,null,0]
[0,3,990,null,null,null,null,null,null,0]
[0,3,990,null,null,null,null,null,null,0]
[0,3,990,null,null,null,null,null,null,0]
[0,3,990,null,null,null,null,null,null,0]
[0,3,990,null,null,null,null,null,null,0]
[0,3,990,null,null,null,null,null,null,0]
[0,3,990,null,null,null,null,null,null,0]
[0,3,990,null,null,null,null,null,null,0]
[0,3,990,null,null,null,null,null,null,0]
[0,3,990,null,null,null,null,null,null,0]
[0,3,990,null,null,null,null,null,null,0]
[0,3,990,null,null,null,null,null,null,0]
[0,3,990,null,null,null,null,null,null,0]
[0,3,990,null,null,null,null,null,null,0]
[0,3,990,null,null,null,null,null,null,0]
[0,3,990,null,null,null,null,null,null,0]
[0,3,990,null,null,null,null,null,null,0]
[0,3,990,null,null,null,null,null,null,0]
[0,3,990,null,null,null,null,null,null,0]
[0,3,990,null,null,null,null,null,null,0]
[0,3,990,null,null,null,null,null,null,0]
[0,3,990,null,null,null,null,null,null,0]
[0,3,990,null,null,null,null,null,null,0]
[0,3,990,null,null,null,null,null,null,0]
[0,3,990,null,null,null,null,null,null,0]
[0,3,990,null,null,null,null,null,null,0]
[0,3,990,null,null,null,null,null,null,0]
[0,3,990,null,null,null,null,null,null,0]
[0,3,990,null,null,null,null,null,null,0]
[0,3,990,null,null,null,null,null,null,0]
[0,3,990,null,null,null,null,null,null,0]
[0,3,990,null,null,null,null,null,null,0]
[0,3,990,null,null,null,null,null,null,0]
[0,3,990,null,null,null,null,null,null,0]
[0,3,990,null,null,null,null,null,null,0]
[0,3,990,null,null,null,null,null,null,0]
[0,3,990,null,null,null,null,null,null,0]
[0,3,990,null,null,null,null,null,null,0]
[0,3,990,null,null,null,null,null,null,0]
[0,3,990,null,null,null,null,null,null,0]
[0,3,990,null,null,null,null,null,null,0]
[0,3,990,null,null,null,null,null,null,0]
[0,3,990,null,null,null,null,null,null,0]
[0,3,990,null,null,null,null,null,null,0]
[0,3,990,null,null,null,null,null,null,{"$f":"VLOOKUP(E2115,AL:AO,3,0)","v":0}]
[{"$f":"IF(D2116=D2115,SUMIF(D2115:D2115,D2116,A2115),A2115+1)","v":0},3,990,null,null,null,null,null,null,0]
[0,3,990,null,null,null,null,null,null,0]
[0,3,990,null,null,null,null,null,null,0]
[0,3,990,null,null,null,null,null,null,0]
[0,3,990,null,null,null,null,null,null,0]
[0,3,990,null,null,null,null,null,null,0]
[0,3,990,null,null,null,null,null,null,0]
[0,3,990,null,null,null,null,null,null,0]
[0,3,990,null,null,null,null,null,null,0]
[0,3,990,null,null,null,null,null,null,0]
[0,3,990,null,null,null,null,null,null,0]
[0,3,990,null,null,null,null,null,null,0]
[0,3,990,null,null,null,null,null,null,0]
[0,3,990,null,null,null,null,null,null,0]
[0,3,990,null,null,null,null,null,null,0]
[0,3,990,null,null,null,null,null,null,0]
[0,3,990,null,null,null,null,null,null,0]
[0,3,990,null,null,null,null,null,null,0]
[0,3,990,null,null,null,null,null,null,0]
[0,3,990,null,null,null,null,null,null,0]
[0,3,990,null,null,null,null,null,null,0]
[0,3,990,null,null,null,null,null,null,0]
[0,3,990,null,null,null,null,null,null,0]
[0,3,990,null,null,null,null,null,null,0]
[0,3,990,null,null,null,null,null,null,0]
[0,3,990,null,null,null,null,null,null,0]
[0,3,990,null,null,null,null,null,null,0]
[0,3,990,null,null,null,null,null,null,0]
[0,3,990,null,null,null,null,null,null,0]
[0,3,990,null,null,null,null,null,null,0]
[0,3,990,null,null,null,null,null,null,0]
[0,3,990,null,null,null,null,null,null,0]
[0,3,990,null,null,null,null,null,null,0]
[0,3,990,null,null,null,null,null,null,0]
[0,3,990,null,null,null,null,null,null,0]
[0,3,990,null,null,null,null,null,null,0]
[0,3,990,null,null,null,null,null,null,0]
[0,3,990,null,null,null,null,null,null,0]
[0,3,990,null,null,null,null,null,null,0]
[0,3,990,null,null,null,null,null,null,0]
[0,3,990,null,null,null,null,null,null,0]
[0,3,990,null,null,null,null,null,null,0]
[0,3,990,null,null,null,null,null,null,0]
[0,3,990,null,null,null,null,null,null,0]
[0,3,990,null,null,null,null,null,null,0]
[0,3,990,null,null,null,null,null,null,0]
[0,3,990,null,null,null,null,null,null,0]
[0,3,990,null,null,null,null,null,null,0]
[0,3,990,null,null,null,null,null,null,0]
[0,3,990,null,null,null,null,null,null,0]
[0,3,990,null,null,null,null,null,null,0]
[0,3,990,null,null,null,null,null,null,0]
[0,3,990,null,null,null,null,null,null,0]
[0,3,990,null,null,null,null,null,null,0]
[0,3,990,null,null,null,null,null,null,0]
[0,3,990,null,null,null,null,null,null,0]
[0,3,990,null,null,null,null,null,null,0]
[0,3,990,null,null,null,null,null,null,0]
[0,3,990,null,null,null,null,null,null,0]
[0,3,990,null,null,null,null,null,null,0]
[0,3,990,null,null,null,null,null,null,0]
[0,3,990,null,null,null,null,null,null,0]
[0,3,990,null,null,null,null,null,null,0]
[0,3,990,null,null,null,null,null,null,{"$f":"VLOOKUP(E2179,AL:AO,3,0)","v":0}]
[{"$f":"IF(D2180=D2179,SUMIF(D2179:D2179,D2180,A2179),A2179+1)","v":0},3,990,null,null,null,null,null,null,0]
[0,3,990,null,null,null,null,null,null,0]
[0,3,990,null,null,null,null,null,null,0]
[0,3,990,null,null,null,null,null,null,0]
[0,3,990,null,null,null,null,null,null,0]
[0,3,990,null,null,null,null,null,null,0]
[0,3,990,null,null,null,null,null,null,0]
[0,3,990,null,null,null,null,null,null,0]
[0,3,990,null,null,null,null,null,null,0]
[0,3,990,null,null,null,null,null,null,0]
[0,3,990,null,null,null,null,null,null,0]
[0,3,990,null,null,null,null,null,null,0]
[0,3,990,null,null,null,null,null,null,0]
[0,3,990,null,null,null,null,null,null,0]
[0,3,990,null,null,null,null,null,null,0]
[0,3,990,null,null,null,null,null,null,0]
[0,3,990,null,null,null,null,null,null,0]
[0,3,990,null,null,null,null,null,null,0]
[0,3,990,null,null,null,null,null,null,0]
[0,3,990,null,null,null,null,null,null,0]
[0,3,990,null,null,null,null,null,null,0]
[0,3,990,null,null,null,null,null,null,0]
[0,3,990,null,null,null,null,null,null,0]
[0,3,990,null,null,null,null,null,null,0]
[0,3,990,null,null,null,null,null,null,0]
[0,3,990,null,null,null,null,null,null,0]
[0,3,990,null,null,null,null,null,null,0]
[0,3,990,null,null,null,null,null,null,0]
[0,3,990,null,null,null,null,null,null,0]
[0,3,990,null,null,null,null,null,null,0]
[0,3,990,null,null,null,null,null,null,0]
[0,3,990,null,null,null,null,null,null,0]
[0,3,990,null,null,null,null,null,null,0]
[0,3,990,null,null,null,null,null,null,0]
[0,3,990,null,null,null,null,null,null,0]
[0,3,990,null,null,null,null,null,null,0]
[0,3,990,null,null,null,null,null,null,0]
[0,3,990,null,null,null,null,null,null,0]
[0,3,990,null,null,null,null,null,null,0]
[0,3,990,null,null,null,null,null,null,0]
[0,3,990,null,null,null,null,null,null,0]
[0,3,990,null,null,null,null,null,null,0]
[0,3,990,null,null,null,null,null,null,0]
[0,3,990,null,null,null,null,null,null,0]
[0,3,990,null,null,null,null,null,null,0]
[0,3,990,null,null,null,null,null,null,0]
[0,3,990,null,null,null,null,null,null,0]
[0,3,990,null,null,null,null,null,null,0]
[0,3,990,null,null,null,null,null,null,0]
[0,3,990,null,null,null,null,null,null,0]
[0,3,990,null,null,null,null,null,null,0]
[0,3,990,null,null,null,null,null,null,0]
[0,3,990,null,null,null,null,null,null,0]
[0,3,990,null,null,null,null,null,null,0]
[0,3,990,null,null,null,null,null,null,0]
[0,3,990,null,null,null,null,null,null,0]
[0,3,990,null,null,null,null,null,null,0]
[0,3,990,null,null,null,null,null,null,0]
[0,3,990,null,null,null,null,null,null,0]
[0,3,990,null,null,null,null,null,null,0]
[0,3,990,null,null,null,null,null,null,0]
[0,3,990,null,null,null,null,null,null,0]
[0,3,990,null,null,null,null,null,null,0]
[0,3,990,null,null,null,null,null,null,{"$f":"VLOOKUP(E2243,AL:AO,3,0)","v":0}]
[{"$f":"IF(D2244=D2243,SUMIF(D2243:D2243,D2244,A2243),A2243+1)","v":0},3,990,null,null,null,null,null,null,0]
[0,3,990,null,null,null,null,null,null,0]
[0,3,990,null,null,null,null,null,null,0]
[0,3,990,null,null,null,null,null,null,0]
[0,3,990,null,null,null,null,null,null,0]
[0,3,990,null,null,null,null,null,null,0]
[0,3,990,null,null,null,null,null,null,0]
[0,3,990,null,null,null,null,null,null,0]
[0,3,990,null,null,null,null,null,null,0]
[0,3,990,null,null,null,null,null,null,0]
[0,3,990,null,null,null,null,null,null,0]
[0,3,990,null,null,null,null,null,null,0]
[0,3,990,null,null,null,null,null,null,0]
[0,3,990,null,null,null,null,null,null,0]
[0,3,990,null,null,null,null,null,null,0]
[0,3,990,null,null,null,null,null,null,0]
[0,3,990,null,null,null,null,null,null,0]
[0,3,990,null,null,null,null,null,null,0]
[0,3,990,null,null,null,null,null,null,0]
[0,3,990,null,null,null,null,null,null,0]
[0,3,990,null,null,null,null,null,null,0]
[0,3,990,null,null,null,null,null,null,0]
[0,3,990,null,null,null,null,null,null,0]
[0,3,990,null,null,null,null,null,null,0]
[0,3,990,null,null,null,null,null,null,0]
[0,3,990,null,null,null,null,null,null,0]
[0,3,990,null,null,null,null,null,null,0]
[0,3,990,null,null,null,null,null,null,0]
[0,3,990,null,null,null,null,null,null,0]
[0,3,990,null,null,null,null,null,null,0]
[0,3,990,null,null,null,null,null,null,0]
[0,3,990,null,null,null,null,null,null,0]
[0,3,990,null,null,null,null,null,null,0]
[0,3,990,null,null,null,null,null,null,0]
[0,3,990,null,null,null,null,null,null,0]
[0,3,990,null,null,null,null,null,null,0]
[0,3,990,null,null,null,null,null,null,0]
[0,3,990,null,null,null,null,null,null,0]
[0,3,990,null,null,null,null,null,null,0]
[0,3,990,null,null,null,null,null,null,0]
[0,3,990,null,null,null,null,null,null,0]
[0,3,990,null,null,null,null,null,null,0]
[0,3,990,null,null,null,null,null,null,0]
[0,3,990,null,null,null,null,null,null,0]
[0,3,990,null,null,null,null,null,null,0]
[0,3,990,null,null,null,null,null,null,0]
[0,3,990,null,null,null,null,null,null,0]
[0,3,990,null,null,null,null,null,null,0]
[0,3,990,null,null,null,null,null,null,0]
[0,3,990,null,null,null,null,null,null,0]
[0,3,990,null,null,null,null,null,null,0]
[0,3,990,null,null,null,null,null,null,0]
[0,3,990,null,null,null,null,null,null,0]
[0,3,990,null,null,null,null,null,null,0]
[0,3,990,null,null,null,null,null,null,0]
[0,3,990,null,null,null,null,null,null,0]
[0,3,990,null,null,null,null,null,null,0]
[0,3,990,null,null,null,null,null,null,0]
[0,3,990,null,null,null,null,null,null,0]
[0,3,990,null,null,null,null,null,null,0]
[0,3,990,null,null,null,null,null,null,0]
[0,3,990,null,null,null,null,null,null,0]
[0,3,990,null,null,null,null,null,null,0]
[0,3,990,null,null,null,null,null,null,{"$f":"VLOOKUP(E2307,AL:AO,3,0)","v":0}]
[{"$f":"IF(D2308=D2307,SUMIF(D2307:D2307,D2308,A2307),A2307+1)","v":0},3,990,null,null,null,null,null,null,0]
[0,3,990,null,null,null,null,null,null,0]
[0,3,990,null,null,null,null,null,null,0]
[0,3,990,null,null,null,null,null,null,0]
[0,3,990,null,null,null,null,null,null,0]
[0,3,990,null,null,null,null,null,null,0]
[0,3,990,null,null,null,null,null,null,0]
[0,3,990,null,null,null,null,null,null,0]
[0,3,990,null,null,null,null,null,null,0]
[0,3,990,null,null,null,null,null,null,0]
[0,3,990,null,null,null,null,null,null,0]
[0,3,990,null,null,null,null,null,null,0]
[0,3,990,null,null,null,null,null,null,0]
[0,3,990,null,null,null,null,null,null,0]
[0,3,990,null,null,null,null,null,null,0]
[0,3,990,null,null,null,null,null,null,0]
[0,3,990,null,null,null,null,null,null,0]
[0,3,990,null,null,null,null,null,null,0]
[0,3,990,null,null,null,null,null,null,0]
[0,3,990,null,null,null,null,null,null,0]
[0,3,990,null,null,null,null,null,null,0]
[0,3,990,null,null,null,null,null,null,0]
[0,3,990,null,null,null,null,null,null,0]
[0,3,990,null,null,null,null,null,null,0]
[0,3,990,null,null,null,null,null,null,0]
[0,3,990,null,null,null,null,null,null,0]
[0,3,990,null,null,null,null,null,null,0]
[0,3,990,null,null,null,null,null,null,0]
[0,3,990,null,null,null,null,null,null,0]
[0,3,990,null,null,null,null,null,null,0]
[0,3,990,null,null,null,null,null,null,0]
[0,3,990,null,null,null,null,null,null,0]
[0,3,990,null,null,null,null,null,null,0]
[0,3,990,null,null,null,null,null,null,0]
[0,3,990,null,null,null,null,null,null,0]
[0,3,990,null,null,null,null,null,null,0]
[0,3,990,null,null,null,null,null,null,0]
[0,3,990,null,null,null,null,null,null,0]
[0,3,990,null,null,null,null,null,null,0]
[0,3,990,null,null,null,null,null,null,0]
[0,3,990,null,null,null,null,null,null,0]
[0,3,990,null,null,null,null,null,null,0]
[0,3,990,null,null,null,null,null,null,0]
[0,3,990,null,null,null,null,null,null,0]
[0,3,990,null,null,null,null,null,null,0]
[0,3,990,null,null,null,null,null,null,0]
[0,3,990,null,null,null,null,null,null,0]
[0,3,990,null,null,null,null,null,null,0]
[0,3,990,null,null,null,null,null,null,0]
[0,3,990,null,null,null,null,null,null,0]
[0,3,990,null,null,null,null,null,null,0]
[0,3,990,null,null,null,null,null,null,0]
[0,3,990,null,null,null,null,null,null,0]
[0,3,990,null,null,null,null,null,null,0]
[0,3,990,null,null,null,null,null,null,0]
[0,3,990,null,null,null,null,null,null,0]
[0,3,990,null,null,null,null,null,null,0]
[0,3,990,null,null,null,null,null,null,0]
[0,3,990,null,null,null,null,null,null,0]
[0,3,990,null,null,null,null,null,null,0]
[0,3,990,null,null,null,null,null,null,0]
[0,3,990,null,null,null,null,null,null,0]
[0,3,990,null,null,null,null,null,null,0]
[0,3,990,null,null,null,null,null,null,{"$f":"VLOOKUP(E2371,AL:AO,3,0)","v":0}]
[{"$f":"IF(D2372=D2371,SUMIF(D2371:D2371,D2372,A2371),A2371+1)","v":0},3,990,null,null,null,null,null,null,0]
[0,3,990,null,null,null,null,null,null,0]
[0,3,990,null,null,null,null,null,null,0]
[0,3,990,null,null,null,null,null,null,0]
[0,3,990,null,null,null,null,null,null,0]
[0,3,990,null,null,null,null,null,null,0]
[0,3,990,null,null,null,null,null,null,0]
[0,3,990,null,null,null,null,null,null,0]
[0,3,990,null,null,null,null,null,null,0]
[0,3,990,null,null,null,null,null,null,0]
[0,3,990,null,null,null,null,null,null,0]
[0,3,990,null,null,null,null,null,null,0]
[0,3,990,null,null,null,null,null,null,0]
[0,3,990,null,null,null,null,null,null,0]
[0,3,990,null,null,null,null,null,null,0]
[0,3,990,null,null,null,null,null,null,0]
[0,3,990,null,null,null,null,null,null,0]
[0,3,990,null,null,null,null,null,null,0]
[0,3,990,null,null,null,null,null,null,0]
[0,3,990,null,null,null,null,null,null,0]
[0,3,990,null,null,null,null,null,null,0]
[0,3,990,null,null,null,null,null,null,0]
[0,3,990,null,null,null,null,null,null,0]
[0,3,990,null,null,null,null,null,null,0]
[0,3,990,null,null,null,null,null,null,0]
[0,3,990,null,null,null,null,null,null,0]
[0,3,990,null,null,null,null,null,null,0]
[0,3,990,null,null,null,null,null,null,0]
[0,3,990,null,null,null,null,null,null,0]
[0,3,990,null,null,null,null,null,null,0]
[0,3,990,null,null,null,null,null,null,0]
[0,3,990,null,null,null,null,null,null,0]
[0,3,990,null,null,null,null,null,null,0]
[0,3,990,null,null,null,null,null,null,0]
[0,3,990,null,null,null,null,null,null,0]
[0,3,990,null,null,null,null,null,null,0]
[0,3,990,null,null,null,null,null,null,0]
[0,3,990,null,null,null,null,null,null,0]
[0,3,990,null,null,null,null,null,null,0]
[0,3,990,null,null,null,null,null,null,0]
[0,3,990,null,null,null,null,null,null,0]
[0,3,990,null,null,null,null,null,null,0]
[0,3,990,null,null,null,null,null,null,0]
[0,3,990,null,null,null,null,null,null,0]
[0,3,990,null,null,null,null,null,null,0]
[0,3,990,null,null,null,null,null,null,0]
[0,3,990,null,null,null,null,null,null,0]
[0,3,990,null,null,null,null,null,null,0]
[0,3,990,null,null,null,null,null,null,0]
[0,3,990,null,null,null,null,null,null,0]
[0,3,990,null,null,null,null,null,null,0]
[0,3,990,null,null,null,null,null,null,0]
[0,3,990,null,null,null,null,null,null,0]
[0,3,990,null,null,null,null,null,null,0]
[0,3,990,null,null,null,null,null,null,0]
[0,3,990,null,null,null,null,null,null,0]
[0,3,990,null,null,null,null,null,null,0]
[0,3,990,null,null,null,null,null,null,0]
[0,3,990,null,null,null,null,null,null,0]
[0,3,990,null,null,null,null,null,null,0]
[0,3,990,null,null,null,null,null,null,0]
[0,3,990,null,null,null,null,null,null,0]
[0,3,990,null,null,null,null,null,null,0]
[0,3,990,null,null,null,null,null,null,{"$f":"VLOOKUP(E2435,AL:AO,3,0)","v":0}]
[{"$f":"IF(D2436=D2435,SUMIF(D2435:D2435,D2436,A2435),A2435+1)","v":0},3,990,null,null,null,null,null,null,0]
[0,3,990,null,null,null,null,null,null,0]
[0,3,990,null,null,null,null,null,null,0]
[0,3,990,null,null,null,null,null,null,0]
[0,3,990,null,null,null,null,null,null,0]
[0,3,990,null,null,null,null,null,null,0]
[0,3,990,null,null,null,null,null,null,0]
[0,3,990,null,null,null,null,null,null,0]
[0,3,990,null,null,null,null,null,null,0]
[0,3,990,null,null,null,null,null,null,0]
[0,3,990,null,null,null,null,null,null,0]
[0,3,990,null,null,null,null,null,null,0]
[0,3,990,null,null,null,null,null,null,0]
[0,3,990,null,null,null,null,null,null,0]
[0,3,990,null,null,null,null,null,null,0]
[0,3,990,null,null,null,null,null,null,0]
[0,3,990,null,null,null,null,null,null,0]
[0,3,990,null,null,null,null,null,null,0]
[0,3,990,null,null,null,null,null,null,0]
[0,3,990,null,null,null,null,null,null,0]
[0,3,990,null,null,null,null,null,null,0]
[0,3,990,null,null,null,null,null,null,0]
[0,3,990,null,null,null,null,null,null,0]
[0,3,990,null,null,null,null,null,null,0]
[0,3,990,null,null,null,null,null,null,0]
[0,3,990,null,null,null,null,null,null,0]
[0,3,990,null,null,null,null,null,null,0]
[0,3,990,null,null,null,null,null,null,0]
[0,3,990,null,null,null,null,null,null,0]
[0,3,990,null,null,null,null,null,null,0]
[0,3,990,null,null,null,null,null,null,0]
[0,3,990,null,null,null,null,null,null,0]
[0,3,990,null,null,null,null,null,null,0]
[0,3,990,null,null,null,null,null,null,0]
[0,3,990,null,null,null,null,null,null,0]
[0,3,990,null,null,null,null,null,null,0]
[0,3,990,null,null,null,null,null,null,0]
[0,3,990,null,null,null,null,null,null,0]
[0,3,990,null,null,null,null,null,null,0]
[0,3,990,null,null,null,null,null,null,0]
[0,3,990,null,null,null,null,null,null,0]
[0,3,990,null,null,null,null,null,null,0]
[0,3,990,null,null,null,null,null,null,0]
[0,3,990,null,null,null,null,null,null,0]
[0,3,990,null,null,null,null,null,null,0]
[0,3,990,null,null,null,null,null,null,0]
[0,3,990,null,null,null,null,null,null,0]
[0,3,990,null,null,null,null,null,null,0]
[0,3,990,null,null,null,null,null,null,0]
[0,3,990,null,null,null,null,null,null,0]
[0,3,990,null,null,null,null,null,null,0]
[0,3,990,null,null,null,null,null,null,0]
[0,3,990,null,null,null,null,null,null,0]
[0,3,990,null,null,null,null,null,null,0]
[0,3,990,null,null,null,null,null,null,0]
[0,3,990,null,null,null,null,null,null,0]
[0,3,990,null,null,null,null,null,null,0]
[0,3,990,null,null,null,null,null,null,0]
[0,3,990,null,null,null,null,null,null,0]
[0,3,990,null,null,null,null,null,null,0]
[0,3,990,null,null,null,null,null,null,0]
[0,3,990,null,null,null,null,null,null,0]
[0,3,990,null,null,null,null,null,null,0]
[0,3,990,null,null,null,null,null,null,{"$f":"VLOOKUP(E2499,AL:AO,3,0)","v":0}]
[{"$f":"IF(D2500=D2499,SUMIF(D2499:D2499,D2500,A2499),A2499+1)","v":0},3,990,null,null,null,null,null,null,0]
[0,3,990,null,null,null,null,null,null,0]
[0,3,990,null,null,null,null,null,null,0]
[0,3,990,null,null,null,null,null,null,0]
[0,3,990,null,null,null,null,null,null,0]
[0,3,990,null,null,null,null,null,null,0]
[0,3,990,null,null,null,null,null,null,0]
[0,3,990,null,null,null,null,null,null,0]
[0,3,990,null,null,null,null,null,null,0]
[0,3,990,null,null,null,null,null,null,0]
[0,3,990,null,null,null,null,null,null,0]
[0,3,990,null,null,null,null,null,null,0]
[0,3,990,null,null,null,null,null,null,0]
[0,3,990,null,null,null,null,null,null,0]
[0,3,990,null,null,null,null,null,null,0]
[0,3,990,null,null,null,null,null,null,0]
[0,3,990,null,null,null,null,null,null,0]
[0,3,990,null,null,null,null,null,null,0]
[0,3,990,null,null,null,null,null,null,0]
[0,3,990,null,null,null,null,null,null,0]
[0,3,990,null,null,null,null,null,null,0]
[0,3,990,null,null,null,null,null,null,0]
[0,3,990,null,null,null,null,null,null,0]
[0,3,990,null,null,null,null,null,null,0]
[0,3,990,null,null,null,null,null,null,0]
[0,3,990,null,null,null,null,null,null,0]
[0,3,990,null,null,null,null,null,null,0]
[0,3,990,null,null,null,null,null,null,0]
[0,3,990,null,null,null,null,null,null,0]
[0,3,990,null,null,null,null,null,null,0]
[0,3,990,null,null,null,null,null,null,0]
[0,3,990,null,null,null,null,null,null,0]
[0,3,990,null,null,null,null,null,null,0]
[0,3,990,null,null,null,null,null,null,0]
[0,3,990,null,null,null,null,null,null,0]
[0,3,990,null,null,null,null,null,null,0]
[0,3,990,null,null,null,null,null,null,0]
[0,3,990,null,null,null,null,null,null,0]
[0,3,990,null,null,null,null,null,null,0]
[0,3,990,null,null,null,null,null,null,0]
[0,3,990,null,null,null,null,null,null,0]
[0,3,990,null,null,null,null,null,null,0]
[0,3,990,null,null,null,null,null,null,0]
[0,3,990,null,null,null,null,null,null,0]
[0,3,990,null,null,null,null,null,null,0]
[0,3,990,null,null,null,null,null,null,0]
[0,3,990,null,null,null,null,null,null,0]
[0,3,990,null,null,null,null,null,null,0]
[0,3,990,null,null,null,null,null,null,0]
[0,3,990,null,null,null,null,null,null,0]
[0,3,990,null,null,null,null,null,null,0]
[0,3,990,null,null,null,null,null,null,0]
[0,3,990,null,null,null,null,null,null,0]
[0,3,990,null,null,null,null,null,null,0]
[0,3,990,null,null,null,null,null,null,0]
[0,3,990,null,null,null,null,null,null,0]
[0,3,990,null,null,null,null,null,null,0]
[0,3,990,null,null,null,null,null,null,0]
[0,3,990,null,null,null,null,null,null,0]
[0,3,990,null,null,null,null,null,null,0]
[0,3,990,null,null,null,null,null,null,0]
[0,3,990,null,null,null,null,null,null,0]
[0,3,990,null,null,null,null,null,null,0]
[0,3,990,null,null,null,null,null,null,{"$f":"VLOOKUP(E2563,AL:AO,3,0)","v":0}]
[{"$f":"IF(D2564=D2563,SUMIF(D2563:D2563,D2564,A2563),A2563+1)","v":0},3,990,null,null,null,null,null,null,0]
[0,3,990,null,null,null,null,null,null,0]
[0,3,990,null,null,null,null,null,null,0]
[0,3,990,null,null,null,null,null,null,0]
[0,3,990,null,null,null,null,null,null,0]
[0,3,990,null,null,null,null,null,null,0]
[0,3,990,null,null,null,null,null,null,0]
[0,3,990,null,null,null,null,null,null,0]
[0,3,990,null,null,null,null,null,null,0]
[0,3,990,null,null,null,null,null,null,0]
[0,3,990,null,null,null,null,null,null,0]
[0,3,990,null,null,null,null,null,null,0]
[0,3,990,null,null,null,null,null,null,0]
[0,3,990,null,null,null,null,null,null,0]
[0,3,990,null,null,null,null,null,null,0]
[0,3,990,null,null,null,null,null,null,0]
[0,3,990,null,null,null,null,null,null,0]
[0,3,990,null,null,null,null,null,null,0]
[0,3,990,null,null,null,null,null,null,0]
[0,3,990,null,null,null,null,null,null,0]
[0,3,990,null,null,null,null,null,null,0]
[0,3,990,null,null,null,null,null,null,0]
[0,3,990,null,null,null,null,null,null,0]
[0,3,990,null,null,null,null,null,null,0]
[0,3,990,null,null,null,null,null,null,0]
[0,3,990,null,null,null,null,null,null,0]
[0,3,990,null,null,null,null,null,null,0]
[0,3,990,null,null,null,null,null,null,0]
[0,3,990,null,null,null,null,null,null,0]
[0,3,990,null,null,null,null,null,null,0]
[0,3,990,null,null,null,null,null,null,0]
[0,3,990,null,null,null,null,null,null,0]
[0,3,990,null,null,null,null,null,null,0]
[0,3,990,null,null,null,null,null,null,0]
[0,3,990,null,null,null,null,null,null,0]
[0,3,990,null,null,null,null,null,null,0]
[0,3,990,null,null,null,null,null,null,0]
[0,3,990,null,null,null,null,null,null,0]
[0,3,990,null,null,null,null,null,null,0]
[0,3,990,null,null,null,null,null,null,0]
[0,3,990,null,null,null,null,null,null,0]
[0,3,990,null,null,null,null,null,null,0]
[0,3,990,null,null,null,null,null,null,0]
[0,3,990,null,null,null,null,null,null,0]
[0,3,990,null,null,null,null,null,null,0]
[0,3,990,null,null,null,null,null,null,0]
[0,3,990,null,null,null,null,null,null,0]
[0,3,990,null,null,null,null,null,null,0]
[0,3,990,null,null,null,null,null,null,0]
[0,3,990,null,null,null,null,null,null,0]
[0,3,990,null,null,null,null,null,null,0]
[0,3,990,null,null,null,null,null,null,0]
[0,3,990,null,null,null,null,null,null,0]
[0,3,990,null,null,null,null,null,null,0]
[0,3,990,null,null,null,null,null,null,0]
[0,3,990,null,null,null,null,null,null,0]
[0,3,990,null,null,null,null,null,null,0]
[0,3,990,null,null,null,null,null,null,0]
[0,3,990,null,null,null,null,null,null,0]
[0,3,990,null,null,null,null,null,null,0]
[0,3,990,null,null,null,null,null,null,0]
[0,3,990,null,null,null,null,null,null,0]
[0,3,990,null,null,null,null,null,null,0]
[0,3,990,null,null,null,null,null,null,{"$f":"VLOOKUP(E2627,AL:AO,3,0)","v":0}]
[{"$f":"IF(D2628=D2627,SUMIF(D2627:D2627,D2628,A2627),A2627+1)","v":0},3,990,null,null,null,null,null,null,0]
[0,3,990,null,null,null,null,null,null,0]
[0,3,990,null,null,null,null,null,null,0]
[0,3,990,null,null,null,null,null,null,0]
[0,3,990,null,null,null,null,null,null,0]
[0,3,990,null,null,null,null,null,null,0]
[0,3,990,null,null,null,null,null,null,0]
[0,3,990,null,null,null,null,null,null,0]
[0,3,990,null,null,null,null,null,null,0]
[0,3,990,null,null,null,null,null,null,0]
[0,3,990,null,null,null,null,null,null,0]
[0,3,990,null,null,null,null,null,null,0]
[0,3,990,null,null,null,null,null,null,0]
[0,3,990,null,null,null,null,null,null,0]
[0,3,990,null,null,null,null,null,null,0]
[0,3,990,null,null,null,null,null,null,0]
[0,3,990,null,null,null,null,null,null,0]
[0,3,990,null,null,null,null,null,null,0]
[0,3,990,null,null,null,null,null,null,0]
[0,3,990,null,null,null,null,null,null,0]
[0,3,990,null,null,null,null,null,null,0]
[0,3,990,null,null,null,null,null,null,0]
[0,3,990,null,null,null,null,null,null,0]
[0,3,990,null,null,null,null,null,null,0]
[0,3,990,null,null,null,null,null,null,0]
[0,3,990,null,null,null,null,null,null,0]
[0,3,990,null,null,null,null,null,null,0]
[0,3,990,null,null,null,null,null,null,0]
[0,3,990,null,null,null,null,null,null,0]
[0,3,990,null,null,null,null,null,null,0]
[0,3,990,null,null,null,null,null,null,0]
[0,3,990,null,null,null,null,null,null,0]
[0,3,990,null,null,null,null,null,null,0]
[0,3,990,null,null,null,null,null,null,0]
[0,3,990,null,null,null,null,null,null,0]
[0,3,990,null,null,null,null,null,null,0]
[0,3,990,null,null,null,null,null,null,0]
[0,3,990,null,null,null,null,null,null,0]
[0,3,990,null,null,null,null,null,null,0]
[0,3,990,null,null,null,null,null,null,0]
[0,3,990,null,null,null,null,null,null,0]
[0,3,990,null,null,null,null,null,null,0]
[0,3,990,null,null,null,null,null,null,0]
[0,3,990,null,null,null,null,null,null,0]
[0,3,990,null,null,null,null,null,null,0]
[0,3,990,null,null,null,null,null,null,0]
[0,3,990,null,null,null,null,null,null,0]
[0,3,990,null,null,null,null,null,null,0]
[0,3,990,null,null,null,null,null,null,0]
[0,3,990,null,null,null,null,null,null,0]
[0,3,990,null,null,null,null,null,null,0]
[0,3,990,null,null,null,null,null,null,0]
[0,3,990,null,null,null,null,null,null,0]
[0,3,990,null,null,null,null,null,null,0]
[0,3,990,null,null,null,null,null,null,0]
[0,3,990,null,null,null,null,null,null,0]
[0,3,990,null,null,null,null,null,null,0]
[0,3,990,null,null,null,null,null,null,0]
[0,3,990,null,null,null,null,null,null,0]
[0,3,990,null,null,null,null,null,null,0]
[0,3,990,null,null,null,null,null,null,0]
[0,3,990,null,null,null,null,null,null,0]
[0,3,990,null,null,null,null,null,null,0]
[0,3,990,null,null,null,null,null,null,{"$f":"VLOOKUP(E2691,AL:AO,3,0)","v":0}]
[{"$f":"IF(D2692=D2691,SUMIF(D2691:D2691,D2692,A2691),A2691+1)","v":0},3,990,null,null,null,null,null,null,0]
[0,3,990,null,null,null,null,null,null,0]
[0,3,990,null,null,null,null,null,null,0]
[0,3,990,null,null,null,null,null,null,0]
[0,3,990,null,null,null,null,null,null,0]
[0,3,990,null,null,null,null,null,null,0]
[0,3,990,null,null,null,null,null,null,0]
[0,3,990,null,null,null,null,null,null,0]
[0,3,990,null,null,null,null,null,null,0]
[0,3,990,null,null,null,null,null,null,0]
[0,3,990,null,null,null,null,null,null,0]
[0,3,990,null,null,null,null,null,null,0]
[0,3,990,null,null,null,null,null,null,0]
[0,3,990,null,null,null,null,null,null,0]
[0,3,990,null,null,null,null,null,null,0]
[0,3,990,null,null,null,null,null,null,0]
[0,3,990,null,null,null,null,null,null,0]
[0,3,990,null,null,null,null,null,null,0]
[0,3,990,null,null,null,null,null,null,0]
[0,3,990,null,null,null,null,null,null,0]
[0,3,990,null,null,null,null,null,null,0]
[0,3,990,null,null,null,null,null,null,0]
[0,3,990,null,null,null,null,null,null,0]
[0,3,990,null,null,null,null,null,null,0]
[0,3,990,null,null,null,null,null,null,0]
[0,3,990,null,null,null,null,null,null,0]
[0,3,990,null,null,null,null,null,null,0]
[0,3,990,null,null,null,null,null,null,0]
[0,3,990,null,null,null,null,null,null,0]
[0,3,990,null,null,null,null,null,null,0]
[0,3,990,null,null,null,null,null,null,0]
[0,3,990,null,null,null,null,null,null,0]
[0,3,990,null,null,null,null,null,null,0]
[0,3,990,null,null,null,null,null,null,0]
[0,3,990,null,null,null,null,null,null,0]
[0,3,990,null,null,null,null,null,null,0]
[0,3,990,null,null,null,null,null,null,0]
[0,3,990,null,null,null,null,null,null,0]
[0,3,990,null,null,null,null,null,null,0]
[0,3,990,null,null,null,null,null,null,0]
[0,3,990,null,null,null,null,null,null,0]
[0,3,990,null,null,null,null,null,null,0]
[0,3,990,null,null,null,null,null,null,0]
[0,3,990,null,null,null,null,null,null,0]
[0,3,990,null,null,null,null,null,null,0]
[0,3,990,null,null,null,null,null,null,0]
[0,3,990,null,null,null,null,null,null,0]
[0,3,990,null,null,null,null,null,null,0]
[0,3,990,null,null,null,null,null,null,0]
[0,3,990,null,null,null,null,null,null,0]
[0,3,990,null,null,null,null,null,null,0]
[0,3,990,null,null,null,null,null,null,0]
[0,3,990,null,null,null,null,null,null,0]
[0,3,990,null,null,null,null,null,null,0]
[0,3,990,null,null,null,null,null,null,0]
[0,3,990,null,null,null,null,null,null,0]
[0,3,990,null,null,null,null,null,null,0]
[0,3,990,null,null,null,null,null,null,0]
[0,3,990,null,null,null,null,null,null,0]
[0,3,990,null,null,null,null,null,null,0]
[0,3,990,null,null,null,null,null,null,0]
[0,3,990,null,null,null,null,null,null,0]
[0,3,990,null,null,null,null,null,null,0]
[0,3,990,null,null,null,null,null,null,{"$f":"VLOOKUP(E2755,AL:AO,3,0)","v":0}]
[{"$f":"IF(D2756=D2755,SUMIF(D2755:D2755,D2756,A2755),A2755+1)","v":0},3,990,null,null,null,null,null,null,0]
[0,3,990,null,null,null,null,null,null,0]
[0,3,990,null,null,null,null,null,null,0]
[0,3,990,null,null,null,null,null,null,0]
[0,3,990,null,null,null,null,null,null,0]
[0,3,990,null,null,null,null,null,null,0]
[0,3,990,null,null,null,null,null,null,0]
[0,3,990,null,null,null,null,null,null,0]
[0,3,990,null,null,null,null,null,null,0]
[0,3,990,null,null,null,null,null,null,0]
[0,3,990,null,null,null,null,null,null,0]
[0,3,990,null,null,null,null,null,null,0]
[0,3,990,null,null,null,null,null,null,0]
[0,3,990,null,null,null,null,null,null,0]
[0,3,990,null,null,null,null,null,null,0]
[0,3,990,null,null,null,null,null,null,0]
[0,3,990,null,null,null,null,null,null,0]
[0,3,990,null,null,null,null,null,null,0]
[0,3,990,null,null,null,null,null,null,0]
[0,3,990,null,null,null,null,null,null,0]
[0,3,990,null,null,null,null,null,null,0]
[0,3,990,null,null,null,null,null,null,0]
[0,3,990,null,null,null,null,null,null,0]
[0,3,990,null,null,null,null,null,null,0]
[0,3,990,null,null,null,null,null,null,0]
[0,3,990,null,null,null,null,null,null,0]
[0,3,990,null,null,null,null,null,null,0]
[0,3,990,null,null,null,null,null,null,0]
[0,3,990,null,null,null,null,null,null,0]
[0,3,990,null,null,null,null,null,null,0]
[0,3,990,null,null,null,null,null,null,0]
[0,3,990,null,null,null,null,null,null,0]
[0,3,990,null,null,null,null,null,null,0]
[0,3,990,null,null,null,null,null,null,0]
[0,3,990,null,null,null,null,null,null,0]
[0,3,990,null,null,null,null,null,null,0]
[0,3,990,null,null,null,null,null,null,0]
[0,3,990,null,null,null,null,null,null,0]
[0,3,990,null,null,null,null,null,null,0]
[0,3,990,null,null,null,null,null,null,0]
[0,3,990,null,null,null,null,null,null,0]
[0,3,990,null,null,null,null,null,null,0]
[0,3,990,null,null,null,null,null,null,0]
[0,3,990,null,null,null,null,null,null,0]
[0,3,990,null,null,null,null,null,null,0]
[0,3,990,null,null,null,null,null,null,0]
[0,3,990,null,null,null,null,null,null,0]
[0,3,990,null,null,null,null,null,null,0]
[0,3,990,null,null,null,null,null,null,0]
[0,3,990,null,null,null,null,null,null,0]
[0,3,990,null,null,null,null,null,null,0]
[0,3,990,null,null,null,null,null,null,0]
[0,3,990,null,null,null,null,null,null,0]
[0,3,990,null,null,null,null,null,null,0]
[0,3,990,null,null,null,null,null,null,0]
[0,3,990,null,null,null,null,null,null,0]
[0,3,990,null,null,null,null,null,null,0]
[0,3,990,null,null,null,null,null,null,0]
[0,3,990,null,null,null,null,null,null,0]
[0,3,990,null,null,null,null,null,null,0]
[0,3,990,null,null,null,null,null,null,0]
[0,3,990,null,null,null,null,null,null,0]
[0,3,990,null,null,null,null,null,null,0]
[0,3,990,null,null,null,null,null,null,{"$f":"VLOOKUP(E2819,AL:AO,3,0)","v":0}]
[{"$f":"IF(D2820=D2819,SUMIF(D2819:D2819,D2820,A2819),A2819+1)","v":0},3,990,null,null,null,null,null,null,0]
[0,3,990,null,null,null,null,null,null,0]
[0,3,990,null,null,null,null,null,null,0]
[0,3,990,null,null,null,null,null,null,0]
[0,3,990,null,null,null,null,null,null,0]
[0,3,990,null,null,null,null,null,null,0]
[0,3,990,null,null,null,null,null,null,0]
[0,3,990,null,null,null,null,null,null,0]
[0,3,990,null,null,null,null,null,null,0]
[0,3,990,null,null,null,null,null,null,0]
[0,3,990,null,null,null,null,null,null,0]
[0,3,990,null,null,null,null,null,null,0]
[0,3,990,null,null,null,null,null,null,0]
[0,3,990,null,null,null,null,null,null,0]
[0,3,990,null,null,null,null,null,null,0]
[0,3,990,null,null,null,null,null,null,0]
[0,3,990,null,null,null,null,null,null,0]
[0,3,990,null,null,null,null,null,null,0]
[0,3,990,null,null,null,null,null,null,0]
[0,3,990,null,null,null,null,null,null,0]
[0,3,990,null,null,null,null,null,null,0]
[0,3,990,null,null,null,null,null,null,0]
[0,3,990,null,null,null,null,null,null,0]
[0,3,990,null,null,null,null,null,null,0]
[0,3,990,null,null,null,null,null,null,0]
[0,3,990,null,null,null,null,null,null,0]
[0,3,990,null,null,null,null,null,null,0]
[0,3,990,null,null,null,null,null,null,0]
[0,3,990,null,null,null,null,null,null,0]
[0,3,990,null,null,null,null,null,null,0]
[0,3,990,null,null,null,null,null,null,0]
[0,3,990,null,null,null,null,null,null,0]
[0,3,990,null,null,null,null,null,null,0]
[0,3,990,null,null,null,null,null,null,0]
[0,3,990,null,null,null,null,null,null,0]
[0,3,990,null,null,null,null,null,null,0]
[0,3,990,null,null,null,null,null,null,0]
[0,3,990,null,null,null,null,null,null,0]
[0,3,990,null,null,null,null,null,null,0]
[0,3,990,null,null,null,null,null,null,0]
[0,3,990,null,null,null,null,null,null,0]
[0,3,990,null,null,null,null,null,null,0]
[0,3,990,null,null,null,null,null,null,0]
[0,3,990,null,null,null,null,null,null,0]
[0,3,990,null,null,null,null,null,null,0]
[0,3,990,null,null,null,null,null,null,0]
[0,3,990,null,null,null,null,null,null,0]
[0,3,990,null,null,null,null,null,null,0]
[0,3,990,null,null,null,null,null,null,0]
[0,3,990,null,null,null,null,null,null,0]
[0,3,990,null,null,null,null,null,null,0]
[0,3,990,null,null,null,null,null,null,0]
[0,3,990,null,null,null,null,null,null,0]
[0,3,990,null,null,null,null,null,null,0]
[0,3,990,null,null,null,null,null,null,0]
[0,3,990,null,null,null,null,null,null,0]
[0,3,990,null,null,null,null,null,null,0]
[0,3,990,null,null,null,null,null,null,0]
[0,3,990,null,null,null,null,null,null,0]
[0,3,990,null,null,null,null,null,null,0]
[0,3,990,null,null,null,null,null,null,0]
[0,3,990,null,null,null,null,null,null,0]
[0,3,990,null,null,null,null,null,null,0]
[0,3,990,null,null,null,null,null,null,{"$f":"VLOOKUP(E2883,AL:AO,3,0)","v":0}]
[{"$f":"IF(D2884=D2883,SUMIF(D2883:D2883,D2884,A2883),A2883+1)","v":0},3,990,null,null,null,null,null,null,0]
[0,3,990,null,null,null,null,null,null,0]
[0,3,990,null,null,null,null,null,null,0]
[0,3,990,null,null,null,null,null,null,0]
[0,3,990,null,null,null,null,null,null,0]
[0,3,990,null,null,null,null,null,null,0]
[0,3,990,null,null,null,null,null,null,0]
[0,3,990,null,null,null,null,null,null,0]
[0,3,990,null,null,null,null,null,null,0]
[0,3,990,null,null,null,null,null,null,0]
[0,3,990,null,null,null,null,null,null,0]
[0,3,990,null,null,null,null,null,null,0]
[0,3,990,null,null,null,null,null,null,0]
[0,3,990,null,null,null,null,null,null,0]
[0,3,990,null,null,null,null,null,null,0]
[0,3,990,null,null,null,null,null,null,0]
[0,3,990,null,null,null,null,null,null,0]
[0,3,990,null,null,null,null,null,null,0]
[0,3,990,null,null,null,null,null,null,0]
[0,3,990,null,null,null,null,null,null,0]
[0,3,990,null,null,null,null,null,null,0]
[0,3,990,null,null,null,null,null,null,0]
[0,3,990,null,null,null,null,null,null,0]
[0,3,990,null,null,null,null,null,null,0]
[0,3,990,null,null,null,null,null,null,0]
[0,3,990,null,null,null,null,null,null,0]
[0,3,990,null,null,null,null,null,null,0]
[0,3,990,null,null,null,null,null,null,0]
[0,3,990,null,null,null,null,null,null,0]
[0,3,990,null,null,null,null,null,null,0]
[0,3,990,null,null,null,null,null,null,0]
[0,3,990,null,null,null,null,null,null,0]
[0,3,990,null,null,null,null,null,null,0]
[0,3,990,null,null,null,null,null,null,0]
[0,3,990,null,null,null,null,null,null,0]
[0,3,990,null,null,null,null,null,null,0]
[0,3,990,null,null,null,null,null,null,0]
[0,3,990,null,null,null,null,null,null,0]
[0,3,990,null,null,null,null,null,null,0]
[0,3,990,null,null,null,null,null,null,0]
[0,3,990,null,null,null,null,null,null,0]
[0,3,990,null,null,null,null,null,null,0]
[0,3,990,null,null,null,null,null,null,0]
[0,3,990,null,null,null,null,null,null,0]
[0,3,990,null,null,null,null,null,null,0]
[0,3,990,null,null,null,null,null,null,0]
[0,3,990,null,null,null,null,null,null,0]
[0,3,990,null,null,null,null,null,null,0]
[0,3,990,null,null,null,null,null,null,0]
[0,3,990,null,null,null,null,null,null,0]
[0,3,990,null,null,null,null,null,null,0]
[0,3,990,null,null,null,null,null,null,0]
[0,3,990,null,null,null,null,null,null,0]
[0,3,990,null,null,null,null,null,null,0]
[0,3,990,null,null,null,null,null,null,0]
[0,3,990,null,null,null,null,null,null,0]
[0,3,990,null,null,null,null,null,null,0]
[0,3,990,null,null,null,null,null,null,0]
[0,3,990,null,null,null,null,null,null,0]
[0,3,990,null,null,null,null,null,null,0]
[0,3,990,null,null,null,null,null,null,0]
[0,3,990,null,null,null,null,null,null,0]
[0,3,990,null,null,null,null,null,null,0]
[0,3,990,null,null,null,null,null,null,{"$f":"VLOOKUP(E2947,AL:AO,3,0)","v":0}]
[{"$f":"IF(D2948=D2947,SUMIF(D2947:D2947,D2948,A2947),A2947+1)","v":0},3,990,null,null,null,null,null,null,0]
[0,3,990,null,null,null,null,null,null,0]
[0,3,990,null,null,null,null,null,null,0]
[0,3,990,null,null,null,null,null,null,0]
[0,3,990,null,null,null,null,null,null,0]
[0,3,990,null,null,null,null,null,null,0]
[0,3,990,null,null,null,null,null,null,0]
[0,3,990,null,null,null,null,null,null,0]
[0,3,990,null,null,null,null,null,null,0]
[0,3,990,null,null,null,null,null,null,0]
[0,3,990,null,null,null,null,null,null,0]
[0,3,990,null,null,null,null,null,null,0]
[0,3,990,null,null,null,null,null,null,0]
[0,3,990,null,null,null,null,null,null,0]
[0,3,990,null,null,null,null,null,null,0]
[0,3,990,null,null,null,null,null,null,0]
[0,3,990,null,null,null,null,null,null,0]
[0,3,990,null,null,null,null,null,null,0]
[0,3,990,null,null,null,null,null,null,0]
[0,3,990,null,null,null,null,null,null,0]
[0,3,990,null,null,null,null,null,null,0]
[0,3,990,null,null,null,null,null,null,0]
[0,3,990,null,null,null,null,null,null,0]
[0,3,990,null,null,null,null,null,null,0]
[0,3,990,null,null,null,null,null,null,0]
[0,3,990,null,null,null,null,null,null,0]
[0,3,990,null,null,null,null,null,null,0]
[0,3,990,null,null,null,null,null,null,0]
[0,3,990,null,null,null,null,null,null,0]
[0,3,990,null,null,null,null,null,null,0]
[0,3,990,null,null,null,null,null,null,0]
[0,3,990,null,null,null,null,null,null,0]
[0,3,990,null,null,null,null,null,null,0]
[0,3,990,null,null,null,null,null,null,0]
[0,3,990,null,null,null,null,null,null,0]
[0,3,990,null,null,null,null,null,null,0]
[0,3,990,null,null,null,null,null,null,0]
[0,3,990,null,null,null,null,null,null,0]
[0,3,990,null,null,null,null,null,null,0]
[0,3,990,null,null,null,null,null,null,0]
[0,3,990,null,null,null,null,null,null,0]
[0,3,990,null,null,null,null,null,null,0]
[0,3,990,null,null,null,null,null,null,0]
[0,3,990,null,null,null,null,null,null,0]
[0,3,990,null,null,null,null,null,null,0]
[0,3,990,null,null,null,null,null,null,0]
[0,3,990,null,null,null,null,null,null,0]
[0,3,990,null,null,null,null,null,null,0]
[0,3,990,null,null,null,null,null,null,0]
[0,3,990,null,null,null,null,null,null,0]
[0,3,990,null,null,null,null,null,null,0]
[0,3,990,null,null,null,null,null,null,0]
[0,3,990,null,null,null,null,null,null,0]
[0,3,990,null,null,null,null,null,null,0]
[0,3,990,null,null,null,null,null,null,0]
[0,3,990,null,null,null,null,null,null,0]
[0,3,990,null,null,null,null,null,null,0]
[0,3,990,null,null,null,null,null,null,0]
[0,3,990,null,null,null,null,null,null,0]
[0,3,990,null,null,null,null,null,null,0]
[0,3,990,null,null,null,null,null,null,0]
[0,3,990,null,null,null,null,null,null,0]
[0,3,990,null,null,null,null,null,null,0]
[0,3,990,null,null,null,null,null,null,{"$f":"VLOOKUP(E3011,AL:AO,3,0)","v":0}]
[{"$f":"IF(D3012=D3011,SUMIF(D3011:D3011,D3012,A3011),A3011+1)","v":0},3,990,null,null,null,null,null,null,0]
[0,3,990,null,null,null,null,null,null,0]
[0,3,990,null,null,null,null,null,null,0]
[0,3,990,null,null,null,null,null,null,0]
[0,3,990,null,null,null,null,null,null,0]
[0,3,990,null,null,null,null,null,null,0]
[0,3,990,null,null,null,null,null,null,0]
[0,3,990,null,null,null,null,null,null,0]
[0,3,990,null,null,null,null,null,null,0]
[0,3,990,null,null,null,null,null,null,0]
[0,3,990,null,null,null,null,null,null,0]
[0,3,990,null,null,null,null,null,null,0]
[0,3,990,null,null,null,null,null,null,0]
[0,3,990,null,null,null,null,null,null,0]
[0,3,990,null,null,null,null,null,null,0]
[0,3,990,null,null,null,null,null,null,0]
[0,3,990,null,null,null,null,null,null,0]
[0,3,990,null,null,null,null,null,null,0]
[0,3,990,null,null,null,null,null,null,0]
[0,3,990,null,null,null,null,null,null,0]
[0,3,990,null,null,null,null,null,null,0]
[0,3,990,null,null,null,null,null,null,0]
[0,3,990,null,null,null,null,null,null,0]
[0,3,990,null,null,null,null,null,null,0]
[0,3,990,null,null,null,null,null,null,0]
[0,3,990,null,null,null,null,null,null,0]
[0,3,990,null,null,null,null,null,null,0]
[0,3,990,null,null,null,null,null,null,0]
[0,3,990,null,null,null,null,null,null,0]
[0,3,990,null,null,null,null,null,null,0]
[0,3,990,null,null,null,null,null,null,0]
[0,3,990,null,null,null,null,null,null,0]
[0,3,990,null,null,null,null,null,null,0]
[0,3,990,null,null,null,null,null,null,0]
[0,3,990,null,null,null,null,null,null,0]
[0,3,990,null,null,null,null,null,null,0]
[0,3,990,null,null,null,null,null,null,0]
[0,3,990,null,null,null,null,null,null,0]
[0,3,990,null,null,null,null,null,null,0]
[0,3,990,null,null,null,null,null,null,0]
[0,3,990,null,null,null,null,null,null,0]
[0,3,990,null,null,null,null,null,null,0]
[0,3,990,null,null,null,null,null,null,0]
[0,3,990,null,null,null,null,null,null,0]
[0,3,990,null,null,null,null,null,null,0]
[0,3,990,null,null,null,null,null,null,0]
[0,3,990,null,null,null,null,null,null,0]
[0,3,990,null,null,null,null,null,null,0]
[0,3,990,null,null,null,null,null,null,0]
[0,3,990,null,null,null,null,null,null,0]
[0,3,990,null,null,null,null,null,null,0]
[0,3,990,null,null,null,null,null,null,0]
[0,3,990,null,null,null,null,null,null,0]
[0,3,990,null,null,null,null,null,null,0]
[0,3,990,null,null,null,null,null,null,0]
[0,3,990,null,null,null,null,null,null,0]
[0,3,990,null,null,null,null,null,null,0]
[0,3,990,null,null,null,null,null,null,0]
[0,3,990,null,null,null,null,null,null,0]
[0,3,990,null,null,null,null,null,null,0]
[0,3,990,null,null,null,null,null,null,0]
[0,3,990,null,null,null,null,null,null,0]
[0,3,990,null,null,null,null,null,null,0]
[0,3,990,null,null,null,null,null,null,{"$f":"VLOOKUP(E3075,AL:AO,3,0)","v":0}]
[{"$f":"IF(D3076=D3075,SUMIF(D3075:D3075,D3076,A3075),A3075+1)","v":0},3,990,null,null,null,null,null,null,0]
[0,3,990,null,null,null,null,null,null,0]
[0,3,990,null,null,null,null,null,null,0]
[0,3,990,null,null,null,null,null,null,0]
[0,3,990,null,null,null,null,null,null,0]
[0,3,990,null,null,null,null,null,null,0]
[0,3,990,null,null,null,null,null,null,0]
[0,3,990,null,null,null,null,null,null,0]
[0,3,990,null,null,null,null,null,null,0]
[0,3,990,null,null,null,null,null,null,0]
[0,3,990,null,null,null,null,null,null,0]
[0,3,990,null,null,null,null,null,null,0]
[0,3,990,null,null,null,null,null,null,0]
[0,3,990,null,null,null,null,null,null,0]
[0,3,990,null,null,null,null,null,null,0]
[0,3,990,null,null,null,null,null,null,0]
[0,3,990,null,null,null,null,null,null,0]
[0,3,990,null,null,null,null,null,null,0]
[0,3,990,null,null,null,null,null,null,0]
[0,3,990,null,null,null,null,null,null,0]
[0,3,990,null,null,null,null,null,null,0]
[0,3,990,null,null,null,null,null,null,0]
[0,3,990,null,null,null,null,null,null,0]
[0,3,990,null,null,null,null,null,null,0]
[0,3,990,null,null,null,null,null,null,0]
[0,3,990,null,null,null,null,null,null,0]
[0,3,990,null,null,null,null,null,null,0]
[0,3,990,null,null,null,null,null,null,0]
[0,3,990,null,null,null,null,null,null,0]
[0,3,990,null,null,null,null,null,null,0]
[0,3,990,null,null,null,null,null,null,0]
[0,3,990,null,null,null,null,null,null,0]
[0,3,990,null,null,null,null,null,null,0]
[0,3,990,null,null,null,null,null,null,0]
[0,3,990,null,null,null,null,null,null,0]
[0,3,990,null,null,null,null,null,null,0]
[0,3,990,null,null,null,null,null,null,0]
[0,3,990,null,null,null,null,null,null,0]
[0,3,990,null,null,null,null,null,null,0]
[0,3,990,null,null,null,null,null,null,0]
[0,3,990,null,null,null,null,null,null,0]
[0,3,990,null,null,null,null,null,null,0]
[0,3,990,null,null,null,null,null,null,0]
[0,3,990,null,null,null,null,null,null,0]
[0,3,990,null,null,null,null,null,null,0]
[0,3,990,null,null,null,null,null,null,0]
[0,3,990,null,null,null,null,null,null,0]
[0,3,990,null,null,null,null,null,null,0]
[0,3,990,null,null,null,null,null,null,0]
[0,3,990,null,null,null,null,null,null,0]
[0,3,990,null,null,null,null,null,null,0]
[0,3,990,null,null,null,null,null,null,0]
[0,3,990,null,null,null,null,null,null,0]
[0,3,990,null,null,null,null,null,null,0]
[0,3,990,null,null,null,null,null,null,0]
[0,3,990,null,null,null,null,null,null,0]
[0,3,990,null,null,null,null,null,null,0]
[0,3,990,null,null,null,null,null,null,0]
[0,3,990,null,null,null,null,null,null,0]
[0,3,990,null,null,null,null,null,null,0]
[0,3,990,null,null,null,null,null,null,0]
[0,3,990,null,null,null,null,null,null,0]
[0,3,990,null,null,null,null,null,null,0]
[0,3,990,null,null,null,null,null,null,{"$f":"VLOOKUP(E3139,AL:AO,3,0)","v":0}]
[{"$f":"IF(D3140=D3139,SUMIF(D3139:D3139,D3140,A3139),A3139+1)","v":0},3,990,null,null,null,null,null,null,0]
[0,3,990,null,null,null,null,null,null,0]
[0,3,990,null,null,null,null,null,null,0]
[0,3,990,null,null,null,null,null,null,0]
[0,3,990,null,null,null,null,null,null,0]
[0,3,990,null,null,null,null,null,null,0]
[0,3,990,null,null,null,null,null,null,0]
[0,3,990,null,null,null,null,null,null,0]
[0,3,990,null,null,null,null,null,null,0]
[0,3,990,null,null,null,null,null,null,0]
[0,3,990,null,null,null,null,null,null,0]
[0,3,990,null,null,null,null,null,null,0]
[0,3,990,null,null,null,null,null,null,0]
[0,3,990,null,null,null,null,null,null,0]
[0,3,990,null,null,null,null,null,null,0]
[0,3,990,null,null,null,null,null,null,0]
[0,3,990,null,null,null,null,null,null,0]
[0,3,990,null,null,null,null,null,null,0]
[0,3,990,null,null,null,null,null,null,0]
[0,3,990,null,null,null,null,null,null,0]
[0,3,990,null,null,null,null,null,null,0]
[0,3,990,null,null,null,null,null,null,0]
[0,3,990,null,null,null,null,null,null,0]
[0,3,990,null,null,null,null,null,null,0]
[0,3,990,null,null,null,null,null,null,0]
[0,3,990,null,null,null,null,null,null,0]
[0,3,990,null,null,null,null,null,null,0]
[0,3,990,null,null,null,null,null,null,0]
[0,3,990,null,null,null,null,null,null,0]
[0,3,990,null,null,null,null,null,null,0]
[0,3,990,null,null,null,null,null,null,0]
[0,3,990,null,null,null,null,null,null,0]
[0,3,990,null,null,null,null,null,null,0]
[0,3,990,null,null,null,null,null,null,0]
[0,3,990,null,null,null,null,null,null,0]
[0,3,990,null,null,null,null,null,null,0]
[0,3,990,null,null,null,null,null,null,0]
[0,3,990,null,null,null,null,null,null,0]
[0,3,990,null,null,null,null,null,null,0]
[0,3,990,null,null,null,null,null,null,0]
[0,3,990,null,null,null,null,null,null,0]
[0,3,990,null,null,null,null,null,null,0]
[0,3,990,null,null,null,null,null,null,0]
[0,3,990,null,null,null,null,null,null,0]
[0,3,990,null,null,null,null,null,null,0]
[0,3,990,null,null,null,null,null,null,0]
[0,3,990,null,null,null,null,null,null,0]
[0,3,990,null,null,null,null,null,null,0]
[0,3,990,null,null,null,null,null,null,0]
[0,3,990,null,null,null,null,null,null,0]
[0,3,990,null,null,null,null,null,null,0]
[0,3,990,null,null,null,null,null,null,0]
[0,3,990,null,null,null,null,null,null,0]
[0,3,990,null,null,null,null,null,null,0]
[0,3,990,null,null,null,null,null,null,0]
[0,3,990,null,null,null,null,null,null,0]
[0,3,990,null,null,null,null,null,null,0]
[0,3,990,null,null,null,null,null,null,0]
[0,3,990,null,null,null,null,null,null,0]
[0,3,990,null,null,null,null,null,null,0]
[0,3,990,null,null,null,null,null,null,0]
[0,3,990,null,null,null,null,null,null,0]
[0,3,990,null,null,null,null,null,null,0]
[0,3,990,null,null,null,null,null,null,{"$f":"VLOOKUP(E3203,AL:AO,3,0)","v":0}]
[{"$f":"IF(D3204=D3203,SUMIF(D3203:D3203,D3204,A3203),A3203+1)","v":0},3,990,null,null,null,null,null,null,0]
[0,3,990,null,null,null,null,null,null,0]
[0,3,990,null,null,null,null,null,null,0]
[0,3,990,null,null,null,null,null,null,0]
[0,3,990,null,null,null,null,null,null,0]
[0,3,990,null,null,null,null,null,null,0]
[0,3,990,null,null,null,null,null,null,0]
[0,3,990,null,null,null,null,null,null,0]
[0,3,990,null,null,null,null,null,null,0]
[0,3,990,null,null,null,null,null,null,0]
[0,3,990,null,null,null,null,null,null,0]
[0,3,990,null,null,null,null,null,null,0]
[0,3,990,null,null,null,null,null,null,0]
[0,3,990,null,null,null,null,null,null,0]
[0,3,990,null,null,null,null,null,null,0]
[0,3,990,null,null,null,null,null,null,0]
[0,3,990,null,null,null,null,null,null,0]
[0,3,990,null,null,null,null,null,null,0]
[0,3,990,null,null,null,null,null,null,0]
[0,3,990,null,null,null,null,null,null,0]
[0,3,990,null,null,null,null,null,null,0]
[0,3,990,null,null,null,null,null,null,0]
[0,3,990,null,null,null,null,null,null,0]
[0,3,990,null,null,null,null,null,null,0]
[0,3,990,null,null,null,null,null,null,0]
[0,3,990,null,null,null,null,null,null,0]
[0,3,990,null,null,null,null,null,null,0]
[0,3,990,null,null,null,null,null,null,0]
[0,3,990,null,null,null,null,null,null,0]
[0,3,990,null,null,null,null,null,null,0]
[0,3,990,null,null,null,null,null,null,0]
[0,3,990,null,null,null,null,null,null,0]
[0,3,990,null,null,null,null,null,null,0]
[0,3,990,null,null,null,null,null,null,0]
[0,3,990,null,null,null,null,null,null,0]
[0,3,990,null,null,null,null,null,null,0]
[0,3,990,null,null,null,null,null,null,0]
[0,3,990,null,null,null,null,null,null,0]
[0,3,990,null,null,null,null,null,null,0]
[0,3,990,null,null,null,null,null,null,0]
[0,3,990,null,null,null,null,null,null,0]
[0,3,990,null,null,null,null,null,null,0]
[0,3,990,null,null,null,null,null,null,0]
[0,3,990,null,null,null,null,null,null,0]
[0,3,990,null,null,null,null,null,null,0]
[0,3,990,null,null,null,null,null,null,0]
[0,3,990,null,null,null,null,null,null,0]
[0,3,990,null,null,null,null,null,null,0]
[0,3,990,null,null,null,null,null,null,0]
[0,3,990,null,null,null,null,null,null,0]
[0,3,990,null,null,null,null,null,null,0]
[0,3,990,null,null,null,null,null,null,0]
[0,3,990,null,null,null,null,null,null,0]
[0,3,990,null,null,null,null,null,null,0]
[0,3,990,null,null,null,null,null,null,0]
[0,3,990,null,null,null,null,null,null,0]
[0,3,990,null,null,null,null,null,null,0]
[0,3,990,null,null,null,null,null,null,0]
[0,3,990,null,null,null,null,null,null,0]
[0,3,990,null,null,null,null,null,null,0]
[0,3,990,null,null,null,null,null,null,0]
[0,3,990,null,null,null,null,null,null,0]
[0,3,990,null,null,null,null,null,null,0]
[0,3,990,null,null,null,null,null,null,{"$f":"VLOOKUP(E3267,AL:AO,3,0)","v":0}]
[{"$f":"IF(D3268=D3267,SUMIF(D3267:D3267,D3268,A3267),A3267+1)","v":0},3,990,null,null,null,null,null,null,0]
[0,3,990,null,null,null,null,null,null,0]
[0,3,990,null,null,null,null,null,null,0]
[0,3,990,null,null,null,null,null,null,0]
[0,3,990,null,null,null,null,null,null,0]
[0,3,990,null,null,null,null,null,null,0]
[0,3,990,null,null,null,null,null,null,0]
[0,3,990,null,null,null,null,null,null,0]
[0,3,990,null,null,null,null,null,null,0]
[0,3,990,null,null,null,null,null,null,0]
[0,3,990,null,null,null,null,null,null,0]
[0,3,990,null,null,null,null,null,null,0]
[0,3,990,null,null,null,null,null,null,0]
[0,3,990,null,null,null,null,null,null,0]
[0,3,990,null,null,null,null,null,null,0]
[0,3,990,null,null,null,null,null,null,0]
[0,3,990,null,null,null,null,null,null,0]
[0,3,990,null,null,null,null,null,null,0]
[0,3,990,null,null,null,null,null,null,0]
[0,3,990,null,null,null,null,null,null,0]
[0,3,990,null,null,null,null,null,null,0]
[0,3,990,null,null,null,null,null,null,0]
[0,3,990,null,null,null,null,null,null,0]
[0,3,990,null,null,null,null,null,null,0]
[0,3,990,null,null,null,null,null,null,0]
[0,3,990,null,null,null,null,null,null,0]
[0,3,990,null,null,null,null,null,null,0]
[0,3,990,null,null,null,null,null,null,0]
[0,3,990,null,null,null,null,null,null,0]
[0,3,990,null,null,null,null,null,null,0]
[0,3,990,null,null,null,null,null,null,0]
[0,3,990,null,null,null,null,null,null,0]
[0,3,990,null,null,null,null,null,null,0]
[0,3,990,null,null,null,null,null,null,0]
[0,3,990,null,null,null,null,null,null,0]
[0,3,990,null,null,null,null,null,null,0]
[0,3,990,null,null,null,null,null,null,0]
[0,3,990,null,null,null,null,null,null,0]
[0,3,990,null,null,null,null,null,null,0]
[0,3,990,null,null,null,null,null,null,0]
[0,3,990,null,null,null,null,null,null,0]
[0,3,990,null,null,null,null,null,null,0]
[0,3,990,null,null,null,null,null,null,0]
[0,3,990,null,null,null,null,null,null,0]
[0,3,990,null,null,null,null,null,null,0]
[0,3,990,null,null,null,null,null,null,0]
[0,3,990,null,null,null,null,null,null,0]
[0,3,990,null,null,null,null,null,null,0]
[0,3,990,null,null,null,null,null,null,0]
[0,3,990,null,null,null,null,null,null,0]
[0,3,990,null,null,null,null,null,null,0]
[0,3,990,null,null,null,null,null,null,0]
[0,3,990,null,null,null,null,null,null,0]
[0,3,990,null,null,null,null,null,null,0]
[0,3,990,null,null,null,null,null,null,0]
[0,3,990,null,null,null,null,null,null,0]
[0,3,990,null,null,null,null,null,null,0]
[0,3,990,null,null,null,null,null,null,0]
[0,3,990,null,null,null,null,null,null,0]
[0,3,990,null,null,null,null,null,null,0]
[0,3,990,null,null,null,null,null,null,0]
[0,3,990,null,null,null,null,null,null,0]
[0,3,990,null,null,null,null,null,null,0]
[0,3,990,null,null,null,null,null,null,{"$f":"VLOOKUP(E3331,AL:AO,3,0)","v":0}]
[{"$f":"IF(D3332=D3331,SUMIF(D3331:D3331,D3332,A3331),A3331+1)","v":0},3,990,null,null,null,null,null,null,0]
[0,3,990,null,null,null,null,null,null,0]
[0,3,990,null,null,null,null,null,null,0]
[0,3,990,null,null,null,null,null,null,0]
[0,3,990,null,null,null,null,null,null,0]
[0,3,990,null,null,null,null,null,null,0]
[0,3,990,null,null,null,null,null,null,0]
[0,3,990,null,null,null,null,null,null,0]
[0,3,990,null,null,null,null,null,null,0]
[0,3,990,null,null,null,null,null,null,0]
[0,3,990,null,null,null,null,null,null,0]
[0,3,990,null,null,null,null,null,null,0]
[0,3,990,null,null,null,null,null,null,0]
[0,3,990,null,null,null,null,null,null,0]
[0,3,990,null,null,null,null,null,null,0]
[0,3,990,null,null,null,null,null,null,0]
[0,3,990,null,null,null,null,null,null,0]
[0,3,990,null,null,null,null,null,null,0]
[0,3,990,null,null,null,null,null,null,0]
[0,3,990,null,null,null,null,null,null,0]
[0,3,990,null,null,null,null,null,null,0]
[0,3,990,null,null,null,null,null,null,0]
[0,3,990,null,null,null,null,null,null,0]
[0,3,990,null,null,null,null,null,null,0]
[0,3,990,null,null,null,null,null,null,0]
[0,3,990,null,null,null,null,null,null,0]
[0,3,990,null,null,null,null,null,null,0]
[0,3,990,null,null,null,null,null,null,0]
[0,3,990,null,null,null,null,null,null,0]
[0,3,990,null,null,null,null,null,null,0]
[0,3,990,null,null,null,null,null,null,0]
[0,3,990,null,null,null,null,null,null,0]
[0,3,990,null,null,null,null,null,null,0]
[0,3,990,null,null,null,null,null,null,0]
[0,3,990,null,null,null,null,null,null,0]
[0,3,990,null,null,null,null,null,null,0]
[0,3,990,null,null,null,null,null,null,0]
[0,3,990,null,null,null,null,null,null,0]
[0,3,990,null,null,null,null,null,null,0]
[0,3,990,null,null,null,null,null,null,0]
[0,3,990,null,null,null,null,null,null,0]
[0,3,990,null,null,null,null,null,null,0]
[0,3,990,null,null,null,null,null,null,0]
[0,3,990,null,null,null,null,null,null,0]
[0,3,990,null,null,null,null,null,null,0]
[0,3,990,null,null,null,null,null,null,0]
[0,3,990,null,null,null,null,null,null,0]
[0,3,990,null,null,null,null,null,null,0]
[0,3,990,null,null,null,null,null,null,0]
[0,3,990,null,null,null,null,null,null,0]
[0,3,990,null,null,null,null,null,null,0]
[0,3,990,null,null,null,null,null,null,0]
[0,3,990,null,null,null,null,null,null,0]
[0,3,990,null,null,null,null,null,null,0]
[0,3,990,null,null,null,null,null,null,0]
[0,3,990,null,null,null,null,null,null,0]
[0,3,990,null,null,null,null,null,null,0]
[0,3,990,null,null,null,null,null,null,0]
[0,3,990,null,null,null,null,null,null,0]
[0,3,990,null,null,null,null,null,null,0]
[0,3,990,null,null,null,null,null,null,0]
[0,3,990,null,null,null,null,null,null,0]
[0,3,990,null,null,null,null,null,null,0]
[0,3,990,null,null,null,null,null,null,{"$f":"VLOOKUP(E3395,AL:AO,3,0)","v":0}]
[{"$f":"IF(D3396=D3395,SUMIF(D3395:D3395,D3396,A3395),A3395+1)","v":0},3,990,null,null,null,null,null,null,0]
[0,3,990,null,null,null,null,null,null,0]
[0,3,990,null,null,null,null,null,null,0]
[0,3,990,null,null,null,null,null,null,0]
[0,3,990,null,null,null,null,null,null,0]
[0,3,990,null,null,null,null,null,null,0]
[0,3,990,null,null,null,null,null,null,0]
[0,3,990,null,null,null,null,null,null,0]
[0,3,990,null,null,null,null,null,null,0]
[0,3,990,null,null,null,null,null,null,0]
[0,3,990,null,null,null,null,null,null,0]
[0,3,990,null,null,null,null,null,null,0]
[0,3,990,null,null,null,null,null,null,0]
[0,3,990,null,null,null,null,null,null,0]
[0,3,990,null,null,null,null,null,null,0]
[0,3,990,null,null,null,null,null,null,0]
[0,3,990,null,null,null,null,null,null,0]
[0,3,990,null,null,null,null,null,null,0]
[0,3,990,null,null,null,null,null,null,0]
[0,3,990,null,null,null,null,null,null,0]
[0,3,990,null,null,null,null,null,null,0]
[0,3,990,null,null,null,null,null,null,0]
[0,3,990,null,null,null,null,null,null,0]
[0,3,990,null,null,null,null,null,null,0]
[0,3,990,null,null,null,null,null,null,0]
[0,3,990,null,null,null,null,null,null,0]
[0,3,990,null,null,null,null,null,null,0]
[0,3,990,null,null,null,null,null,null,0]
[0,3,990,null,null,null,null,null,null,0]
[0,3,990,null,null,null,null,null,null,0]
[0,3,990,null,null,null,null,null,null,0]
[0,3,990,null,null,null,null,null,null,0]
[0,3,990,null,null,null,null,null,null,0]
[0,3,990,null,null,null,null,null,null,0]
[0,3,990,null,null,null,null,null,null,0]
[0,3,990,null,null,null,null,null,null,0]
[0,3,990,null,null,null,null,null,null,0]
[0,3,990,null,null,null,null,null,null,0]
[0,3,990,null,null,null,null,null,null,0]
[0,3,990,null,null,null,null,null,null,0]
[0,3,990,null,null,null,null,null,null,0]
[0,3,990,null,null,null,null,null,null,0]
[0,3,990,null,null,null,null,null,null,0]
[0,3,990,null,null,null,null,null,null,0]
[0,3,990,null,null,null,null,null,null,0]
[0,3,990,null,null,null,null,null,null,0]
[0,3,990,null,null,null,null,null,null,0]
[0,3,990,null,null,null,null,null,null,0]
[0,3,990,null,null,null,null,null,null,0]
[0,3,990,null,null,null,null,null,null,0]
[0,3,990,null,null,null,null,null,null,0]
[0,3,990,null,null,null,null,null,null,0]
[0,3,990,null,null,null,null,null,null,0]
[0,3,990,null,null,null,null,null,null,0]
[0,3,990,null,null,null,null,null,null,0]
[0,3,990,null,null,null,null,null,null,0]
[0,3,990,null,null,null,null,null,null,0]
[0,3,990,null,null,null,null,null,null,0]
[0,3,990,null,null,null,null,null,null,0]
[0,3,990,null,null,null,null,null,null,0]
[0,3,990,null,null,null,null,null,null,0]
[0,3,990,null,null,null,null,null,null,0]
[0,3,990,null,null,null,null,null,null,0]
[0,3,990,null,null,null,null,null,null,{"$f":"VLOOKUP(E3459,AL:AO,3,0)","v":0}]
[{"$f":"IF(D3460=D3459,SUMIF(D3459:D3459,D3460,A3459),A3459+1)","v":0},3,990,null,null,null,null,null,null,0]
[0,3,990,null,null,null,null,null,null,0]
[0,3,990,null,null,null,null,null,null,0]
[0,3,990,null,null,null,null,null,null,0]
[0,3,990,null,null,null,null,null,null,0]
[0,3,990,null,null,null,null,null,null,0]
[0,3,990,null,null,null,null,null,null,0]
[0,3,990,null,null,null,null,null,null,0]
[0,3,990,null,null,null,null,null,null,0]
[0,3,990,null,null,null,null,null,null,0]
[0,3,990,null,null,null,null,null,null,0]
[0,3,990,null,null,null,null,null,null,0]
[0,3,990,null,null,null,null,null,null,0]
[0,3,990,null,null,null,null,null,null,0]
[0,3,990,null,null,null,null,null,null,0]
[0,3,990,null,null,null,null,null,null,0]
[0,3,990,null,null,null,null,null,null,0]
[0,3,990,null,null,null,null,null,null,0]
[0,3,990,null,null,null,null,null,null,0]
[0,3,990,null,null,null,null,null,null,0]
[0,3,990,null,null,null,null,null,null,0]
[0,3,990,null,null,null,null,null,null,0]
[0,3,990,null,null,null,null,null,null,0]
[0,3,990,null,null,null,null,null,null,0]
[0,3,990,null,null,null,null,null,null,0]
[0,3,990,null,null,null,null,null,null,0]
[0,3,990,null,null,null,null,null,null,0]
[0,3,990,null,null,null,null,null,null,0]
[0,3,990,null,null,null,null,null,null,0]
[0,3,990,null,null,null,null,null,null,0]
[0,3,990,null,null,null,null,null,null,0]
[0,3,990,null,null,null,null,null,null,0]
[0,3,990,null,null,null,null,null,null,0]
[0,3,990,null,null,null,null,null,null,0]
[0,3,990,null,null,null,null,null,null,0]
[0,3,990,null,null,null,null,null,null,0]
[0,3,990,null,null,null,null,null,null,0]
[0,3,990,null,null,null,null,null,null,0]
[0,3,990,null,null,null,null,null,null,0]
[0,3,990,null,null,null,null,null,null,0]
[0,3,990,null,null,null,null,null,null,0]
[0,3,990,null,null,null,null,null,null,0]
[0,3,990,null,null,null,null,null,null,0]
[0,3,990,null,null,null,null,null,null,0]
[0,3,990,null,null,null,null,null,null,0]
[0,3,990,null,null,null,null,null,null,0]
[0,3,990,null,null,null,null,null,null,0]
[0,3,990,null,null,null,null,null,null,0]
[0,3,990,null,null,null,null,null,null,0]
[0,3,990,null,null,null,null,null,null,0]
[0,3,990,null,null,null,null,null,null,0]
[0,3,990,null,null,null,null,null,null,0]
[0,3,990,null,null,null,null,null,null,0]
[0,3,990,null,null,null,null,null,null,0]
[0,3,990,null,null,null,null,null,null,0]
[0,3,990,null,null,null,null,null,null,0]
[0,3,990,null,null,null,null,null,null,0]
[0,3,990,null,null,null,null,null,null,0]
[0,3,990,null,null,null,null,null,null,0]
[0,3,990,null,null,null,null,null,null,0]
[0,3,990,null,null,null,null,null,null,0]
[0,3,990,null,null,null,null,null,null,0]
[0,3,990,null,null,null,null,null,null,0]
[0,3,990,null,null,null,null,null,null,{"$f":"VLOOKUP(E3523,AL:AO,3,0)","v":0}]
[{"$f":"IF(D3524=D3523,SUMIF(D3523:D3523,D3524,A3523),A3523+1)","v":0},3,990,null,null,null,null,null,null,0]
[0,3,990,null,null,null,null,null,null,0]
[0,3,990,null,null,null,null,null,null,0]
[0,3,990,null,null,null,null,null,null,0]
[0,3,990,null,null,null,null,null,null,0]
[0,3,990,null,null,null,null,null,null,0]
[0,3,990,null,null,null,null,null,null,0]
[0,3,990,null,null,null,null,null,null,0]
[0,3,990,null,null,null,null,null,null,0]
[0,3,990,null,null,null,null,null,null,0]
[0,3,990,null,null,null,null,null,null,0]
[0,3,990,null,null,null,null,null,null,0]
[0,3,990,null,null,null,null,null,null,0]
[0,3,990,null,null,null,null,null,null,0]
[0,3,990,null,null,null,null,null,null,0]
[0,3,990,null,null,null,null,null,null,0]
[0,3,990,null,null,null,null,null,null,0]
[0,3,990,null,null,null,null,null,null,0]
[0,3,990,null,null,null,null,null,null,0]
[0,3,990,null,null,null,null,null,null,0]
[0,3,990,null,null,null,null,null,null,0]
[0,3,990,null,null,null,null,null,null,0]
[0,3,990,null,null,null,null,null,null,0]
[0,3,990,null,null,null,null,null,null,0]
[0,3,990,null,null,null,null,null,null,0]
[0,3,990,null,null,null,null,null,null,0]
[0,3,990,null,null,null,null,null,null,0]
[0,3,990,null,null,null,null,null,null,0]
[0,3,990,null,null,null,null,null,null,0]
[0,3,990,null,null,null,null,null,null,0]
[0,3,990,null,null,null,null,null,null,0]
[0,3,990,null,null,null,null,null,null,0]
[0,3,990,null,null,null,null,null,null,0]
[0,3,990,null,null,null,null,null,null,0]
[0,3,990,null,null,null,null,null,null,0]
[0,3,990,null,null,null,null,null,null,0]
[0,3,990,null,null,null,null,null,null,0]
[0,3,990,null,null,null,null,null,null,0]
[0,3,990,null,null,null,null,null,null,0]
[0,3,990,null,null,null,null,null,null,0]
[0,3,990,null,null,null,null,null,null,0]
[0,3,990,null,null,null,null,null,null,0]
[0,3,990,null,null,null,null,null,null,0]
[0,3,990,null,null,null,null,null,null,0]
[0,3,990,null,null,null,null,null,null,0]
[0,3,990,null,null,null,null,null,null,0]
[0,3,990,null,null,null,null,null,null,0]
[0,3,990,null,null,null,null,null,null,0]
[0,3,990,null,null,null,null,null,null,0]
[0,3,990,null,null,null,null,null,null,0]
[0,3,990,null,null,null,null,null,null,0]
[0,3,990,null,null,null,null,null,null,0]
[0,3,990,null,null,null,null,null,null,0]
[0,3,990,null,null,null,null,null,null,0]
[0,3,990,null,null,null,null,null,null,0]
[0,3,990,null,null,null,null,null,null,0]
[0,3,990,null,null,null,null,null,null,0]
[0,3,990,null,null,null,null,null,null,0]
[0,3,990,null,null,null,null,null,null,0]
[0,3,990,null,null,null,null,null,null,0]
[0,3,990,null,null,null,null,null,null,0]
[0,3,990,null,null,null,null,null,null,0]
[0,3,990,null,null,null,null,null,null,0]
[0,3,990,null,null,null,null,null,null,{"$f":"VLOOKUP(E3587,AL:AO,3,0)","v":0}]
[{"$f":"IF(D3588=D3587,SUMIF(D3587:D3587,D3588,A3587),A3587+1)","v":0},3,990,null,null,null,null,null,null,0]
[0,3,990,null,null,null,null,null,null,0]
[0,3,990,null,null,null,null,null,null,0]
[0,3,990,null,null,null,null,null,null,0]
[0,3,990,null,null,null,null,null,null,0]
[0,3,990,null,null,null,null,null,null,0]
[0,3,990,null,null,null,null,null,null,0]
[0,3,990,null,null,null,null,null,null,0]
[0,3,990,null,null,null,null,null,null,0]
[0,3,990,null,null,null,null,null,null,0]
[0,3,990,null,null,null,null,null,null,0]
[0,3,990,null,null,null,null,null,null,0]
[0,3,990,null,null,null,null,null,null,0]
[0,3,990,null,null,null,null,null,null,0]
[0,3,990,null,null,null,null,null,null,0]
[0,3,990,null,null,null,null,null,null,0]
[0,3,990,null,null,null,null,null,null,0]
[0,3,990,null,null,null,null,null,null,0]
[0,3,990,null,null,null,null,null,null,0]
[0,3,990,null,null,null,null,null,null,0]
[0,3,990,null,null,null,null,null,null,0]
[0,3,990,null,null,null,null,null,null,0]
[0,3,990,null,null,null,null,null,null,0]
[0,3,990,null,null,null,null,null,null,0]
[0,3,990,null,null,null,null,null,null,0]
[0,3,990,null,null,null,null,null,null,0]
[0,3,990,null,null,null,null,null,null,0]
[0,3,990,null,null,null,null,null,null,0]
[0,3,990,null,null,null,null,null,null,0]
[0,3,990,null,null,null,null,null,null,0]
[0,3,990,null,null,null,null,null,null,0]
[0,3,990,null,null,null,null,null,null,0]
[0,3,990,null,null,null,null,null,null,0]
[0,3,990,null,null,null,null,null,null,0]
[0,3,990,null,null,null,null,null,null,0]
[0,3,990,null,null,null,null,null,null,0]
[0,3,990,null,null,null,null,null,null,0]
[0,3,990,null,null,null,null,null,null,0]
[0,3,990,null,null,null,null,null,null,0]
[0,3,990,null,null,null,null,null,null,0]
[0,3,990,null,null,null,null,null,null,0]
[0,3,990,null,null,null,null,null,null,0]
[0,3,990,null,null,null,null,null,null,0]
[0,3,990,null,null,null,null,null,null,0]
[0,3,990,null,null,null,null,null,null,0]
[0,3,990,null,null,null,null,null,null,0]
[0,3,990,null,null,null,null,null,null,0]
[0,3,990,null,null,null,null,null,null,0]
[0,3,990,null,null,null,null,null,null,0]
[0,3,990,null,null,null,null,null,null,0]
[0,3,990,null,null,null,null,null,null,0]
[0,3,990,null,null,null,null,null,null,0]
[0,3,990,null,null,null,null,null,null,0]
[0,3,990,null,null,null,null,null,null,0]
[0,3,990,null,null,null,null,null,null,0]
[0,3,990,null,null,null,null,null,null,0]
[0,3,990,null,null,null,null,null,null,0]
[0,3,990,null,null,null,null,null,null,0]
[0,3,990,null,null,null,null,null,null,0]
[0,3,990,null,null,null,null,null,null,0]
[0,3,990,null,null,null,null,null,null,0]
[0,3,990,null,null,null,null,null,null,0]
[0,3,990,null,null,null,null,null,null,0]
[0,3,990,null,null,null,null,null,null,{"$f":"VLOOKUP(E3651,AL:AO,3,0)","v":0}]
[{"$f":"IF(D3652=D3651,SUMIF(D3651:D3651,D3652,A3651),A3651+1)","v":0},3,990,null,null,null,null,null,null,0]
[0,3,990,null,null,null,null,null,null,0]
[0,3,990,null,null,null,null,null,null,0]
[0,3,990,null,null,null,null,null,null,0]
[0,3,990,null,null,null,null,null,null,0]
[0,3,990,null,null,null,null,null,null,0]
[0,3,990,null,null,null,null,null,null,0]
[0,3,990,null,null,null,null,null,null,0]
[0,3,990,null,null,null,null,null,null,0]
[0,3,990,null,null,null,null,null,null,0]
[0,3,990,null,null,null,null,null,null,0]
[0,3,990,null,null,null,null,null,null,0]
[0,3,990,null,null,null,null,null,null,0]
[0,3,990,null,null,null,null,null,null,0]
[0,3,990,null,null,null,null,null,null,0]
[0,3,990,null,null,null,null,null,null,0]
[0,3,990,null,null,null,null,null,null,0]
[0,3,990,null,null,null,null,null,null,0]
[0,3,990,null,null,null,null,null,null,0]
[0,3,990,null,null,null,null,null,null,0]
[0,3,990,null,null,null,null,null,null,0]
[0,3,990,null,null,null,null,null,null,0]
[0,3,990,null,null,null,null,null,null,0]
[0,3,990,null,null,null,null,null,null,0]
[0,3,990,null,null,null,null,null,null,0]
[0,3,990,null,null,null,null,null,null,0]
[0,3,990,null,null,null,null,null,null,0]
[0,3,990,null,null,null,null,null,null,0]
[0,3,990,null,null,null,null,null,null,0]
[0,3,990,null,null,null,null,null,null,0]
[0,3,990,null,null,null,null,null,null,0]
[0,3,990,null,null,null,null,null,null,0]
[0,3,990,null,null,null,null,null,null,0]
[0,3,990,null,null,null,null,null,null,0]
[0,3,990,null,null,null,null,null,null,0]
[0,3,990,null,null,null,null,null,null,0]
[0,3,990,null,null,null,null,null,null,0]
[0,3,990,null,null,null,null,null,null,0]
[0,3,990,null,null,null,null,null,null,0]
[0,3,990,null,null,null,null,null,null,0]
[0,3,990,null,null,null,null,null,null,0]
[0,3,990,null,null,null,null,null,null,0]
[0,3,990,null,null,null,null,null,null,0]
[0,3,990,null,null,null,null,null,null,0]
[0,3,990,null,null,null,null,null,null,0]
[0,3,990,null,null,null,null,null,null,0]
[0,3,990,null,null,null,null,null,null,0]
[0,3,990,null,null,null,null,null,null,0]
[0,3,990,null,null,null,null,null,null,0]
[0,3,990,null,null,null,null,null,null,0]
[0,3,990,null,null,null,null,null,null,0]
[0,3,990,null,null,null,null,null,null,0]
[0,3,990,null,null,null,null,null,null,0]
[0,3,990,null,null,null,null,null,null,0]
[0,3,990,null,null,null,null,null,null,0]
[0,3,990,null,null,null,null,null,null,0]
[0,3,990,null,null,null,null,null,null,0]
[0,3,990,null,null,null,null,null,null,0]
[0,3,990,null,null,null,null,null,null,0]
[0,3,990,null,null,null,null,null,null,0]
[0,3,990,null,null,null,null,null,null,0]
[0,3,990,null,null,null,null,null,null,0]
[0,3,990,null,null,null,null,null,null,0]
[0,3,990,null,null,null,null,null,null,{"$f":"VLOOKUP(E3715,AL:AO,3,0)","v":0}]
[{"$f":"IF(D3716=D3715,SUMIF(D3715:D3715,D3716,A3715),A3715+1)","v":0},3,990,null,null,null,null,null,null,0]
[0,3,990,null,null,null,null,null,null,0]
[0,3,990,null,null,null,null,null,null,0]
[0,3,990,null,null,null,null,null,null,0]
[0,3,990,null,null,null,null,null,null,0]
[0,3,990,null,null,null,null,null,null,0]
[0,3,990,null,null,null,null,null,null,0]
[0,3,990,null,null,null,null,null,null,0]
[0,3,990,null,null,null,null,null,null,0]
[0,3,990,null,null,null,null,null,null,0]
[0,3,990,null,null,null,null,null,null,0]
[0,3,990,null,null,null,null,null,null,0]
[0,3,990,null,null,null,null,null,null,0]
[0,3,990,null,null,null,null,null,null,0]
[0,3,990,null,null,null,null,null,null,0]
[0,3,990,null,null,null,null,null,null,0]
[0,3,990,null,null,null,null,null,null,0]
[0,3,990,null,null,null,null,null,null,0]
[0,3,990,null,null,null,null,null,null,0]
[0,3,990,null,null,null,null,null,null,0]
[0,3,990,null,null,null,null,null,null,0]
[0,3,990,null,null,null,null,null,null,0]
[0,3,990,null,null,null,null,null,null,0]
[0,3,990,null,null,null,null,null,null,0]
[0,3,990,null,null,null,null,null,null,0]
[0,3,990,null,null,null,null,null,null,0]
[0,3,990,null,null,null,null,null,null,0]
[0,3,990,null,null,null,null,null,null,0]
[0,3,990,null,null,null,null,null,null,0]
[0,3,990,null,null,null,null,null,null,0]
[0,3,990,null,null,null,null,null,null,0]
[0,3,990,null,null,null,null,null,null,0]
[0,3,990,null,null,null,null,null,null,0]
[0,3,990,null,null,null,null,null,null,0]
[0,3,990,null,null,null,null,null,null,0]
[0,3,990,null,null,null,null,null,null,0]
[0,3,990,null,null,null,null,null,null,0]
[0,3,990,null,null,null,null,null,null,0]
[0,3,990,null,null,null,null,null,null,0]
[0,3,990,null,null,null,null,null,null,0]
[0,3,990,null,null,null,null,null,null,0]
[0,3,990,null,null,null,null,null,null,0]
[0,3,990,null,null,null,null,null,null,0]
[0,3,990,null,null,null,null,null,null,0]
[0,3,990,null,null,null,null,null,null,0]
[0,3,990,null,null,null,null,null,null,0]
[0,3,990,null,null,null,null,null,null,0]
[0,3,990,null,null,null,null,null,null,0]
[0,3,990,null,null,null,null,null,null,0]
[0,3,990,null,null,null,null,null,null,0]
[0,3,990,null,null,null,null,null,null,0]
[0,3,990,null,null,null,null,null,null,0]
[0,3,990,null,null,null,null,null,null,0]
[0,3,990,null,null,null,null,null,null,0]
[0,3,990,null,null,null,null,null,null,0]
[0,3,990,null,null,null,null,null,null,0]
[0,3,990,null,null,null,null,null,null,0]
[0,3,990,null,null,null,null,null,null,0]
[0,3,990,null,null,null,null,null,null,0]
[0,3,990,null,null,null,null,null,null,0]
[0,3,990,null,null,null,null,null,null,0]
[0,3,990,null,null,null,null,null,null,0]
[0,3,990,null,null,null,null,null,null,0]
[0,3,990,null,null,null,null,null,null,{"$f":"VLOOKUP(E3779,AL:AO,3,0)","v":0}]
[{"$f":"IF(D3780=D3779,SUMIF(D3779:D3779,D3780,A3779),A3779+1)","v":0},3,990,null,null,null,null,null,null,0]
[0,3,990,null,null,null,null,null,null,0]
[0,3,990,null,null,null,null,null,null,0]
[0,3,990,null,null,null,null,null,null,0]
[0,3,990,null,null,null,null,null,null,0]
[0,3,990,null,null,null,null,null,null,0]
[0,3,990,null,null,null,null,null,null,0]
[0,3,990,null,null,null,null,null,null,0]
[0,3,990,null,null,null,null,null,null,0]
[0,3,990,null,null,null,null,null,null,0]
[0,3,990,null,null,null,null,null,null,0]
[0,3,990,null,null,null,null,null,null,0]
[0,3,990,null,null,null,null,null,null,0]
[0,3,990,null,null,null,null,null,null,0]
[0,3,990,null,null,null,null,null,null,0]
[0,3,990,null,null,null,null,null,null,0]
[0,3,990,null,null,null,null,null,null,0]
[0,3,990,null,null,null,null,null,null,0]
[0,3,990,null,null,null,null,null,null,0]
[0,3,990,null,null,null,null,null,null,0]
[0,3,990,null,null,null,null,null,null,0]
[0,3,990,null,null,null,null,null,null,0]
[0,3,990,null,null,null,null,null,null,0]
[0,3,990,null,null,null,null,null,null,0]
[0,3,990,null,null,null,null,null,null,0]
[0,3,990,null,null,null,null,null,null,0]
[0,3,990,null,null,null,null,null,null,0]
[0,3,990,null,null,null,null,null,null,0]
[0,3,990,null,null,null,null,null,null,0]
[0,3,990,null,null,null,null,null,null,0]
[0,3,990,null,null,null,null,null,null,0]
[0,3,990,null,null,null,null,null,null,0]
[0,3,990,null,null,null,null,null,null,0]
[0,3,990,null,null,null,null,null,null,0]
[0,3,990,null,null,null,null,null,null,0]
[0,3,990,null,null,null,null,null,null,0]
[0,3,990,null,null,null,null,null,null,0]
[0,3,990,null,null,null,null,null,null,0]
[0,3,990,null,null,null,null,null,null,0]
[0,3,990,null,null,null,null,null,null,0]
[0,3,990,null,null,null,null,null,null,0]
[0,3,990,null,null,null,null,null,null,0]
[0,3,990,null,null,null,null,null,null,0]
[0,3,990,null,null,null,null,null,null,0]
[0,3,990,null,null,null,null,null,null,0]
[0,3,990,null,null,null,null,null,null,0]
[0,3,990,null,null,null,null,null,null,0]
[0,3,990,null,null,null,null,null,null,0]
[0,3,990,null,null,null,null,null,null,0]
[0,3,990,null,null,null,null,null,null,0]
[0,3,990,null,null,null,null,null,null,0]
[0,3,990,null,null,null,null,null,null,0]
[0,3,990,null,null,null,null,null,null,0]
[0,3,990,null,null,null,null,null,null,0]
[0,3,990,null,null,null,null,null,null,0]
[0,3,990,null,null,null,null,null,null,0]
[0,3,990,null,null,null,null,null,null,0]
[0,3,990,null,null,null,null,null,null,0]
[0,3,990,null,null,null,null,null,null,0]
[0,3,990,null,null,null,null,null,null,0]
[0,3,990,null,null,null,null,null,null,0]
[0,3,990,null,null,null,null,null,null,0]
[0,3,990,null,null,null,null,null,null,0]
[0,3,990,null,null,null,null,null,null,{"$f":"VLOOKUP(E3843,AL:AO,3,0)","v":0}]
[{"$f":"IF(D3844=D3843,SUMIF(D3843:D3843,D3844,A3843),A3843+1)","v":0},3,990,null,null,null,null,null,null,0]
[0,3,990,null,null,null,null,null,null,0]
[0,3,990,null,null,null,null,null,null,0]
[0,3,990,null,null,null,null,null,null,0]
[0,3,990,null,null,null,null,null,null,0]
[0,3,990,null,null,null,null,null,null,0]
[0,3,990,null,null,null,null,null,null,0]
[0,3,990,null,null,null,null,null,null,0]
[0,3,990,null,null,null,null,null,null,0]
[0,3,990,null,null,null,null,null,null,0]
[0,3,990,null,null,null,null,null,null,0]
[0,3,990,null,null,null,null,null,null,0]
[0,3,990,null,null,null,null,null,null,0]
[0,3,990,null,null,null,null,null,null,0]
[0,3,990,null,null,null,null,null,null,0]
[0,3,990,null,null,null,null,null,null,0]
[0,3,990,null,null,null,null,null,null,0]
[0,3,990,null,null,null,null,null,null,0]
[0,3,990,null,null,null,null,null,null,0]
[0,3,990,null,null,null,null,null,null,0]
[0,3,990,null,null,null,null,null,null,0]
[0,3,990,null,null,null,null,null,null,0]
[0,3,990,null,null,null,null,null,null,0]
[0,3,990,null,null,null,null,null,null,0]
[0,3,990,null,null,null,null,null,null,0]
[0,3,990,null,null,null,null,null,null,0]
[0,3,990,null,null,null,null,null,null,0]
[0,3,990,null,null,null,null,null,null,0]
[0,3,990,null,null,null,null,null,null,0]
[0,3,990,null,null,null,null,null,null,0]
[0,3,990,null,null,null,null,null,null,0]
[0,3,990,null,null,null,null,null,null,0]
[0,3,990,null,null,null,null,null,null,0]
[0,3,990,null,null,null,null,null,null,0]
[0,3,990,null,null,null,null,null,null,0]
[0,3,990,null,null,null,null,null,null,0]
[0,3,990,null,null,null,null,null,null,0]
[0,3,990,null,null,null,null,null,null,0]
[0,3,990,null,null,null,null,null,null,0]
[0,3,990,null,null,null,null,null,null,0]
[0,3,990,null,null,null,null,null,null,0]
[0,3,990,null,null,null,null,null,null,0]
[0,3,990,null,null,null,null,null,null,0]
[0,3,990,null,null,null,null,null,null,0]
[0,3,990,null,null,null,null,null,null,0]
[0,3,990,null,null,null,null,null,null,0]
[0,3,990,null,null,null,null,null,null,0]
[0,3,990,null,null,null,null,null,null,0]
[0,3,990,null,null,null,null,null,null,0]
[0,3,990,null,null,null,null,null,null,0]
[0,3,990,null,null,null,null,null,null,0]
[0,3,990,null,null,null,null,null,null,0]
[0,3,990,null,null,null,null,null,null,0]
[0,3,990,null,null,null,null,null,null,0]
[0,3,990,null,null,null,null,null,null,0]
[0,3,990,null,null,null,null,null,null,0]
[0,3,990,null,null,null,null,null,null,0]
[0,3,990,null,null,null,null,null,null,0]
[0,3,990,null,null,null,null,null,null,0]
[0,3,990,null,null,null,null,null,null,0]
[0,3,990,null,null,null,null,null,null,0]
[0,3,990,null,null,null,null,null,null,0]
[0,3,990,null,null,null,null,null,null,0]
[0,3,990,null,null,null,null,null,null,{"$f":"VLOOKUP(E3907,AL:AO,3,0)","v":0}]
[{"$f":"IF(D3908=D3907,SUMIF(D3907:D3907,D3908,A3907),A3907+1)","v":0},3,990,null,null,null,null,null,null,0]
[0,3,990,null,null,null,null,null,null,0]
[0,3,990,null,null,null,null,null,null,0]
[0,3,990,null,null,null,null,null,null,0]
[0,3,990,null,null,null,null,null,null,0]
[0,3,990,null,null,null,null,null,null,0]
[0,3,990,null,null,null,null,null,null,0]
[0,3,990,null,null,null,null,null,null,0]
[0,3,990,null,null,null,null,null,null,0]
[0,3,990,null,null,null,null,null,null,0]
[0,3,990,null,null,null,null,null,null,0]
[0,3,990,null,null,null,null,null,null,0]
[0,3,990,null,null,null,null,null,null,0]
[0,3,990,null,null,null,null,null,null,0]
[0,3,990,null,null,null,null,null,null,0]
[0,3,990,null,null,null,null,null,null,0]
[0,3,990,null,null,null,null,null,null,0]
[0,3,990,null,null,null,null,null,null,0]
[0,3,990,null,null,null,null,null,null,0]
[0,3,990,null,null,null,null,null,null,0]
[0,3,990,null,null,null,null,null,null,0]
[0,3,990,null,null,null,null,null,null,0]
[0,3,990,null,null,null,null,null,null,0]
[0,3,990,null,null,null,null,null,null,0]
[0,3,990,null,null,null,null,null,null,0]
[0,3,990,null,null,null,null,null,null,0]
[0,3,990,null,null,null,null,null,null,0]
[0,3,990,null,null,null,null,null,null,0]
[0,3,990,null,null,null,null,null,null,0]
[0,3,990,null,null,null,null,null,null,0]
[0,3,990,null,null,null,null,null,null,0]
[0,3,990,null,null,null,null,null,null,0]
[0,3,990,null,null,null,null,null,null,0]
[0,3,990,null,null,null,null,null,null,0]
[0,3,990,null,null,null,null,null,null,0]
[0,3,990,null,null,null,null,null,null,0]
[0,3,990,null,null,null,null,null,null,0]
[0,3,990,null,null,null,null,null,null,0]
[0,3,990,null,null,null,null,null,null,0]
[0,3,990,null,null,null,null,null,null,0]
[0,3,990,null,null,null,null,null,null,0]
[0,3,990,null,null,null,null,null,null,0]
[0,3,990,null,null,null,null,null,null,0]
[0,3,990,null,null,null,null,null,null,0]
[0,3,990,null,null,null,null,null,null,0]
[0,3,990,null,null,null,null,null,null,0]
[0,3,990,null,null,null,null,null,null,0]
[0,3,990,null,null,null,null,null,null,0]
[0,3,990,null,null,null,null,null,null,0]
[0,3,990,null,null,null,null,null,null,0]
[0,3,990,null,null,null,null,null,null,0]
[0,3,990,null,null,null,null,null,null,0]
[0,3,990,null,null,null,null,null,null,0]
[0,3,990,null,null,null,null,null,null,0]
[0,3,990,null,null,null,null,null,null,0]
[0,3,990,null,null,null,null,null,null,0]
[0,3,990,null,null,null,null,null,null,0]
[0,3,990,null,null,null,null,null,null,0]
[0,3,990,null,null,null,null,null,null,0]
[0,3,990,null,null,null,null,null,null,0]
[0,3,990,null,null,null,null,null,null,0]
[0,3,990,null,null,null,null,null,null,0]
[0,3,990,null,null,null,null,null,null,0]
[0,3,990,null,null,null,null,null,null,{"$f":"VLOOKUP(E3971,AL:AO,3,0)","v":0}]
[{"$f":"IF(D3972=D3971,SUMIF(D3971:D3971,D3972,A3971),A3971+1)","v":0},3,990,null,null,null,null,null,null,0]
[0,3,990,null,null,null,null,null,null,0]
[0,3,990,null,null,null,null,null,null,0]
[0,3,990,null,null,null,null,null,null,0]
[0,3,990,null,null,null,null,null,null,0]
[0,3,990,null,null,null,null,null,null,0]
[0,3,990,null,null,null,null,null,null,0]
[0,3,990,null,null,null,null,null,null,0]
[0,3,990,null,null,null,null,null,null,0]
[0,3,990,null,null,null,null,null,null,0]
[0,3,990,null,null,null,null,null,null,0]
[0,3,990,null,null,null,null,null,null,0]
[0,3,990,null,null,null,null,null,null,0]
[0,3,990,null,null,null,null,null,null,0]
[0,3,990,null,null,null,null,null,null,0]
[0,3,990,null,null,null,null,null,null,0]
[0,3,990,null,null,null,null,null,null,0]
[0,3,990,null,null,null,null,null,null,0]
[0,3,990,null,null,null,null,null,null,0]
[0,3,990,null,null,null,null,null,null,0]
[0,3,990,null,null,null,null,null,null,0]
[0,3,990,null,null,null,null,null,null,0]
[0,3,990,null,null,null,null,null,null,0]
[0,3,990,null,null,null,null,null,null,0]
[0,3,990,null,null,null,null,null,null,0]
[0,3,990,null,null,null,null,null,null,0]
[0,3,990,null,null,null,null,null,null,0]
[0,3,990,null,null,null,null,null,null,0]
[0,3,990,null,null,null,null,null,null,0]
[0,3,990,null,null,null,null,null,null,0]
[0,3,990,null,null,null,null,null,null,0]
[0,3,990,null,null,null,null,null,null,0]
[0,3,990,null,null,null,null,null,null,0]
[0,3,990,null,null,null,null,null,null,0]
[0,3,990,null,null,null,null,null,null,0]
[0,3,990,null,null,null,null,null,null,0]
[0,3,990,null,null,null,null,null,null,0]
[0,3,990,null,null,null,null,null,null,0]
[0,3,990,null,null,null,null,null,null,0]
[0,3,990,null,null,null,null,null,null,0]
[0,3,990,null,null,null,null,null,null,0]
[0,3,990,null,null,null,null,null,null,0]
[0,3,990,null,null,null,null,null,null,0]
[0,3,990,null,null,null,null,null,null,0]
[0,3,990,null,null,null,null,null,null,0]
[0,3,990,null,null,null,null,null,null,0]
[0,3,990,null,null,null,null,null,null,0]
[0,3,990,null,null,null,null,null,null,0]
[0,3,990,null,null,null,null,null,null,0]
[0,3,990,null,null,null,null,null,null,0]
[0,3,990,null,null,null,null,null,null,0]
[0,3,990,null,null,null,null,null,null,0]
[0,3,990,null,null,null,null,null,null,0]
[0,3,990,null,null,null,null,null,null,0]
[0,3,990,null,null,null,null,null,null,0]
[0,3,990,null,null,null,null,null,null,0]
[0,3,990,null,null,null,null,null,null,0]
[0,3,990,null,null,null,null,null,null,0]
[0,3,990,null,null,null,null,null,null,0]
[0,3,990,null,null,null,null,null,null,0]
[0,3,990,null,null,null,null,null,null,0]
[0,3,990,null,null,null,null,null,null,0]
[0,3,990,null,null,null,null,null,null,0]
[0,3,990,null,null,null,null,null,null,{"$f":"VLOOKUP(E4035,AL:AO,3,0)","v":0}]
[{"$f":"IF(D4036=D4035,SUMIF(D4035:D4035,D4036,A4035),A4035+1)","v":0},3,990,null,null,null,null,null,null,0]
[0,3,990,null,null,null,null,null,null,0]
[0,3,990,null,null,null,null,null,null,0]
[0,3,990,null,null,null,null,null,null,0]
[0,3,990,null,null,null,null,null,null,0]
[0,3,990,null,null,null,null,null,null,0]
[0,3,990,null,null,null,null,null,null,0]
[0,3,990,null,null,null,null,null,null,0]
[0,3,990,null,null,null,null,null,null,0]
[0,3,990,null,null,null,null,null,null,0]
[0,3,990,null,null,null,null,null,null,0]
[0,3,990,null,null,null,null,null,null,0]
[0,3,990,null,null,null,null,null,null,0]
[0,3,990,null,null,null,null,null,null,0]
[0,3,990,null,null,null,null,null,null,0]
[0,3,990,null,null,null,null,null,null,0]
[0,3,990,null,null,null,null,null,null,0]
[0,3,990,null,null,null,null,null,null,0]
[0,3,990,null,null,null,null,null,null,0]
[0,3,990,null,null,null,null,null,null,0]
[0,3,990,null,null,null,null,null,null,0]
[0,3,990,null,null,null,null,null,null,0]
[0,3,990,null,null,null,null,null,null,0]
[0,3,990,null,null,null,null,null,null,0]
[0,3,990,null,null,null,null,null,null,0]
[0,3,990,null,null,null,null,null,null,0]
[0,3,990,null,null,null,null,null,null,0]
[0,3,990,null,null,null,null,null,null,0]
[0,3,990,null,null,null,null,null,null,0]
[0,3,990,null,null,null,null,null,null,0]
[0,3,990,null,null,null,null,null,null,0]
[0,3,990,null,null,null,null,null,null,0]
[0,3,990,null,null,null,null,null,null,0]
[0,3,990,null,null,null,null,null,null,0]
[0,3,990,null,null,null,null,null,null,0]
[0,3,990,null,null,null,null,null,null,0]
[0,3,990,null,null,null,null,null,null,0]
[0,3,990,null,null,null,null,null,null,0]
[0,3,990,null,null,null,null,null,null,0]
[0,3,990,null,null,null,null,null,null,0]
[0,3,990,null,null,null,null,null,null,0]
[0,3,990,null,null,null,null,null,null,0]
[0,3,990,null,null,null,null,null,null,0]
[0,3,990,null,null,null,null,null,null,0]
[0,3,990,null,null,null,null,null,null,0]
[0,3,990,null,null,null,null,null,null,0]
[0,3,990,null,null,null,null,null,null,0]
[0,3,990,null,null,null,null,null,null,0]
[0,3,990,null,null,null,null,null,null,0]
[0,3,990,null,null,null,null,null,null,0]
[0,3,990,null,null,null,null,null,null,0]
[0,3,990,null,null,null,null,null,null,0]
[0,3,990,null,null,null,null,null,null,0]
[0,3,990,null,null,null,null,null,null,0]
[0,3,990,null,null,null,null,null,null,0]
[0,3,990,null,null,null,null,null,null,0]
[0,3,990,null,null,null,null,null,null,0]
[0,3,990,null,null,null,null,null,null,0]
[0,3,990,null,null,null,null,null,null,0]
[0,3,990,null,null,null,null,null,null,0]
[0,3,990,null,null,null,null,null,null,0]
[0,3,990,null,null,null,null,null,null,0]
[0,3,990,null,null,null,null,null,null,0]
[0,3,990,null,null,null,null,null,null,{"$f":"VLOOKUP(E4099,AL:AO,3,0)","v":0}]
[{"$f":"IF(D4100=D4099,SUMIF(D4099:D4099,D4100,A4099),A4099+1)","v":0},3,990,null,null,null,null,null,null,0]
[0,3,990,null,null,null,null,null,null,0]
[0,3,990,null,null,null,null,null,null,0]
[0,3,990,null,null,null,null,null,null,0]
[0,3,990,null,null,null,null,null,null,0]
[0,3,990,null,null,null,null,null,null,0]
[0,3,990,null,null,null,null,null,null,0]
[0,3,990,null,null,null,null,null,null,0]
[0,3,990,null,null,null,null,null,null,0]
[0,3,990,null,null,null,null,null,null,0]
[0,3,990,null,null,null,null,null,null,0]
[0,3,990,null,null,null,null,null,null,0]
[0,3,990,null,null,null,null,null,null,0]
[0,3,990,null,null,null,null,null,null,0]
[0,3,990,null,null,null,null,null,null,0]
[0,3,990,null,null,null,null,null,null,0]
[0,3,990,null,null,null,null,null,null,0]
[0,3,990,null,null,null,null,null,null,0]
[0,3,990,null,null,null,null,null,null,0]
[0,3,990,null,null,null,null,null,null,0]
[0,3,990,null,null,null,null,null,null,0]
[0,3,990,null,null,null,null,null,null,0]
[0,3,990,null,null,null,null,null,null,0]
[0,3,990,null,null,null,null,null,null,0]
[0,3,990,null,null,null,null,null,null,0]
[0,3,990,null,null,null,null,null,null,0]
[0,3,990,null,null,null,null,null,null,0]
[0,3,990,null,null,null,null,null,null,0]
[0,3,990,null,null,null,null,null,null,0]
[0,3,990,null,null,null,null,null,null,0]
[0,3,990,null,null,null,null,null,null,0]
[0,3,990,null,null,null,null,null,null,0]
[0,3,990,null,null,null,null,null,null,0]
[0,3,990,null,null,null,null,null,null,0]
[0,3,990,null,null,null,null,null,null,0]
[0,3,990,null,null,null,null,null,null,0]
[0,3,990,null,null,null,null,null,null,0]
[0,3,990,null,null,null,null,null,null,0]
[0,3,990,null,null,null,null,null,null,0]
[0,3,990,null,null,null,null,null,null,0]
[0,3,990,null,null,null,null,null,null,0]
[0,3,990,null,null,null,null,null,null,0]
[0,3,990,null,null,null,null,null,null,0]
[0,3,990,null,null,null,null,null,null,0]
[0,3,990,null,null,null,null,null,null,0]
[0,3,990,null,null,null,null,null,null,0]
[0,3,990,null,null,null,null,null,null,0]
[0,3,990,null,null,null,null,null,null,0]
[0,3,990,null,null,null,null,null,null,0]
[0,3,990,null,null,null,null,null,null,0]
[0,3,990,null,null,null,null,null,null,0]
[0,3,990,null,null,null,null,null,null,0]
[0,3,990,null,null,null,null,null,null,0]
[0,3,990,null,null,null,null,null,null,0]
[0,3,990,null,null,null,null,null,null,0]
[0,3,990,null,null,null,null,null,null,0]
[0,3,990,null,null,null,null,null,null,0]
[0,3,990,null,null,null,null,null,null,0]
[0,3,990,null,null,null,null,null,null,0]
[0,3,990,null,null,null,null,null,null,0]
[0,3,990,null,null,null,null,null,null,0]
[0,3,990,null,null,null,null,null,null,0]
[0,3,990,null,null,null,null,null,null,0]
[0,3,990,null,null,null,null,null,null,{"$f":"VLOOKUP(E4163,AL:AO,3,0)","v":0}]
[{"$f":"IF(D4164=D4163,SUMIF(D4163:D4163,D4164,A4163),A4163+1)","v":0},3,990,null,null,null,null,null,null,0]
[0,3,990,null,null,null,null,null,null,0]
[0,3,990,null,null,null,null,null,null,0]
[0,3,990,null,null,null,null,null,null,0]
[0,3,990,null,null,null,null,null,null,0]
[0,3,990,null,null,null,null,null,null,0]
[0,3,990,null,null,null,null,null,null,0]
[0,3,990,null,null,null,null,null,null,0]
[0,3,990,null,null,null,null,null,null,0]
[0,3,990,null,null,null,null,null,null,0]
[0,3,990,null,null,null,null,null,null,0]
[0,3,990,null,null,null,null,null,null,0]
[0,3,990,null,null,null,null,null,null,0]
[0,3,990,null,null,null,null,null,null,0]
[0,3,990,null,null,null,null,null,null,0]
[0,3,990,null,null,null,null,null,null,0]
[0,3,990,null,null,null,null,null,null,0]
[0,3,990,null,null,null,null,null,null,0]
[0,3,990,null,null,null,null,null,null,0]
[0,3,990,null,null,null,null,null,null,0]
[0,3,990,null,null,null,null,null,null,0]
[0,3,990,null,null,null,null,null,null,0]
[0,3,990,null,null,null,null,null,null,0]
[0,3,990,null,null,null,null,null,null,0]
[0,3,990,null,null,null,null,null,null,0]
[0,3,990,null,null,null,null,null,null,0]
[0,3,990,null,null,null,null,null,null,0]
[0,3,990,null,null,null,null,null,null,0]
[0,3,990,null,null,null,null,null,null,0]
[0,3,990,null,null,null,null,null,null,0]
[0,3,990,null,null,null,null,null,null,0]
[0,3,990,null,null,null,null,null,null,0]
[0,3,990,null,null,null,null,null,null,0]
[0,3,990,null,null,null,null,null,null,0]
[0,3,990,null,null,null,null,null,null,0]
[0,3,990,null,null,null,null,null,null,0]
[0,3,990,null,null,null,null,null,null,0]
[0,3,990,null,null,null,null,null,null,0]
[0,3,990,null,null,null,null,null,null,0]
[0,3,990,null,null,null,null,null,null,0]
[0,3,990,null,null,null,null,null,null,0]
[0,3,990,null,null,null,null,null,null,0]
[0,3,990,null,null,null,null,null,null,0]
[0,3,990,null,null,null,null,null,null,0]
[0,3,990,null,null,null,null,null,null,0]
[0,3,990,null,null,null,null,null,null,0]
[0,3,990,null,null,null,null,null,null,0]
[0,3,990,null,null,null,null,null,null,0]
[0,3,990,null,null,null,null,null,null,0]
[0,3,990,null,null,null,null,null,null,0]
[0,3,990,null,null,null,null,null,null,0]
[0,3,990,null,null,null,null,null,null,0]
[0,3,990,null,null,null,null,null,null,0]
[0,3,990,null,null,null,null,null,null,0]
[0,3,990,null,null,null,null,null,null,0]
[0,3,990,null,null,null,null,null,null,0]
[0,3,990,null,null,null,null,null,null,0]
[0,3,990,null,null,null,null,null,null,0]
[0,3,990,null,null,null,null,null,null,0]
[0,3,990,null,null,null,null,null,null,0]
[0,3,990,null,null,null,null,null,null,0]
[0,3,990,null,null,null,null,null,null,0]
[0,3,990,null,null,null,null,null,null,0]
[0,3,990,null,null,null,null,null,null,{"$f":"VLOOKUP(E4227,AL:AO,3,0)","v":0}]
[{"$f":"IF(D4228=D4227,SUMIF(D4227:D4227,D4228,A4227),A4227+1)","v":0},3,990,null,null,null,null,null,null,0]
[0,3,990,null,null,null,null,null,null,0]
[0,3,990,null,null,null,null,null,null,0]
[0,3,990,null,null,null,null,null,null,0]
[0,3,990,null,null,null,null,null,null,0]
[0,3,990,null,null,null,null,null,null,0]
[0,3,990,null,null,null,null,null,null,0]
[0,3,990,null,null,null,null,null,null,0]
[0,3,990,null,null,null,null,null,null,0]
[0,3,990,null,null,null,null,null,null,0]
[0,3,990,null,null,null,null,null,null,0]
[0,3,990,null,null,null,null,null,null,0]
[0,3,990,null,null,null,null,null,null,0]
[0,3,990,null,null,null,null,null,null,0]
[0,3,990,null,null,null,null,null,null,0]
[0,3,990,null,null,null,null,null,null,0]
[0,3,990,null,null,null,null,null,null,0]
[0,3,990,null,null,null,null,null,null,0]
[0,3,990,null,null,null,null,null,null,0]
[0,3,990,null,null,null,null,null,null,0]
[0,3,990,null,null,null,null,null,null,0]
[0,3,990,null,null,null,null,null,null,0]
[0,3,990,null,null,null,null,null,null,0]
[0,3,990,null,null,null,null,null,null,0]
[0,3,990,null,null,null,null,null,null,0]
[0,3,990,null,null,null,null,null,null,0]
[0,3,990,null,null,null,null,null,null,0]
[0,3,990,null,null,null,null,null,null,0]
[0,3,990,null,null,null,null,null,null,0]
[0,3,990,null,null,null,null,null,null,0]
[0,3,990,null,null,null,null,null,null,0]
[0,3,990,null,null,null,null,null,null,0]
[0,3,990,null,null,null,null,null,null,0]
[0,3,990,null,null,null,null,null,null,0]
[0,3,990,null,null,null,null,null,null,0]
[0,3,990,null,null,null,null,null,null,0]
[0,3,990,null,null,null,null,null,null,0]
[0,3,990,null,null,null,null,null,null,0]
[0,3,990,null,null,null,null,null,null,0]
[0,3,990,null,null,null,null,null,null,0]
[0,3,990,null,null,null,null,null,null,0]
[0,3,990,null,null,null,null,null,null,0]
[0,3,990,null,null,null,null,null,null,0]
[0,3,990,null,null,null,null,null,null,0]
[0,3,990,null,null,null,null,null,null,0]
[0,3,990,null,null,null,null,null,null,0]
[0,3,990,null,null,null,null,null,null,0]
[0,3,990,null,null,null,null,null,null,0]
[0,3,990,null,null,null,null,null,null,0]
[0,3,990,null,null,null,null,null,null,0]
[0,3,990,null,null,null,null,null,null,0]
[0,3,990,null,null,null,null,null,null,0]
[0,3,990,null,null,null,null,null,null,0]
[0,3,990,null,null,null,null,null,null,0]
[0,3,990,null,null,null,null,null,null,0]
[0,3,990,null,null,null,null,null,null,0]
[0,3,990,null,null,null,null,null,null,0]
[0,3,990,null,null,null,null,null,null,0]
[0,3,990,null,null,null,null,null,null,0]
[0,3,990,null,null,null,null,null,null,0]
[0,3,990,null,null,null,null,null,null,0]
[0,3,990,null,null,null,null,null,null,0]
[0,3,990,null,null,null,null,null,null,0]
[0,3,990,null,null,null,null,null,null,{"$f":"VLOOKUP(E4291,AL:AO,3,0)","v":0}]
[{"$f":"IF(D4292=D4291,SUMIF(D4291:D4291,D4292,A4291),A4291+1)","v":0},3,990,null,null,null,null,null,null,0]
[0,3,990,null,null,null,null,null,null,0]
[0,3,990,null,null,null,null,null,null,0]
[0,3,990,null,null,null,null,null,null,0]
[0,3,990,null,null,null,null,null,null,0]
[0,3,990,null,null,null,null,null,null,0]
[0,3,990,null,null,null,null,null,null,0]
[0,3,990,null,null,null,null,null,null,0]
[0,3,990,null,null,null,null,null,null,0]
[0,3,990,null,null,null,null,null,null,0]
[0,3,990,null,null,null,null,null,null,0]
[0,3,990,null,null,null,null,null,null,0]
[0,3,990,null,null,null,null,null,null,0]
[0,3,990,null,null,null,null,null,null,0]
[0,3,990,null,null,null,null,null,null,0]
[0,3,990,null,null,null,null,null,null,0]
[0,3,990,null,null,null,null,null,null,0]
[0,3,990,null,null,null,null,null,null,0]
[0,3,990,null,null,null,null,null,null,0]
[0,3,990,null,null,null,null,null,null,0]
[0,3,990,null,null,null,null,null,null,0]
[0,3,990,null,null,null,null,null,null,0]
[0,3,990,null,null,null,null,null,null,0]
[0,3,990,null,null,null,null,null,null,0]
[0,3,990,null,null,null,null,null,null,0]
[0,3,990,null,null,null,null,null,null,0]
[0,3,990,null,null,null,null,null,null,0]
[0,3,990,null,null,null,null,null,null,0]
[0,3,990,null,null,null,null,null,null,0]
[0,3,990,null,null,null,null,null,null,0]
[0,3,990,null,null,null,null,null,null,0]
[0,3,990,null,null,null,null,null,null,0]
[0,3,990,null,null,null,null,null,null,0]
[0,3,990,null,null,null,null,null,null,0]
[0,3,990,null,null,null,null,null,null,0]
[0,3,990,null,null,null,null,null,null,0]
[0,3,990,null,null,null,null,null,null,0]
[0,3,990,null,null,null,null,null,null,0]
[0,3,990,null,null,null,null,null,null,0]
[0,3,990,null,null,null,null,null,null,0]
[0,3,990,null,null,null,null,null,null,0]
[0,3,990,null,null,null,null,null,null,0]
[0,3,990,null,null,null,null,null,null,0]
[0,3,990,null,null,null,null,null,null,0]
[0,3,990,null,null,null,null,null,null,0]
[0,3,990,null,null,null,null,null,null,0]
[0,3,990,null,null,null,null,null,null,0]
[0,3,990,null,null,null,null,null,null,0]
[0,3,990,null,null,null,null,null,null,0]
[0,3,990,null,null,null,null,null,null,0]
[0,3,990,null,null,null,null,null,null,0]
[0,3,990,null,null,null,null,null,null,0]
[0,3,990,null,null,null,null,null,null,0]
[0,3,990,null,null,null,null,null,null,0]
[0,3,990,null,null,null,null,null,null,0]
[0,3,990,null,null,null,null,null,null,0]
[0,3,990,null,null,null,null,null,null,0]
[0,3,990,null,null,null,null,null,null,0]
[0,3,990,null,null,null,null,null,null,0]
[0,3,990,null,null,null,null,null,null,0]
[0,3,990,null,null,null,null,null,null,0]
[0,3,990,null,null,null,null,null,null,0]
[0,3,990,null,null,null,null,null,null,0]
[0,3,990,null,null,null,null,null,null,{"$f":"VLOOKUP(E4355,AL:AO,3,0)","v":0}]
[{"$f":"IF(D4356=D4355,SUMIF(D4355:D4355,D4356,A4355),A4355+1)","v":0},3,990,null,null,null,null,null,null,0]
[0,3,990,null,null,null,null,null,null,0]
[0,3,990,null,null,null,null,null,null,0]
[0,3,990,null,null,null,null,null,null,0]
[0,3,990,null,null,null,null,null,null,0]
[0,3,990,null,null,null,null,null,null,0]
[0,3,990,null,null,null,null,null,null,0]
[0,3,990,null,null,null,null,null,null,0]
[0,3,990,null,null,null,null,null,null,0]
[0,3,990,null,null,null,null,null,null,0]
[0,3,990,null,null,null,null,null,null,0]
[0,3,990,null,null,null,null,null,null,0]
[0,3,990,null,null,null,null,null,null,0]
[0,3,990,null,null,null,null,null,null,0]
[0,3,990,null,null,null,null,null,null,0]
[0,3,990,null,null,null,null,null,null,0]
[0,3,990,null,null,null,null,null,null,0]
[0,3,990,null,null,null,null,null,null,0]
[0,3,990,null,null,null,null,null,null,0]
[0,3,990,null,null,null,null,null,null,0]
[0,3,990,null,null,null,null,null,null,0]
[0,3,990,null,null,null,null,null,null,0]
[0,3,990,null,null,null,null,null,null,0]
[0,3,990,null,null,null,null,null,null,0]
[0,3,990,null,null,null,null,null,null,0]
[0,3,990,null,null,null,null,null,null,0]
[0,3,990,null,null,null,null,null,null,0]
[0,3,990,null,null,null,null,null,null,0]
[0,3,990,null,null,null,null,null,null,0]
[0,3,990,null,null,null,null,null,null,0]
[0,3,990,null,null,null,null,null,null,0]
[0,3,990,null,null,null,null,null,null,0]
[0,3,990,null,null,null,null,null,null,0]
[0,3,990,null,null,null,null,null,null,0]
[0,3,990,null,null,null,null,null,null,0]
[0,3,990,null,null,null,null,null,null,0]
[0,3,990,null,null,null,null,null,null,0]
[0,3,990,null,null,null,null,null,null,0]
[0,3,990,null,null,null,null,null,null,0]
[0,3,990,null,null,null,null,null,null,0]
[0,3,990,null,null,null,null,null,null,0]
[0,3,990,null,null,null,null,null,null,0]
[0,3,990,null,null,null,null,null,null,0]
[0,3,990,null,null,null,null,null,null,0]
[0,3,990,null,null,null,null,null,null,0]
[0,3,990,null,null,null,null,null,null,0]
[0,3,990,null,null,null,null,null,null,0]
[0,3,990,null,null,null,null,null,null,0]
[0,3,990,null,null,null,null,null,null,0]
[0,3,990,null,null,null,null,null,null,0]
[0,3,990,null,null,null,null,null,null,0]
[0,3,990,null,null,null,null,null,null,0]
[0,3,990,null,null,null,null,null,null,0]
[0,3,990,null,null,null,null,null,null,0]
[0,3,990,null,null,null,null,null,null,0]
[0,3,990,null,null,null,null,null,null,0]
[0,3,990,null,null,null,null,null,null,0]
[0,3,990,null,null,null,null,null,null,0]
[0,3,990,null,null,null,null,null,null,0]
[0,3,990,null,null,null,null,null,null,0]
[0,3,990,null,null,null,null,null,null,0]
[0,3,990,null,null,null,null,null,null,0]
[0,3,990,null,null,null,null,null,null,0]
[0,3,990,null,null,null,null,null,null,{"$f":"VLOOKUP(E4419,AL:AO,3,0)","v":0}]
[{"$f":"IF(D4420=D4419,SUMIF(D4419:D4419,D4420,A4419),A4419+1)","v":0},3,990,null,null,null,null,null,null,0]
[0,3,990,null,null,null,null,null,null,0]
[0,3,990,null,null,null,null,null,null,0]
[0,3,990,null,null,null,null,null,null,0]
[0,3,990,null,null,null,null,null,null,0]
[0,3,990,null,null,null,null,null,null,0]
[0,3,990,null,null,null,null,null,null,0]
[0,3,990,null,null,null,null,null,null,0]
[0,3,990,null,null,null,null,null,null,0]
[0,3,990,null,null,null,null,null,null,0]
[0,3,990,null,null,null,null,null,null,0]
[0,3,990,null,null,null,null,null,null,0]
[0,3,990,null,null,null,null,null,null,0]
[0,3,990,null,null,null,null,null,null,0]
[0,3,990,null,null,null,null,null,null,0]
[0,3,990,null,null,null,null,null,null,0]
[0,3,990,null,null,null,null,null,null,0]
[0,3,990,null,null,null,null,null,null,0]
[0,3,990,null,null,null,null,null,null,0]
[0,3,990,null,null,null,null,null,null,0]
[0,3,990,null,null,null,null,null,null,0]
[0,3,990,null,null,null,null,null,null,0]
[0,3,990,null,null,null,null,null,null,0]
[0,3,990,null,null,null,null,null,null,0]
[0,3,990,null,null,null,null,null,null,0]
[0,3,990,null,null,null,null,null,null,0]
[0,3,990,null,null,null,null,null,null,0]
[0,3,990,null,null,null,null,null,null,0]
[0,3,990,null,null,null,null,null,null,0]
[0,3,990,null,null,null,null,null,null,0]
[0,3,990,null,null,null,null,null,null,0]
[0,3,990,null,null,null,null,null,null,0]
[0,3,990,null,null,null,null,null,null,0]
[0,3,990,null,null,null,null,null,null,0]
[0,3,990,null,null,null,null,null,null,0]
[0,3,990,null,null,null,null,null,null,0]
[0,3,990,null,null,null,null,null,null,0]
[0,3,990,null,null,null,null,null,null,0]
[0,3,990,null,null,null,null,null,null,0]
[0,3,990,null,null,null,null,null,null,0]
[0,3,990,null,null,null,null,null,null,0]
[0,3,990,null,null,null,null,null,null,0]
[0,3,990,null,null,null,null,null,null,0]
[0,3,990,null,null,null,null,null,null,0]
[0,3,990,null,null,null,null,null,null,0]
[0,3,990,null,null,null,null,null,null,0]
[0,3,990,null,null,null,null,null,null,0]
[0,3,990,null,null,null,null,null,null,0]
[0,3,990,null,null,null,null,null,null,0]
[0,3,990,null,null,null,null,null,null,0]
[0,3,990,null,null,null,null,null,null,0]
[0,3,990,null,null,null,null,null,null,0]
[0,3,990,null,null,null,null,null,null,0]
[0,3,990,null,null,null,null,null,null,0]
[0,3,990,null,null,null,null,null,null,0]
[0,3,990,null,null,null,null,null,null,0]
[0,3,990,null,null,null,null,null,null,0]
[0,3,990,null,null,null,null,null,null,0]
[0,3,990,null,null,null,null,null,null,0]
[0,3,990,null,null,null,null,null,null,0]
[0,3,990,null,null,null,null,null,null,0]
[0,3,990,null,null,null,null,null,null,0]
[0,3,990,null,null,null,null,null,null,0]
[0,3,990,null,null,null,null,null,null,{"$f":"VLOOKUP(E4483,AL:AO,3,0)","v":0}]
[{"$f":"IF(D4484=D4483,SUMIF(D4483:D4483,D4484,A4483),A4483+1)","v":0},3,990,null,null,null,null,null,null,0]
[0,3,990,null,null,null,null,null,null,0]
[0,3,990,null,null,null,null,null,null,0]
[0,3,990,null,null,null,null,null,null,0]
[0,3,990,null,null,null,null,null,null,0]
[0,3,990,null,null,null,null,null,null,0]
[0,3,990,null,null,null,null,null,null,0]
[0,3,990,null,null,null,null,null,null,0]
[0,3,990,null,null,null,null,null,null,0]
[0,3,990,null,null,null,null,null,null,0]
[0,3,990,null,null,null,null,null,null,0]
[0,3,990,null,null,null,null,null,null,0]
[0,3,990,null,null,null,null,null,null,0]
[0,3,990,null,null,null,null,null,null,0]
[0,3,990,null,null,null,null,null,null,0]
[0,3,990,null,null,null,null,null,null,0]
[0,3,990,null,null,null,null,null,null,0]
[0,3,990,null,null,null,null,null,null,0]
[0,3,990,null,null,null,null,null,null,0]
[0,3,990,null,null,null,null,null,null,0]
[0,3,990,null,null,null,null,null,null,0]
[0,3,990,null,null,null,null,null,null,0]
[0,3,990,null,null,null,null,null,null,0]
[0,3,990,null,null,null,null,null,null,0]
[0,3,990,null,null,null,null,null,null,0]
[0,3,990,null,null,null,null,null,null,0]
[0,3,990,null,null,null,null,null,null,0]
[0,3,990,null,null,null,null,null,null,0]
[0,3,990,null,null,null,null,null,null,0]
[0,3,990,null,null,null,null,null,null,0]
[0,3,990,null,null,null,null,null,null,0]
[0,3,990,null,null,null,null,null,null,0]
[0,3,990,null,null,null,null,null,null,0]
[0,3,990,null,null,null,null,null,null,0]
[0,3,990,null,null,null,null,null,null,0]
[0,3,990,null,null,null,null,null,null,0]
[0,3,990,null,null,null,null,null,null,0]
[0,3,990,null,null,null,null,null,null,0]
[0,3,990,null,null,null,null,null,null,0]
[0,3,990,null,null,null,null,null,null,0]
[0,3,990,null,null,null,null,null,null,0]
[0,3,990,null,null,null,null,null,null,0]
[0,3,990,null,null,null,null,null,null,0]
[0,3,990,null,null,null,null,null,null,0]
[0,3,990,null,null,null,null,null,null,0]
[0,3,990,null,null,null,null,null,null,0]
[0,3,990,null,null,null,null,null,null,0]
[0,3,990,null,null,null,null,null,null,0]
[0,3,990,null,null,null,null,null,null,0]
[0,3,990,null,null,null,null,null,null,0]
[0,3,990,null,null,null,null,null,null,0]
[0,3,990,null,null,null,null,null,null,0]
[0,3,990,null,null,null,null,null,null,0]
[0,3,990,null,null,null,null,null,null,0]
[0,3,990,null,null,null,null,null,null,0]
[0,3,990,null,null,null,null,null,null,0]
[0,3,990,null,null,null,null,null,null,0]
[0,3,990,null,null,null,null,null,null,0]
[0,3,990,null,null,null,null,null,null,0]
[0,3,990,null,null,null,null,null,null,0]
[0,3,990,null,null,null,null,null,null,0]
[0,3,990,null,null,null,null,null,null,0]
[0,3,990,null,null,null,null,null,null,0]
[0,3,990,null,null,null,null,null,null,{"$f":"VLOOKUP(E4547,AL:AO,3,0)","v":0}]
[{"$f":"IF(D4548=D4547,SUMIF(D4547:D4547,D4548,A4547),A4547+1)","v":0},3,990,null,null,null,null,null,null,0]
[0,3,990,null,null,null,null,null,null,0]
[0,3,990,null,null,null,null,null,null,0]
[0,3,990,null,null,null,null,null,null,0]
[0,3,990,null,null,null,null,null,null,0]
[0,3,990,null,null,null,null,null,null,0]
[0,3,990,null,null,null,null,null,null,0]
[0,3,990,null,null,null,null,null,null,0]
[0,3,990,null,null,null,null,null,null,0]
[0,3,990,null,null,null,null,null,null,0]
[0,3,990,null,null,null,null,null,null,0]
[0,3,990,null,null,null,null,null,null,0]
[0,3,990,null,null,null,null,null,null,0]
[0,3,990,null,null,null,null,null,null,0]
[0,3,990,null,null,null,null,null,null,0]
[0,3,990,null,null,null,null,null,null,0]
[0,3,990,null,null,null,null,null,null,0]
[0,3,990,null,null,null,null,null,null,0]
[0,3,990,null,null,null,null,null,null,0]
[0,3,990,null,null,null,null,null,null,0]
[0,3,990,null,null,null,null,null,null,0]
[0,3,990,null,null,null,null,null,null,0]
[0,3,990,null,null,null,null,null,null,0]
[0,3,990,null,null,null,null,null,null,0]
[0,3,990,null,null,null,null,null,null,0]
[0,3,990,null,null,null,null,null,null,0]
[0,3,990,null,null,null,null,null,null,0]
[0,3,990,null,null,null,null,null,null,0]
[0,3,990,null,null,null,null,null,null,0]
[0,3,990,null,null,null,null,null,null,0]
[0,3,990,null,null,null,null,null,null,0]
[0,3,990,null,null,null,null,null,null,0]
[0,3,990,null,null,null,null,null,null,0]
[0,3,990,null,null,null,null,null,null,0]
[0,3,990,null,null,null,null,null,null,0]
[0,3,990,null,null,null,null,null,null,0]
[0,3,990,null,null,null,null,null,null,0]
[0,3,990,null,null,null,null,null,null,0]
[0,3,990,null,null,null,null,null,null,0]
[0,3,990,null,null,null,null,null,null,0]
[0,3,990,null,null,null,null,null,null,0]
[0,3,990,null,null,null,null,null,null,0]
[0,3,990,null,null,null,null,null,null,0]
[0,3,990,null,null,null,null,null,null,0]
[0,3,990,null,null,null,null,null,null,0]
[0,3,990,null,null,null,null,null,null,0]
[0,3,990,null,null,null,null,null,null,0]
[0,3,990,null,null,null,null,null,null,0]
[0,3,990,null,null,null,null,null,null,0]
[0,3,990,null,null,null,null,null,null,0]
[0,3,990,null,null,null,null,null,null,0]
[0,3,990,null,null,null,null,null,null,0]
[0,3,990,null,null,null,null,null,null,0]
[0,3,990,null,null,null,null,null,null,0]
[0,3,990,null,null,null,null,null,null,0]
[0,3,990,null,null,null,null,null,null,0]
[0,3,990,null,null,null,null,null,null,0]
[0,3,990,null,null,null,null,null,null,0]
[0,3,990,null,null,null,null,null,null,0]
[0,3,990,null,null,null,null,null,null,0]
[0,3,990,null,null,null,null,null,null,0]
[0,3,990,null,null,null,null,null,null,0]
[0,3,990,null,null,null,null,null,null,0]
[0,3,990,null,null,null,null,null,null,{"$f":"VLOOKUP(E4611,AL:AO,3,0)","v":0}]
[{"$f":"IF(D4612=D4611,SUMIF(D4611:D4611,D4612,A4611),A4611+1)","v":0},3,990,null,null,null,null,null,null,0]
[0,3,990,null,null,null,null,null,null,0]
[0,3,990,null,null,null,null,null,null,0]
[0,3,990,null,null,null,null,null,null,0]
[0,3,990,null,null,null,null,null,null,0]
[0,3,990,null,null,null,null,null,null,0]
[0,3,990,null,null,null,null,null,null,0]
[0,3,990,null,null,null,null,null,null,0]
[0,3,990,null,null,null,null,null,null,0]
[0,3,990,null,null,null,null,null,null,0]
[0,3,990,null,null,null,null,null,null,0]
[0,3,990,null,null,null,null,null,null,0]
[0,3,990,null,null,null,null,null,null,0]
[0,3,990,null,null,null,null,null,null,0]
[0,3,990,null,null,null,null,null,null,0]
[0,3,990,null,null,null,null,null,null,0]
[0,3,990,null,null,null,null,null,null,0]
[0,3,990,null,null,null,null,null,null,0]
[0,3,990,null,null,null,null,null,null,0]
[0,3,990,null,null,null,null,null,null,0]
[0,3,990,null,null,null,null,null,null,0]
[0,3,990,null,null,null,null,null,null,0]
[0,3,990,null,null,null,null,null,null,0]
[0,3,990,null,null,null,null,null,null,0]
[0,3,990,null,null,null,null,null,null,0]
[0,3,990,null,null,null,null,null,null,0]
[0,3,990,null,null,null,null,null,null,0]
[0,3,990,null,null,null,null,null,null,0]
[0,3,990,null,null,null,null,null,null,0]
[0,3,990,null,null,null,null,null,null,0]
[0,3,990,null,null,null,null,null,null,0]
[0,3,990,null,null,null,null,null,null,0]
[0,3,990,null,null,null,null,null,null,0]
[0,3,990,null,null,null,null,null,null,0]
[0,3,990,null,null,null,null,null,null,0]
[0,3,990,null,null,null,null,null,null,0]
[0,3,990,null,null,null,null,null,null,0]
[0,3,990,null,null,null,null,null,null,0]
[0,3,990,null,null,null,null,null,null,0]
[0,3,990,null,null,null,null,null,null,0]
[0,3,990,null,null,null,null,null,null,0]
[0,3,990,null,null,null,null,null,null,0]
[0,3,990,null,null,null,null,null,null,0]
[0,3,990,null,null,null,null,null,null,0]
[0,3,990,null,null,null,null,null,null,0]
[0,3,990,null,null,null,null,null,null,0]
[0,3,990,null,null,null,null,null,null,0]
[0,3,990,null,null,null,null,null,null,0]
[0,3,990,null,null,null,null,null,null,0]
[0,3,990,null,null,null,null,null,null,0]
[0,3,990,null,null,null,null,null,null,0]
[0,3,990,null,null,null,null,null,null,0]
[0,3,990,null,null,null,null,null,null,0]
[0,3,990,null,null,null,null,null,null,0]
[0,3,990,null,null,null,null,null,null,0]
[0,3,990,null,null,null,null,null,null,0]
[0,3,990,null,null,null,null,null,null,0]
[0,3,990,null,null,null,null,null,null,0]
[0,3,990,null,null,null,null,null,null,0]
[0,3,990,null,null,null,null,null,null,0]
[0,3,990,null,null,null,null,null,null,0]
[0,3,990,null,null,null,null,null,null,0]
[0,3,990,null,null,null,null,null,null,0]
[0,3,990,null,null,null,null,null,null,{"$f":"VLOOKUP(E4675,AL:AO,3,0)","v":0}]
[{"$f":"IF(D4676=D4675,SUMIF(D4675:D4675,D4676,A4675),A4675+1)","v":0},3,990,null,null,null,null,null,null,0]
[0,3,990,null,null,null,null,null,null,0]
[0,3,990,null,null,null,null,null,null,0]
[0,3,990,null,null,null,null,null,null,0]
[0,3,990,null,null,null,null,null,null,0]
[0,3,990,null,null,null,null,null,null,0]
[0,3,990,null,null,null,null,null,null,0]
[0,3,990,null,null,null,null,null,null,0]
[0,3,990,null,null,null,null,null,null,0]
[0,3,990,null,null,null,null,null,null,0]
[0,3,990,null,null,null,null,null,null,0]
[0,3,990,null,null,null,null,null,null,0]
[0,3,990,null,null,null,null,null,null,0]
[0,3,990,null,null,null,null,null,null,0]
[0,3,990,null,null,null,null,null,null,0]
[0,3,990,null,null,null,null,null,null,0]
[0,3,990,null,null,null,null,null,null,0]
[0,3,990,null,null,null,null,null,null,0]
[0,3,990,null,null,null,null,null,null,0]
[0,3,990,null,null,null,null,null,null,0]
[0,3,990,null,null,null,null,null,null,0]
[0,3,990,null,null,null,null,null,null,0]
[0,3,990,null,null,null,null,null,null,0]
[0,3,990,null,null,null,null,null,null,0]
[0,3,990,null,null,null,null,null,null,0]
[0,3,990,null,null,null,null,null,null,0]
[0,3,990,null,null,null,null,null,null,0]
[0,3,990,null,null,null,null,null,null,0]
[0,3,990,null,null,null,null,null,null,0]
[0,3,990,null,null,null,null,null,null,0]
[0,3,990,null,null,null,null,null,null,0]
[0,3,990,null,null,null,null,null,null,0]
[0,3,990,null,null,null,null,null,null,0]
[0,3,990,null,null,null,null,null,null,0]
[0,3,990,null,null,null,null,null,null,0]
[0,3,990,null,null,null,null,null,null,0]
[0,3,990,null,null,null,null,null,null,0]
[0,3,990,null,null,null,null,null,null,0]
[0,3,990,null,null,null,null,null,null,0]
[0,3,990,null,null,null,null,null,null,0]
[0,3,990,null,null,null,null,null,null,0]
[0,3,990,null,null,null,null,null,null,0]
[0,3,990,null,null,null,null,null,null,0]
[0,3,990,null,null,null,null,null,null,0]
[0,3,990,null,null,null,null,null,null,0]
[0,3,990,null,null,null,null,null,null,0]
[0,3,990,null,null,null,null,null,null,0]
[0,3,990,null,null,null,null,null,null,0]
[0,3,990,null,null,null,null,null,null,0]
[0,3,990,null,null,null,null,null,null,0]
[0,3,990,null,null,null,null,null,null,0]
[0,3,990,null,null,null,null,null,null,0]
[0,3,990,null,null,null,null,null,null,0]
[0,3,990,null,null,null,null,null,null,0]
[0,3,990,null,null,null,null,null,null,0]